BODY,BODY NAME,SUPPLIER CODE,SUPPLIER NAME,TRANSACTION NUMBER,INVOICE DATE,THEIR REF,NARR1,PAID DATE,VAT AMOUNT,EXCLUSIVE AMOUNT,INCLUSIVE AMOUNT,EXPENSE AREA,EXPENSE TYPE,EXPENSE CODE
http://statistics.data.gov.uk/id/local-authority/12UE,Huntingdonshire District Council,200918,1ST CHOICE RECRUITMENT,53916,04/09/2021,9595,REDACTED,07/10/2021,84.83,424.14,508.97,Operations Business Support,Agency Staff,60011
http://statistics.data.gov.uk/id/local-authority/12UE,Huntingdonshire District Council,200000,A C COMMERCIALS A C COMMERCIALS,53836,10/09/2021,INV0013568,OPS DIESEL FILTER,07/10/2021,282.78,1413.9,1696.68,Vehicle Maintenance,Equipment,61713
http://statistics.data.gov.uk/id/local-authority/12UE,Huntingdonshire District Council,200028,AEBI SCHMIDT AEBI SCHMIDT,54104,15/09/2021,60273501,VEHICLE BRUSHES,07/10/2021,24.37,121.87,146.24,Street Cleansing,Vehicle Repairs And Maintenance,60904
http://statistics.data.gov.uk/id/local-authority/12UE,Huntingdonshire District Council,200028,AEBI SCHMIDT AEBI SCHMIDT,54107,07/09/2021,60273243,PARTS ,07/10/2021,149.63,748.15,897.78,Street Cleansing,Vehicle Repairs And Maintenance,60904
http://statistics.data.gov.uk/id/local-authority/12UE,Huntingdonshire District Council,200028,AEBI SCHMIDT AEBI SCHMIDT,54104,15/09/2021,60273501,VEHICLE BRUSHES,07/10/2021,24.37,121.86,146.23,Street Cleansing,Vehicle Repairs And Maintenance,60904
http://statistics.data.gov.uk/id/local-authority/12UE,Huntingdonshire District Council,200028,AEBI SCHMIDT AEBI SCHMIDT,54106,07/09/2021,60273260,PARTS ,07/10/2021,59.45,297.23,356.68,Street Cleansing,Vehicle Repairs And Maintenance,60904
http://statistics.data.gov.uk/id/local-authority/12UE,Huntingdonshire District Council,200028,AEBI SCHMIDT AEBI SCHMIDT,54104,15/09/2021,60273501,VEHICLE BRUSHES,07/10/2021,24.37,121.86,146.23,Street Cleansing,Vehicle Repairs And Maintenance,60904
http://statistics.data.gov.uk/id/local-authority/12UE,Huntingdonshire District Council,201621,AUTHENTIC8 ID SOLUTIONS,53452,16/09/2021,4006411,IT HARDWARE,07/10/2021,267.5,1337.5,1605,OLH - Site & Centre Management,Ict Hardware,64070
http://statistics.data.gov.uk/id/local-authority/12UE,Huntingdonshire District Council,201621,AUTHENTIC8 ID SOLUTIONS,53452,16/09/2021,4006411,IT HARDWARE,07/10/2021,179.5,897.5,1077,OLR - Site & Centre Management,Ict Hardware,64070
http://statistics.data.gov.uk/id/local-authority/12UE,Huntingdonshire District Council,201621,AUTHENTIC8 ID SOLUTIONS,53452,16/09/2021,4006411,IT HARDWARE,07/10/2021,267.5,1337.5,1605,OLSI - Site & Centre Management,Ict Hardware,64070
http://statistics.data.gov.uk/id/local-authority/12UE,Huntingdonshire District Council,201621,AUTHENTIC8 ID SOLUTIONS,53452,16/09/2021,4006411,IT HARDWARE,07/10/2021,267.5,1337.5,1605,OLSN - Site & Centre Management,Ict Hardware,64070
http://statistics.data.gov.uk/id/local-authority/12UE,Huntingdonshire District Council,200075,B S GRAVES ELECTRICAL LTD B S GRAVES ELECTRICAL LTD,53323,10/09/2021,30195,ELEC WORK 12 MHP,07/10/2021,150,750,900,Mobile Home Park - Electrical Works,Maintenance - Mechanical And Electrical,60203
http://statistics.data.gov.uk/id/local-authority/12UE,Huntingdonshire District Council,200075,B S GRAVES ELECTRICAL LTD B S GRAVES ELECTRICAL LTD,53320,13/09/2021,30196,ELEC WORK 7 HMP,07/10/2021,110,550,660,Mobile Home Park - Electrical Works,Maintenance - Mechanical And Electrical,60203
http://statistics.data.gov.uk/id/local-authority/12UE,Huntingdonshire District Council,200075,B S GRAVES ELECTRICAL LTD B S GRAVES ELECTRICAL LTD,53321,09/09/2021,30193,ELEC WORK 10 MHP,07/10/2021,110,550,660,Mobile Home Park - Electrical Works,Maintenance - Mechanical And Electrical,60203
http://statistics.data.gov.uk/id/local-authority/12UE,Huntingdonshire District Council,200075,B S GRAVES ELECTRICAL LTD B S GRAVES ELECTRICAL LTD,53513,15/09/2021,30204,4 HMP ELEC WORKS,07/10/2021,110,550,660,Mobile Home Park - Electrical Works,Maintenance - Mechanical And Electrical,60203
http://statistics.data.gov.uk/id/local-authority/12UE,Huntingdonshire District Council,200079,BANDVULC TRUCK TYRES BANDVULC TRUCK TYRES,54056,29/06/2021,158079,TYRES P:6 W:0,07/10/2021,297.8,1489,1786.8,Domestic Waste Collection,Tyres,62926
http://statistics.data.gov.uk/id/local-authority/12UE,Huntingdonshire District Council,200079,BANDVULC TRUCK TYRES BANDVULC TRUCK TYRES,54056,29/06/2021,158079,TYRES P:6 W:0,07/10/2021,100.89,504.44,605.33,Domestic Waste Collection,Tyres,62926
http://statistics.data.gov.uk/id/local-authority/12UE,Huntingdonshire District Council,200079,BANDVULC TRUCK TYRES BANDVULC TRUCK TYRES,54056,29/06/2021,158079,TYRES P:6 W:0,07/10/2021,12.52,62.61,75.13,Domestic Waste Collection,Tyres,62926
http://statistics.data.gov.uk/id/local-authority/12UE,Huntingdonshire District Council,200079,BANDVULC TRUCK TYRES BANDVULC TRUCK TYRES,54056,29/06/2021,158079,TYRES P:6 W:0,07/10/2021,150.61,753.04,903.65,Domestic Waste Collection,Tyres,62926
http://statistics.data.gov.uk/id/local-authority/12UE,Huntingdonshire District Council,200079,BANDVULC TRUCK TYRES BANDVULC TRUCK TYRES,54056,29/06/2021,158079,TYRES P:6 W:0,07/10/2021,96.84,484.2,581.04,Domestic Waste Collection,Tyres,62926
http://statistics.data.gov.uk/id/local-authority/12UE,Huntingdonshire District Council,200079,BANDVULC TRUCK TYRES BANDVULC TRUCK TYRES,54032,29/07/2021,159580,OPS TYRES,07/10/2021,174.39,871.93,1046.32,Domestic Waste Collection,Tyres,62926
http://statistics.data.gov.uk/id/local-authority/12UE,Huntingdonshire District Council,200079,BANDVULC TRUCK TYRES BANDVULC TRUCK TYRES,54032,29/07/2021,159580,OPS TYRES,07/10/2021,190.35,951.76,1142.11,Domestic Waste Collection,Tyres,62926
http://statistics.data.gov.uk/id/local-authority/12UE,Huntingdonshire District Council,200079,BANDVULC TRUCK TYRES BANDVULC TRUCK TYRES,54032,29/07/2021,159580,OPS TYRES,07/10/2021,53.18,265.92,319.1,Domestic Waste Collection,Tyres,62926
http://statistics.data.gov.uk/id/local-authority/12UE,Huntingdonshire District Council,200079,BANDVULC TRUCK TYRES BANDVULC TRUCK TYRES,54032,29/07/2021,159580,OPS TYRES,07/10/2021,15,74.98,89.98,Domestic Waste Collection,Tyres,62926
http://statistics.data.gov.uk/id/local-authority/12UE,Huntingdonshire District Council,200079,BANDVULC TRUCK TYRES BANDVULC TRUCK TYRES,54056,29/06/2021,158079,TYRES P:6 W:0,07/10/2021,5.21,26.05,31.26,Green Waste Collection,Tyres,62926
http://statistics.data.gov.uk/id/local-authority/12UE,Huntingdonshire District Council,200079,BANDVULC TRUCK TYRES BANDVULC TRUCK TYRES,54032,29/07/2021,159580,OPS TYRES,07/10/2021,128.25,641.26,769.51,Green Waste Collection,Tyres,62926
http://statistics.data.gov.uk/id/local-authority/12UE,Huntingdonshire District Council,200079,BANDVULC TRUCK TYRES BANDVULC TRUCK TYRES,54056,29/06/2021,158079,TYRES P:6 W:0,07/10/2021,7.8,38.98,46.78,Green Waste Collection,Tyres,62926
http://statistics.data.gov.uk/id/local-authority/12UE,Huntingdonshire District Council,200079,BANDVULC TRUCK TYRES BANDVULC TRUCK TYRES,54056,29/06/2021,158079,TYRES P:6 W:0,07/10/2021,7.8,38.98,46.78,Green Waste Collection,Tyres,62926
http://statistics.data.gov.uk/id/local-authority/12UE,Huntingdonshire District Council,200079,BANDVULC TRUCK TYRES BANDVULC TRUCK TYRES,54056,29/06/2021,158079,TYRES P:6 W:0,07/10/2021,29.54,147.71,177.25,Recycling Collections,Tyres,62926
http://statistics.data.gov.uk/id/local-authority/12UE,Huntingdonshire District Council,200079,BANDVULC TRUCK TYRES BANDVULC TRUCK TYRES,54032,29/07/2021,159580,OPS TYRES,07/10/2021,61.87,309.37,371.24,Recycling Collections,Tyres,62926
http://statistics.data.gov.uk/id/local-authority/12UE,Huntingdonshire District Council,200079,BANDVULC TRUCK TYRES BANDVULC TRUCK TYRES,54056,29/06/2021,158079,TYRES P:6 W:0,07/10/2021,29.54,147.71,177.25,Recycling Collections,Tyres,62926
http://statistics.data.gov.uk/id/local-authority/12UE,Huntingdonshire District Council,200079,BANDVULC TRUCK TYRES BANDVULC TRUCK TYRES,54032,29/07/2021,159580,OPS TYRES,07/10/2021,60.76,303.8,364.56,Street Cleansing,Tyres,62926
http://statistics.data.gov.uk/id/local-authority/12UE,Huntingdonshire District Council,200079,BANDVULC TRUCK TYRES BANDVULC TRUCK TYRES,54056,29/06/2021,158079,TYRES P:6 W:0,07/10/2021,16.23,81.16,97.39,Street Cleansing,Tyres,62926
http://statistics.data.gov.uk/id/local-authority/12UE,Huntingdonshire District Council,200079,BANDVULC TRUCK TYRES BANDVULC TRUCK TYRES,54032,29/07/2021,159580,OPS TYRES,07/10/2021,64.13,320.63,384.76,Trade Refuse,Tyres,62926
http://statistics.data.gov.uk/id/local-authority/12UE,Huntingdonshire District Council,200079,BANDVULC TRUCK TYRES BANDVULC TRUCK TYRES,54032,29/07/2021,159580,OPS TYRES,07/10/2021,33.9,169.52,203.42,Trade Refuse,Tyres,62926
http://statistics.data.gov.uk/id/local-authority/12UE,Huntingdonshire District Council,200101,BID HUNTINGDON BID HUNTINGDON,54176,05/10/2021,INV-1907,BID LEVY,07/10/2021,688.97,3444.86,4133.83,Bid Revenue Account,Payment Of Amount Due,23003
http://statistics.data.gov.uk/id/local-authority/12UE,Huntingdonshire District Council,200119,BRENNTAG UK LTD BRENNTAG UK LTD,53454,15/09/2021,38SI 3944411,418.8,07/10/2021,61.6,308,369.6,OLSI - Swimming,Chemicals,64000
http://statistics.data.gov.uk/id/local-authority/12UE,Huntingdonshire District Council,200119,BRENNTAG UK LTD BRENNTAG UK LTD,53454,15/09/2021,38SI 3944411,418.8,07/10/2021,8.2,41,49.2,OLSI - Swimming,Equipment,61713
http://statistics.data.gov.uk/id/local-authority/12UE,Huntingdonshire District Council,200133,BSG PROPERTY SERVICES LTD BSG PROPERTY SERVICES LTD,54163,26/08/2021,S48787,LEVEL ACCESS SHOWER,07/10/2021,0,5001,5001,Disables Facilities Grants,Mandatory Grants,64601
http://statistics.data.gov.uk/id/local-authority/12UE,Huntingdonshire District Council,200133,BSG PROPERTY SERVICES LTD BSG PROPERTY SERVICES LTD,54172,26/08/2021,S48786,LEVEL ACCESS SHOWER,07/10/2021,0,4439.5,4439.5,Disables Facilities Grants,Mandatory Grants,64601
http://statistics.data.gov.uk/id/local-authority/12UE,Huntingdonshire District Council,201311,CABINET OFFICE,54180,18/03/2021,3804310,BANK VERIFICATION,07/10/2021,0,2606.35,2606.35,Covid-19,Audit Fees,62100
http://statistics.data.gov.uk/id/local-authority/12UE,Huntingdonshire District Council,200149,CAMBRIDGE CITY COUNCIL CAMBRIDGE CITY COUNCIL,53965,30/09/2021,10007563,21/04/2021,07/10/2021,0,741.59,741.59,Paymaster Account,Paymaster Account,10082
http://statistics.data.gov.uk/id/local-authority/12UE,Huntingdonshire District Council,200149,CAMBRIDGE CITY COUNCIL CAMBRIDGE CITY COUNCIL,53965,30/09/2021,10007563,21/04/2021,07/10/2021,0,741.59,741.59,Paymaster Account,Paymaster Account,10082
http://statistics.data.gov.uk/id/local-authority/12UE,Huntingdonshire District Council,200149,CAMBRIDGE CITY COUNCIL CAMBRIDGE CITY COUNCIL,53965,30/09/2021,10007563,21/04/2021,07/10/2021,0,741.59,741.59,Paymaster Account,Paymaster Account,10082
http://statistics.data.gov.uk/id/local-authority/12UE,Huntingdonshire District Council,200149,CAMBRIDGE CITY COUNCIL CAMBRIDGE CITY COUNCIL,53965,30/09/2021,10007563,21/04/2021,07/10/2021,0,741.59,741.59,Paymaster Account,Paymaster Account,10082
http://statistics.data.gov.uk/id/local-authority/12UE,Huntingdonshire District Council,200149,CAMBRIDGE CITY COUNCIL CAMBRIDGE CITY COUNCIL,53962,30/09/2021,10007561,21/04/2021,07/10/2021,0,-741.59,-741.59,Paymaster Account,Paymaster Account,10082
http://statistics.data.gov.uk/id/local-authority/12UE,Huntingdonshire District Council,201485,CAMBRIDGESHIRE HOTEL LTD T/AS THE DOLPHIN,53269,09/09/2021,DH019926,LODGING 0909-100921,07/10/2021,0,479.74,479.74,Homelessness,B&B Accommodation,64401
http://statistics.data.gov.uk/id/local-authority/12UE,Huntingdonshire District Council,201485,CAMBRIDGESHIRE HOTEL LTD T/AS THE DOLPHIN,53267,09/09/2021,DH019925,LODGING 0909-100921,07/10/2021,0,2500,2500,Homelessness,B&B Accommodation,64401
http://statistics.data.gov.uk/id/local-authority/12UE,Huntingdonshire District Council,201485,CAMBRIDGESHIRE HOTEL LTD T/AS THE DOLPHIN,53270,13/09/2021,DH019927,LODGING 0609-120921,07/10/2021,17.5,350,367.5,Homelessness,B&B Accommodation,64401
http://statistics.data.gov.uk/id/local-authority/12UE,Huntingdonshire District Council,201485,CAMBRIDGESHIRE HOTEL LTD T/AS THE DOLPHIN,53345,14/09/2021,DH019928,LODGING 3008-050921,07/10/2021,17.5,350,367.5,Homelessness,B&B Accommodation,64401
http://statistics.data.gov.uk/id/local-authority/12UE,Huntingdonshire District Council,201485,CAMBRIDGESHIRE HOTEL LTD T/AS THE DOLPHIN,53268,09/09/2021,DH019924,LODGING 0909-100921,07/10/2021,0,2500,2500,Homelessness,B&B Accommodation,64401
http://statistics.data.gov.uk/id/local-authority/12UE,Huntingdonshire District Council,201485,CAMBRIDGESHIRE HOTEL LTD T/AS THE DOLPHIN,53270,13/09/2021,DH019927,LODGING 0609-120921,07/10/2021,17.5,350,367.5,Homelessness,B&B Accommodation,64401
http://statistics.data.gov.uk/id/local-authority/12UE,Huntingdonshire District Council,201485,CAMBRIDGESHIRE HOTEL LTD T/AS THE DOLPHIN,53345,14/09/2021,DH019928,LODGING 3008-050921,07/10/2021,17.5,350,367.5,Homelessness,B&B Accommodation,64401
http://statistics.data.gov.uk/id/local-authority/12UE,Huntingdonshire District Council,201485,CAMBRIDGESHIRE HOTEL LTD T/AS THE DOLPHIN,53270,13/09/2021,DH019927,LODGING 0609-120921,07/10/2021,17.5,350,367.5,Homelessness,B&B Accommodation,64401
http://statistics.data.gov.uk/id/local-authority/12UE,Huntingdonshire District Council,201485,CAMBRIDGESHIRE HOTEL LTD T/AS THE DOLPHIN,53345,14/09/2021,DH019928,LODGING 3008-050921,07/10/2021,17.5,350,367.5,Homelessness,B&B Accommodation,64401
http://statistics.data.gov.uk/id/local-authority/12UE,Huntingdonshire District Council,201485,CAMBRIDGESHIRE HOTEL LTD T/AS THE DOLPHIN,53270,13/09/2021,DH019927,LODGING 0609-120921,07/10/2021,5,100,105,Homelessness,B&B Accommodation,64401
http://statistics.data.gov.uk/id/local-authority/12UE,Huntingdonshire District Council,202458,CARRINGTON WEST LTD,53522,15/09/2021,172344,REDACTED,07/10/2021,552,2760,3312,Development Management,Agency Staff,60011
http://statistics.data.gov.uk/id/local-authority/12UE,Huntingdonshire District Council,202458,CARRINGTON WEST LTD,53528,15/09/2021,172349,REDACTED,07/10/2021,550,2750,3300,Development Management,Agency Staff,60011
http://statistics.data.gov.uk/id/local-authority/12UE,Huntingdonshire District Council,202458,CARRINGTON WEST LTD,53178,09/09/2021,171644,REDACTED,07/10/2021,441.6,2208,2649.6,Development Management,Agency Staff,60011
http://statistics.data.gov.uk/id/local-authority/12UE,Huntingdonshire District Council,202458,CARRINGTON WEST LTD,53527,15/09/2021,172348,REDACTED,07/10/2021,238.28,1191.4,1429.68,Development Management,Agency Staff,60011
http://statistics.data.gov.uk/id/local-authority/12UE,Huntingdonshire District Council,202458,CARRINGTON WEST LTD,53524,15/09/2021,172346,REDACTED,07/10/2021,227.15,1135.75,1362.9,Development Management,Agency Staff,60011
http://statistics.data.gov.uk/id/local-authority/12UE,Huntingdonshire District Council,202458,CARRINGTON WEST LTD,53179,09/09/2021,171645,REDACTED,07/10/2021,220.8,1104,1324.8,Development Management,Agency Staff,60011
http://statistics.data.gov.uk/id/local-authority/12UE,Huntingdonshire District Council,202458,CARRINGTON WEST LTD,53181,09/09/2021,171647,REDACTED,07/10/2021,220,1100,1320,Development Management,Agency Staff,60011
http://statistics.data.gov.uk/id/local-authority/12UE,Huntingdonshire District Council,202458,CARRINGTON WEST LTD,53180,09/09/2021,171646,REDACTED,07/10/2021,218.96,1094.8,1313.76,Development Management,Agency Staff,60011
http://statistics.data.gov.uk/id/local-authority/12UE,Huntingdonshire District Council,202458,CARRINGTON WEST LTD,53526,15/09/2021,172347,REDACTED,07/10/2021,147.2,736,883.2,Development Management,Agency Staff,60011
http://statistics.data.gov.uk/id/local-authority/12UE,Huntingdonshire District Council,202458,CARRINGTON WEST LTD,53523,15/09/2021,172345,REDACTED,07/10/2021,134.75,673.75,808.5,Development Management,Agency Staff,60011
http://statistics.data.gov.uk/id/local-authority/12UE,Huntingdonshire District Council,201011,CENTENNIAL PROPERTY LTD,54086,01/10/2021,CP-HDC116,LODGING,07/10/2021,33.75,675,708.75,Homelessness,B&B Accommodation,64401
http://statistics.data.gov.uk/id/local-authority/12UE,Huntingdonshire District Council,201011,CENTENNIAL PROPERTY LTD,54086,01/10/2021,CP-HDC116,LODGING,07/10/2021,33.75,675,708.75,Homelessness,B&B Accommodation,64401
http://statistics.data.gov.uk/id/local-authority/12UE,Huntingdonshire District Council,201011,CENTENNIAL PROPERTY LTD,54086,01/10/2021,CP-HDC116,LODGING,07/10/2021,33.75,675,708.75,Homelessness,B&B Accommodation,64401
http://statistics.data.gov.uk/id/local-authority/12UE,Huntingdonshire District Council,201011,CENTENNIAL PROPERTY LTD,54086,01/10/2021,CP-HDC116,LODGING,07/10/2021,28.5,570,598.5,Homelessness,B&B Accommodation,64401
http://statistics.data.gov.uk/id/local-authority/12UE,Huntingdonshire District Council,201011,CENTENNIAL PROPERTY LTD,54086,01/10/2021,CP-HDC116,LODGING,07/10/2021,33.75,675,708.75,Homelessness,B&B Accommodation,64401
http://statistics.data.gov.uk/id/local-authority/12UE,Huntingdonshire District Council,201011,CENTENNIAL PROPERTY LTD,54086,01/10/2021,CP-HDC116,LODGING,07/10/2021,28.5,570,598.5,Homelessness,B&B Accommodation,64401
http://statistics.data.gov.uk/id/local-authority/12UE,Huntingdonshire District Council,201011,CENTENNIAL PROPERTY LTD,54086,01/10/2021,CP-HDC116,LODGING,07/10/2021,41.25,825,866.25,Homelessness,B&B Accommodation,64401
http://statistics.data.gov.uk/id/local-authority/12UE,Huntingdonshire District Council,201011,CENTENNIAL PROPERTY LTD,54086,01/10/2021,CP-HDC116,LODGING,07/10/2021,28.5,570,598.5,Homelessness,B&B Accommodation,64401
http://statistics.data.gov.uk/id/local-authority/12UE,Huntingdonshire District Council,201011,CENTENNIAL PROPERTY LTD,54086,01/10/2021,CP-HDC116,LODGING,07/10/2021,15.2,304,319.2,Homelessness,B&B Accommodation,64401
http://statistics.data.gov.uk/id/local-authority/12UE,Huntingdonshire District Council,201011,CENTENNIAL PROPERTY LTD,54086,01/10/2021,CP-HDC116,LODGING,07/10/2021,3.8,76,79.8,Homelessness,B&B Accommodation,64401
http://statistics.data.gov.uk/id/local-authority/12UE,Huntingdonshire District Council,201011,CENTENNIAL PROPERTY LTD,54086,01/10/2021,CP-HDC116,LODGING,07/10/2021,2.25,45,47.25,Homelessness,B&B Accommodation,64401
http://statistics.data.gov.uk/id/local-authority/12UE,Huntingdonshire District Council,201011,CENTENNIAL PROPERTY LTD,54086,01/10/2021,CP-HDC116,LODGING,07/10/2021,4.5,90,94.5,Homelessness,B&B Accommodation,64401
http://statistics.data.gov.uk/id/local-authority/12UE,Huntingdonshire District Council,200179,CERTAS ENERGY T/A PACE FUELCARE CERTAS ENERGY T/A PACE FUELCARE,53590,14/09/2021,8506662,olsi 092 diesel,07/10/2021,209.75,1048.75,1258.5,OLSIO - Site & Centre Management,Fuel,60902
http://statistics.data.gov.uk/id/local-authority/12UE,Huntingdonshire District Council,201573,CLC CONTRACTORS LTD,53293,08/09/2021,INV001782,KITCHEN ADAPTION,07/10/2021,0,8283,8283,Disables Facilities Grants,Mandatory Grants,64601
http://statistics.data.gov.uk/id/local-authority/12UE,Huntingdonshire District Council,202694,CLICKITY-CLACK PARTIES,53276,14/09/2021,190921,5 HOURS PARTY ENTERTAINMENT,07/10/2021,0,300,300,Welcome Back Fund,Consultancy Fees,62400
http://statistics.data.gov.uk/id/local-authority/12UE,Huntingdonshire District Council,201012,COACH & HORSES,54081,03/09/2021,508/1,LODGING 2709-300921,07/10/2021,4.5,90,94.5,Homelessness,B&B Accommodation,64401
http://statistics.data.gov.uk/id/local-authority/12UE,Huntingdonshire District Council,201012,COACH & HORSES,54081,03/09/2021,508/1,LODGING 2709-300921,07/10/2021,9,180,189,Homelessness,B&B Accommodation,64401
http://statistics.data.gov.uk/id/local-authority/12UE,Huntingdonshire District Council,202513,CV-LIBRARY LTD,54203,31/08/2021,365059,LICENCES 6 MON,07/10/2021,259.9,1299.5,1559.4,HR Services,Staff Recruitment Costs,60116
http://statistics.data.gov.uk/id/local-authority/12UE,Huntingdonshire District Council,202634,D Houghton Ltd trading as Kings Landscapes,54167,11/08/2021,KIN8146,TREE REMOVAL,07/10/2021,255,1275,1530,Arboricultural Team,Subcontractors,62401
http://statistics.data.gov.uk/id/local-authority/12UE,Huntingdonshire District Council,200230,REDACTED,53536,12/09/2021,132,VEHICLE CLEAN,07/10/2021,0,37,37,Grounds Maintenance,Vehicle Cleaning,60923
http://statistics.data.gov.uk/id/local-authority/12UE,Huntingdonshire District Council,200230,REDACTED,53536,12/09/2021,132,VEHICLE CLEAN,07/10/2021,0,32,32,Pool Cars,Vehicle Cleaning,60923
http://statistics.data.gov.uk/id/local-authority/12UE,Huntingdonshire District Council,200230,REDACTED,53536,12/09/2021,132,VEHICLE CLEAN,07/10/2021,0,32,32,Pool Cars,Vehicle Cleaning,60923
http://statistics.data.gov.uk/id/local-authority/12UE,Huntingdonshire District Council,200230,REDACTED,53536,12/09/2021,132,VEHICLE CLEAN,07/10/2021,0,32,32,Pool Cars,Vehicle Cleaning,60923
http://statistics.data.gov.uk/id/local-authority/12UE,Huntingdonshire District Council,200230,REDACTED,53536,12/09/2021,132,VEHICLE CLEAN,07/10/2021,0,32,32,Pool Cars,Vehicle Cleaning,60923
http://statistics.data.gov.uk/id/local-authority/12UE,Huntingdonshire District Council,200230,REDACTED,53536,12/09/2021,132,VEHICLE CLEAN,07/10/2021,0,32,32,Pool Cars,Vehicle Cleaning,60923
http://statistics.data.gov.uk/id/local-authority/12UE,Huntingdonshire District Council,200230,REDACTED,53536,12/09/2021,132,VEHICLE CLEAN,07/10/2021,0,32,32,Pool Cars,Vehicle Cleaning,60923
http://statistics.data.gov.uk/id/local-authority/12UE,Huntingdonshire District Council,200230,REDACTED,53536,12/09/2021,132,VEHICLE CLEAN,07/10/2021,0,32,32,Pool Cars,Vehicle Cleaning,60923
http://statistics.data.gov.uk/id/local-authority/12UE,Huntingdonshire District Council,200230,REDACTED,53536,12/09/2021,132,VEHICLE CLEAN,07/10/2021,0,37,37,Street Cleansing,Vehicle Cleaning,60923
http://statistics.data.gov.uk/id/local-authority/12UE,Huntingdonshire District Council,200236,DENNIS EAGLE LTD DENNIS EAGLE LTD,53770,13/09/2021,DE11435942,Ops Dennis Eagle,07/10/2021,164.92,824.62,989.54,Domestic Waste Collection,Vehicle Repairs And Maintenance,60904
http://statistics.data.gov.uk/id/local-authority/12UE,Huntingdonshire District Council,200236,DENNIS EAGLE LTD DENNIS EAGLE LTD,53684,09/09/2021,DE11435313,OPS ROOF CANOPY,07/10/2021,74.52,372.59,447.11,Recycling Collections,Vehicle Repairs And Maintenance,60904
http://statistics.data.gov.uk/id/local-authority/12UE,Huntingdonshire District Council,200236,DENNIS EAGLE LTD DENNIS EAGLE LTD,53684,09/09/2021,DE11435313,OPS ROOF CANOPY,07/10/2021,74.52,372.59,447.11,Recycling Collections,Vehicle Repairs And Maintenance,60904
http://statistics.data.gov.uk/id/local-authority/12UE,Huntingdonshire District Council,200236,DENNIS EAGLE LTD DENNIS EAGLE LTD,53679,10/09/2021,DE11435620,OPS WINDOW REGULATOR,07/10/2021,56.95,284.73,341.68,Recycling Collections,Vehicle Repairs And Maintenance,60904
http://statistics.data.gov.uk/id/local-authority/12UE,Huntingdonshire District Council,202236,EASTFIELD GUESTHOUSE LTD,54082,30/09/2021,HUN0113,LODGING 2009-260921,07/10/2021,18,360,378,Homelessness,B&B Accommodation,64401
http://statistics.data.gov.uk/id/local-authority/12UE,Huntingdonshire District Council,202236,EASTFIELD GUESTHOUSE LTD,54082,30/09/2021,HUN0113,LODGING 2009-260921,07/10/2021,21,420,441,Homelessness,B&B Accommodation,64401
http://statistics.data.gov.uk/id/local-authority/12UE,Huntingdonshire District Council,202236,EASTFIELD GUESTHOUSE LTD,54082,30/09/2021,HUN0113,LODGING 2009-260921,07/10/2021,21,420,441,Homelessness,B&B Accommodation,64401
http://statistics.data.gov.uk/id/local-authority/12UE,Huntingdonshire District Council,202236,EASTFIELD GUESTHOUSE LTD,54082,30/09/2021,HUN0113,LODGING 2009-260921,07/10/2021,3,60,63,Homelessness,B&B Accommodation,64401
http://statistics.data.gov.uk/id/local-authority/12UE,Huntingdonshire District Council,202236,EASTFIELD GUESTHOUSE LTD,54082,30/09/2021,HUN0113,LODGING 2009-260921,07/10/2021,21,420,441,Homelessness,B&B Accommodation,64401
http://statistics.data.gov.uk/id/local-authority/12UE,Huntingdonshire District Council,202236,EASTFIELD GUESTHOUSE LTD,54082,30/09/2021,HUN0113,LODGING 2009-260921,07/10/2021,21,420,441,Homelessness,B&B Accommodation,64401
http://statistics.data.gov.uk/id/local-authority/12UE,Huntingdonshire District Council,202236,EASTFIELD GUESTHOUSE LTD,54083,30/09/2021,HUN0112,LODGING 2009-260921,07/10/2021,9.75,195,204.75,Homelessness,B&B Accommodation,64401
http://statistics.data.gov.uk/id/local-authority/12UE,Huntingdonshire District Council,202236,EASTFIELD GUESTHOUSE LTD,54083,30/09/2021,HUN0112,LODGING 2009-260921,07/10/2021,22.75,455,477.75,Homelessness,B&B Accommodation,64401
http://statistics.data.gov.uk/id/local-authority/12UE,Huntingdonshire District Council,202236,EASTFIELD GUESTHOUSE LTD,54082,30/09/2021,HUN0113,LODGING 2009-260921,07/10/2021,21,420,441,Homelessness,B&B Accommodation,64401
http://statistics.data.gov.uk/id/local-authority/12UE,Huntingdonshire District Council,202236,EASTFIELD GUESTHOUSE LTD,54083,30/09/2021,HUN0112,LODGING 2009-260921,07/10/2021,22.75,455,477.75,Homelessness,B&B Accommodation,64401
http://statistics.data.gov.uk/id/local-authority/12UE,Huntingdonshire District Council,202236,EASTFIELD GUESTHOUSE LTD,54083,30/09/2021,HUN0112,LODGING 2009-260921,07/10/2021,9.75,195,204.75,Homelessness,B&B Accommodation,64401
http://statistics.data.gov.uk/id/local-authority/12UE,Huntingdonshire District Council,202236,EASTFIELD GUESTHOUSE LTD,54083,30/09/2021,HUN0112,LODGING 2009-260921,07/10/2021,13,260,273,Homelessness,B&B Accommodation,64401
http://statistics.data.gov.uk/id/local-authority/12UE,Huntingdonshire District Council,202236,EASTFIELD GUESTHOUSE LTD,54082,30/09/2021,HUN0113,LODGING 2009-260921,07/10/2021,21,420,441,Homelessness,B&B Accommodation,64401
http://statistics.data.gov.uk/id/local-authority/12UE,Huntingdonshire District Council,202236,EASTFIELD GUESTHOUSE LTD,54082,30/09/2021,HUN0113,LODGING 2009-260921,07/10/2021,21,420,441,Homelessness,B&B Accommodation,64401
http://statistics.data.gov.uk/id/local-authority/12UE,Huntingdonshire District Council,202236,EASTFIELD GUESTHOUSE LTD,54082,30/09/2021,HUN0113,LODGING 2009-260921,07/10/2021,21,420,441,Homelessness,B&B Accommodation,64401
http://statistics.data.gov.uk/id/local-authority/12UE,Huntingdonshire District Council,202236,EASTFIELD GUESTHOUSE LTD,54083,30/09/2021,HUN0112,LODGING 2009-260921,07/10/2021,6.5,130,136.5,Homelessness,B&B Accommodation,64401
http://statistics.data.gov.uk/id/local-authority/12UE,Huntingdonshire District Council,202670,Etec Contract Services Ltd,53724,27/09/2021,12539,facilites decarbonisation,07/10/2021,32962.09,164810.45,197772.54,OL Ramsey Decarbonisation Scheme,Site Alterations And Materials,60273
http://statistics.data.gov.uk/id/local-authority/12UE,Huntingdonshire District Council,200308,FRANK RATCLIFFE & SON FRANK RATCLIFFE & SON,53749,13/09/2021,102131,ops low loader,07/10/2021,73,365,438,Domestic Waste Collection,Vehicle Maintenance - External,60921
http://statistics.data.gov.uk/id/local-authority/12UE,Huntingdonshire District Council,200308,FRANK RATCLIFFE & SON FRANK RATCLIFFE & SON,53756,09/09/2021,102106,OPS LOW LOADER,07/10/2021,81.8,409,490.8,Recycling Collections,Vehicle Maintenance - External,60921
http://statistics.data.gov.uk/id/local-authority/12UE,Huntingdonshire District Council,200322,G&C COACHWORKS LTD G&C COACHWORKS LTD,53620,10/09/2021,11223,ops ,07/10/2021,216.74,1083.71,1300.45,Street Cleansing,Vehicle Accident Damage,60925
http://statistics.data.gov.uk/id/local-authority/12UE,Huntingdonshire District Council,200325,GALLAGHER BASSETT LTD GALLAGHER BASSETT  LTD,54151,08/09/2021,HDC0033,CLAIMS FUND TOP UP,07/10/2021,0,562,562,Finance,Insurance Excess,63009
http://statistics.data.gov.uk/id/local-authority/12UE,Huntingdonshire District Council,200325,GALLAGHER BASSETT LTD GALLAGHER BASSETT  LTD,54151,08/09/2021,HDC0033,CLAIMS FUND TOP UP,07/10/2021,0,1098,1098,Street Cleansing,Insurance Excess,63009
http://statistics.data.gov.uk/id/local-authority/12UE,Huntingdonshire District Council,200344,GLOBAL RADIO SERVICES LTD GLOBAL RADIO SERVICES LTD,54001,31/07/2021,C-INV031593,OLH MOVING FORWARD,07/10/2021,269.77,1348.85,1618.62,One Leisure Support Team,"Advertising, Publicity And Marketing",62005
http://statistics.data.gov.uk/id/local-authority/12UE,Huntingdonshire District Council,201360,GLOBAL TREE SOLUTIONS LTD,53348,15/09/2021,63354,DEAD TREE WORK,07/10/2021,180,900,1080,Arboricultural Team,Subcontractors,62401
http://statistics.data.gov.uk/id/local-authority/12UE,Huntingdonshire District Council,202675,Godmanchester Town Show,52769,12/08/2021,PRF COMMUNITY CHEST GRANT,COMMUNITY CHEST GRANT,07/10/2021,0,800,800,Voluntary Sector Grants,Grants And Contributions,64600
http://statistics.data.gov.uk/id/local-authority/12UE,Huntingdonshire District Council,201854,HAWKSPEED REMOVALS AND HAULAGE,53507,17/09/2021,HDC2203,REMOVAL SERVICE,07/10/2021,0,320,320,Homelessness,Removal Services,63700
http://statistics.data.gov.uk/id/local-authority/12UE,Huntingdonshire District Council,202701,HAZEXPERTS LTD,53265,13/09/2021,2230,CHEMICAL DISPOSAL,07/10/2021,1357.4,6787,8144.4,Street Cleansing,Waste Disposal Costs,64050
http://statistics.data.gov.uk/id/local-authority/12UE,Huntingdonshire District Council,200375,HMRC - VALUATION OFFICE AGENCY HMRC - VALUATION OFFICE AGENCY,53917,20/09/2021,2.50E+13,VIABILITY WORK,07/10/2021,450,2250,2700,Viability Assessments,Subcontractors,62401
http://statistics.data.gov.uk/id/local-authority/12UE,Huntingdonshire District Council,202645,Horspower Strength and Conditioning Ltd,53117,09/09/2021,REDACTED,KICKSTART WAGE,07/10/2021,0,1010.75,1010.75,Kickstart - External,Mandatory Grants,64601
http://statistics.data.gov.uk/id/local-authority/12UE,Huntingdonshire District Council,200381,HOWSAFE LTD HOWSAFE LTD,53517,14/09/2021,SIN0730306,OPS SAFETY WARE,07/10/2021,199.45,997.24,1196.69,Green Waste Collection,"Clothes, Uniform And Laundry",62000
http://statistics.data.gov.uk/id/local-authority/12UE,Huntingdonshire District Council,200402,IEG4 LIMITED IEG4 LIMITED,53295,10/09/2021,IEG4002045,ANNUAL LICENSES 0109-310321,07/10/2021,700,3500,4200,Benefits Management,Ict Software,64071
http://statistics.data.gov.uk/id/local-authority/12UE,Huntingdonshire District Council,200808,IMPERIAL PORTFOLIOS LTD,54137,01/10/2021,SEP001_HUNT_2021,TA 0109-300921,07/10/2021,11.25,225,236.25,Homelessness,B&B Accommodation,64401
http://statistics.data.gov.uk/id/local-authority/12UE,Huntingdonshire District Council,200808,IMPERIAL PORTFOLIOS LTD,54137,01/10/2021,SEP001_HUNT_2021,TA 0109-300921,07/10/2021,57,1140,1197,Homelessness,B&B Accommodation,64401
http://statistics.data.gov.uk/id/local-authority/12UE,Huntingdonshire District Council,200808,IMPERIAL PORTFOLIOS LTD,54137,01/10/2021,SEP001_HUNT_2021,TA 0109-300921,07/10/2021,67.5,1350,1417.5,Homelessness,B&B Accommodation,64401
http://statistics.data.gov.uk/id/local-authority/12UE,Huntingdonshire District Council,200808,IMPERIAL PORTFOLIOS LTD,54137,01/10/2021,SEP001_HUNT_2021,TA 0109-300921,07/10/2021,67.5,1350,1417.5,Homelessness,B&B Accommodation,64401
http://statistics.data.gov.uk/id/local-authority/12UE,Huntingdonshire District Council,200808,IMPERIAL PORTFOLIOS LTD,54137,01/10/2021,SEP001_HUNT_2021,TA 0109-300921,07/10/2021,26.6,532,558.6,Homelessness,B&B Accommodation,64401
http://statistics.data.gov.uk/id/local-authority/12UE,Huntingdonshire District Council,200808,IMPERIAL PORTFOLIOS LTD,54137,01/10/2021,SEP001_HUNT_2021,TA 0109-300921,07/10/2021,47.25,945,992.25,Homelessness,B&B Accommodation,64401
http://statistics.data.gov.uk/id/local-authority/12UE,Huntingdonshire District Council,200808,IMPERIAL PORTFOLIOS LTD,54137,01/10/2021,SEP001_HUNT_2021,TA 0109-300921,07/10/2021,5.7,114,119.7,Homelessness,B&B Accommodation,64401
http://statistics.data.gov.uk/id/local-authority/12UE,Huntingdonshire District Council,200427,J A K  SYSTEMS LTD J A K SYSTEMS LTD,53353,15/09/2021,13779,OLR CIRC PUMP REPLACED,07/10/2021,599,2995,3594,Leisure Cents - Future Improve,Maintenance - Building,60201
http://statistics.data.gov.uk/id/local-authority/12UE,Huntingdonshire District Council,200429,J BREHENY CIVIL ENGINEERING LTD J BREHENY CIVIL ENGINEERING LTD,53187,10/09/2021,HW/01867/34479,GODMANCHESTER FISH PASS 030921,07/10/2021,15266.96,76334.78,91601.74,Godmanchester Mill Weir Improvements,Site Alterations And Materials,60273
http://statistics.data.gov.uk/id/local-authority/12UE,Huntingdonshire District Council,200433,JACOBS JACOBS,53278,13/09/2021,B310821,CT BAILIFF AUG NET,07/10/2021,0,391.05,391.05,N D R  Management,Debt Collection And Recovery Costs,62700
http://statistics.data.gov.uk/id/local-authority/12UE,Huntingdonshire District Council,200433,JACOBS JACOBS,53279,13/09/2021,B310821 VAT,CT BAILIFF AUG VAT,07/10/2021,0,1404.07,1404.07,VAT,VAT Input Tax,11727
http://statistics.data.gov.uk/id/local-authority/12UE,Huntingdonshire District Council,200462,KING BROS KING BROS,53870,01/09/2021,181015,HCP FOOD,07/10/2021,0,158.77,158.77,Hinchingbrooke Park Cafe,Catering Supplies,61900
http://statistics.data.gov.uk/id/local-authority/12UE,Huntingdonshire District Council,200462,KING BROS KING BROS,53870,01/09/2021,181015,HCP FOOD,07/10/2021,57.63,288.14,345.77,Hinchingbrooke Park Cafe,Catering Supplies,61900
http://statistics.data.gov.uk/id/local-authority/12UE,Huntingdonshire District Council,200462,KING BROS KING BROS,53721,09/09/2021,181512,HCP FOOD,07/10/2021,52.04,260.18,312.22,Hinchingbrooke Park Cafe,Catering Supplies,61900
http://statistics.data.gov.uk/id/local-authority/12UE,Huntingdonshire District Council,200462,KING BROS KING BROS,53721,09/09/2021,181512,HCP FOOD,07/10/2021,0,134.42,134.42,Hinchingbrooke Park Cafe,Catering Supplies,61900
http://statistics.data.gov.uk/id/local-authority/12UE,Huntingdonshire District Council,200462,KING BROS KING BROS,53722,15/09/2021,182587,HCP FOOD,07/10/2021,0,116.7,116.7,Hinchingbrooke Park Cafe,Catering Supplies,61900
http://statistics.data.gov.uk/id/local-authority/12UE,Huntingdonshire District Council,200462,KING BROS KING BROS,53722,15/09/2021,182587,HCP FOOD,07/10/2021,41.39,206.94,248.33,Hinchingbrooke Park Management,Catering Supplies,61900
http://statistics.data.gov.uk/id/local-authority/12UE,Huntingdonshire District Council,200462,KING BROS KING BROS,53870,01/09/2021,181015,HCP FOOD,07/10/2021,-0.01,0,-0.01,Finance,Over/Under VAT Rounding,68350
http://statistics.data.gov.uk/id/local-authority/12UE,Huntingdonshire District Council,200462,KING BROS KING BROS,53721,09/09/2021,181512,HCP FOOD,07/10/2021,-0.01,0,-0.01,Finance,Over/Under VAT Rounding,68350
http://statistics.data.gov.uk/id/local-authority/12UE,Huntingdonshire District Council,200462,KING BROS KING BROS,53722,15/09/2021,182587,HCP FOOD,07/10/2021,-0.01,0,-0.01,Finance,Over/Under VAT Rounding,68350
http://statistics.data.gov.uk/id/local-authority/12UE,Huntingdonshire District Council,200468,KONICA MINOLTA KONICA MINOLTA,54085,16/08/2021,1157218837,MAINT EQUIPM,07/10/2021,436.8,2184.01,2620.81,"Mfds - Local Print, Scan & Copy","Maintenance - Equipment, Furniture And Materials",61702
http://statistics.data.gov.uk/id/local-authority/12UE,Huntingdonshire District Council,200468,KONICA MINOLTA KONICA MINOLTA,54084,28/05/2021,1156296846,MAINT EQUIPM,07/10/2021,154,770.01,924.01,"Mfds - Local Print, Scan & Copy","Maintenance - Equipment, Furniture And Materials",61702
http://statistics.data.gov.uk/id/local-authority/12UE,Huntingdonshire District Council,200471,LACONS LACONS,53731,15/09/2021,860944,OLSI DRINKS,07/10/2021,102.78,513.89,616.67,OLSI - Burgess Bar,Bar Provisions,61905
http://statistics.data.gov.uk/id/local-authority/12UE,Huntingdonshire District Council,200471,LACONS LACONS,53458,15/09/2021,860990,OLSTI DRINKS,07/10/2021,144.12,720.58,864.7,OLSI - Burgess Hall,Bar Provisions,61905
http://statistics.data.gov.uk/id/local-authority/12UE,Huntingdonshire District Council,200471,LACONS LACONS,53461,13/09/2021,860604,OLSTI DRINKS,07/10/2021,98.65,493.27,591.92,OLSIO - Hospitality,Bar Provisions,61905
http://statistics.data.gov.uk/id/local-authority/12UE,Huntingdonshire District Council,200503,LONDON ADVICE SERVICES ALLIANCE (LASA) LONDON ADVICE SERVICES ALLIANCE (LASA),54050,30/09/2021,INV-1265,SUBSCRIPTION,07/10/2021,50,250,300,Housing Needs & Resources,Membership And Subscriptions,64800
http://statistics.data.gov.uk/id/local-authority/12UE,Huntingdonshire District Council,202629,Meristem Design,54186,27/09/2021,INV-1529,OPS QU-1398 2ND SI PARLET,07/10/2021,1896,9480,11376,Parklets,Consultancy Fees,62400
http://statistics.data.gov.uk/id/local-authority/12UE,Huntingdonshire District Council,201838,MONTAGU EVANS LLP,53369,16/09/2021,CAA220317,PROFESSIONAL FEE,07/10/2021,800,4000,4800,Commercial Investment Strategy,Consultancy Fees,62400
http://statistics.data.gov.uk/id/local-authority/12UE,Huntingdonshire District Council,200550,MORGAN HUNT PUBLIC UK LTD MORGAN HUNT PUBLIC UK LTD,53894,26/09/2021,1245293,REDACTED,07/10/2021,217.19,1085.95,1303.14,Benefits Management,Agency Staff,60011
http://statistics.data.gov.uk/id/local-authority/12UE,Huntingdonshire District Council,200550,MORGAN HUNT PUBLIC UK LTD MORGAN HUNT PUBLIC UK LTD,53892,26/09/2021,1245296,REDACTED,07/10/2021,257.14,1285.7,1542.84,Covid-19,Agency Staff,60011
http://statistics.data.gov.uk/id/local-authority/12UE,Huntingdonshire District Council,200550,MORGAN HUNT PUBLIC UK LTD MORGAN HUNT PUBLIC UK LTD,53891,26/09/2021,1245294,REDACTED,07/10/2021,220.8,1104,1324.8,Covid-19,Agency Staff,60011
http://statistics.data.gov.uk/id/local-authority/12UE,Huntingdonshire District Council,200550,MORGAN HUNT PUBLIC UK LTD MORGAN HUNT PUBLIC UK LTD,53893,26/09/2021,1245295,REDACTED,07/10/2021,201.48,1007.4,1208.88,Covid-19,Agency Staff,60011
http://statistics.data.gov.uk/id/local-authority/12UE,Huntingdonshire District Council,202688,NUTRIVEND LTD,54185,25/08/2021,112431,olsi drinks,07/10/2021,51.11,255.54,306.65,OLSI - Hospitality,Vending Materials,61907
http://statistics.data.gov.uk/id/local-authority/12UE,Huntingdonshire District Council,202077,PARK AVENUE RECRUITMENT LTD,54131,24/08/2021,11271,REDACTED,07/10/2021,340.4,1702,2042.4,Development Management,Agency Staff,60011
http://statistics.data.gov.uk/id/local-authority/12UE,Huntingdonshire District Council,202077,PARK AVENUE RECRUITMENT LTD,54132,31/08/2021,11409,REDACTED,07/10/2021,340.4,1702,2042.4,Development Management,Agency Staff,60011
http://statistics.data.gov.uk/id/local-authority/12UE,Huntingdonshire District Council,202077,PARK AVENUE RECRUITMENT LTD,54134,13/09/2021,11661,REDACTED,07/10/2021,340.4,1702,2042.4,Development Management,Agency Staff,60011
http://statistics.data.gov.uk/id/local-authority/12UE,Huntingdonshire District Council,202077,PARK AVENUE RECRUITMENT LTD,54133,07/09/2021,11548,REDACTED,07/10/2021,276,1380,1656,Development Management,Agency Staff,60011
http://statistics.data.gov.uk/id/local-authority/12UE,Huntingdonshire District Council,200605,PCF PCF,53467,10/09/2021,147852,IT SOFTWARE NOV21,07/10/2021,350.2,1751,2101.2,Cambridge City Business Case ,Ict Software,64071
http://statistics.data.gov.uk/id/local-authority/12UE,Huntingdonshire District Council,200605,PCF PCF,53468,10/09/2021,147851,MAINT EQUPIT,07/10/2021,79,395,474,Cambridge City Business Case ,"Maintenance - Equipment, Furniture And Materials",61702
http://statistics.data.gov.uk/id/local-authority/12UE,Huntingdonshire District Council,202515,PENTACO CONSTRUCTION LTD,54075,01/10/2021,P/2620,PFH CONSTRUCTION,07/10/2021,75923.55,379617.73,455541.28,Pathfinder House Decarbonisation Scheme,Site Alterations And Materials,60273
http://statistics.data.gov.uk/id/local-authority/12UE,Huntingdonshire District Council,200613,PETERBOROUGH CITY COUNCIL PETERBOROUGH CITY COUNCIL,53228,10/09/2021,180202,PROFESSIONAL SERVICE,07/10/2021,333.33,1666.67,2000,IMD Shared Service,Professional Services - General,62402
http://statistics.data.gov.uk/id/local-authority/12UE,Huntingdonshire District Council,200614,PHOENIX SOFTWARE LTD PHOENIX SOFTWARE LTD,53470,14/09/2021,OP/1908055,IT SOFTWARE,07/10/2021,138.6,693,831.6,3CICT NON STAFF HOLDING ACCOUNT,Ict Software,64071
http://statistics.data.gov.uk/id/local-authority/12UE,Huntingdonshire District Council,200614,PHOENIX SOFTWARE LTD PHOENIX SOFTWARE LTD,53470,14/09/2021,OP/1908055,IT SOFTWARE,07/10/2021,254.52,1272.6,1527.12,3CICT NON STAFF HOLDING ACCOUNT,Ict Software,64071
http://statistics.data.gov.uk/id/local-authority/12UE,Huntingdonshire District Council,200614,PHOENIX SOFTWARE LTD PHOENIX SOFTWARE LTD,53470,14/09/2021,OP/1908055,IT SOFTWARE,07/10/2021,1330.56,6652.8,7983.36,City Recoverable,Ict Software,64071
http://statistics.data.gov.uk/id/local-authority/12UE,Huntingdonshire District Council,200614,PHOENIX SOFTWARE LTD PHOENIX SOFTWARE LTD,53470,14/09/2021,OP/1908055,IT SOFTWARE,07/10/2021,127.26,636.3,763.56,City Recoverable,Ict Software,64071
http://statistics.data.gov.uk/id/local-authority/12UE,Huntingdonshire District Council,200614,PHOENIX SOFTWARE LTD PHOENIX SOFTWARE LTD,53470,14/09/2021,OP/1908055,IT SOFTWARE,07/10/2021,61.74,308.7,370.44,City Recoverable,Ict Software,64071
http://statistics.data.gov.uk/id/local-authority/12UE,Huntingdonshire District Council,200614,PHOENIX SOFTWARE LTD PHOENIX SOFTWARE LTD,53470,14/09/2021,OP/1908055,IT SOFTWARE,07/10/2021,109.22,546.08,655.3,City Recoverable,Ict Software,64071
http://statistics.data.gov.uk/id/local-authority/12UE,Huntingdonshire District Council,200614,PHOENIX SOFTWARE LTD PHOENIX SOFTWARE LTD,53470,14/09/2021,OP/1908055,IT SOFTWARE,07/10/2021,54.61,273.04,327.65,City Recoverable,Ict Software,64071
http://statistics.data.gov.uk/id/local-authority/12UE,Huntingdonshire District Council,200614,PHOENIX SOFTWARE LTD PHOENIX SOFTWARE LTD,53470,14/09/2021,OP/1908055,IT SOFTWARE,07/10/2021,763.56,3817.8,4581.36,HDC Recoverable,Ict Software,64071
http://statistics.data.gov.uk/id/local-authority/12UE,Huntingdonshire District Council,200614,PHOENIX SOFTWARE LTD PHOENIX SOFTWARE LTD,53470,14/09/2021,OP/1908055,IT SOFTWARE,07/10/2021,665.28,3326.4,3991.68,HDC Recoverable,Ict Software,64071
http://statistics.data.gov.uk/id/local-authority/12UE,Huntingdonshire District Council,200614,PHOENIX SOFTWARE LTD PHOENIX SOFTWARE LTD,53470,14/09/2021,OP/1908055,IT SOFTWARE,07/10/2021,73.1,365.52,438.62,HDC Recoverable,Ict Software,64071
http://statistics.data.gov.uk/id/local-authority/12UE,Huntingdonshire District Council,200614,PHOENIX SOFTWARE LTD PHOENIX SOFTWARE LTD,53470,14/09/2021,OP/1908055,IT SOFTWARE,07/10/2021,1829.52,9147.6,10977.12,SCDC Recoverable,Ict Software,64071
http://statistics.data.gov.uk/id/local-authority/12UE,Huntingdonshire District Council,200614,PHOENIX SOFTWARE LTD PHOENIX SOFTWARE LTD,53470,14/09/2021,OP/1908055,IT SOFTWARE,07/10/2021,2926.98,14634.9,17561.88,SCDC Recoverable,Ict Software,64071
http://statistics.data.gov.uk/id/local-authority/12UE,Huntingdonshire District Council,200615,PHS GROUP LTD PHS GROUP LTD,53204,10/09/2021,68532387,OLSTN CLEANING EQUIPT,07/10/2021,136.03,680.13,816.16,OLSN - Site & Centre Management,Hire - Equipment Furniture And Materials,61700
http://statistics.data.gov.uk/id/local-authority/12UE,Huntingdonshire District Council,201477,PLANNING PORTAL,53868,30/09/2021,PRF PP-09853121,PP-09953121 21/01158/CLED,07/10/2021,0,462,462,Dm Application Processing,Planning Applications Income,54100
http://statistics.data.gov.uk/id/local-authority/12UE,Huntingdonshire District Council,202309,RAMSEY NEIGHBOURHOODS TRUST,54113,15/09/2021,PO030320,5 MARKET EVENTS,07/10/2021,0,1000,1000,Welcome Back Fund,Consultancy Fees,62400
http://statistics.data.gov.uk/id/local-authority/12UE,Huntingdonshire District Council,200664,RAPID RESPONSE LOCKSMITHS RAPID RESPONSE LOCKSMITHS,53896,28/05/2021,1649,facilites locks,07/10/2021,50.5,252.5,303,Pathfinder House,Maintenance - Building,60201
http://statistics.data.gov.uk/id/local-authority/12UE,Huntingdonshire District Council,200673,RENT CONNECT RENT CONNECT,54117,01/10/2021,RC-HDC116,TA 1609-300921,07/10/2021,0,570,570,Homelessness,B&B Accommodation,64401
http://statistics.data.gov.uk/id/local-authority/12UE,Huntingdonshire District Council,200673,RENT CONNECT RENT CONNECT,54117,01/10/2021,RC-HDC116,TA 1609-300921,07/10/2021,0,675,675,Homelessness,B&B Accommodation,64401
http://statistics.data.gov.uk/id/local-authority/12UE,Huntingdonshire District Council,200673,RENT CONNECT RENT CONNECT,54117,01/10/2021,RC-HDC116,TA 1609-300921,07/10/2021,0,570,570,Homelessness,B&B Accommodation,64401
http://statistics.data.gov.uk/id/local-authority/12UE,Huntingdonshire District Council,200673,RENT CONNECT RENT CONNECT,54117,01/10/2021,RC-HDC116,TA 1609-300921,07/10/2021,0,600,600,Homelessness,B&B Accommodation,64401
http://statistics.data.gov.uk/id/local-authority/12UE,Huntingdonshire District Council,200673,RENT CONNECT RENT CONNECT,54117,01/10/2021,RC-HDC116,TA 1609-300921,07/10/2021,0,570,570,Homelessness,B&B Accommodation,64401
http://statistics.data.gov.uk/id/local-authority/12UE,Huntingdonshire District Council,200673,RENT CONNECT RENT CONNECT,54117,01/10/2021,RC-HDC116,TA 1609-300921,07/10/2021,0,424,424,Homelessness,B&B Accommodation,64401
http://statistics.data.gov.uk/id/local-authority/12UE,Huntingdonshire District Council,200673,RENT CONNECT RENT CONNECT,54117,01/10/2021,RC-HDC116,TA 1609-300921,07/10/2021,0,220,220,Homelessness,B&B Accommodation,64401
http://statistics.data.gov.uk/id/local-authority/12UE,Huntingdonshire District Council,200673,RENT CONNECT RENT CONNECT,54117,01/10/2021,RC-HDC116,TA 1609-300921,07/10/2021,0,220,220,Homelessness,B&B Accommodation,64401
http://statistics.data.gov.uk/id/local-authority/12UE,Huntingdonshire District Council,200698,ROYAL MAIL GROUP LTD ROYAL MAIL GROUP LTD,53512,09/09/2021,9063580376,POSTAGE&COURIER,07/10/2021,104.6,523,627.6,Benefits Management,Postage And Courier Services,64100
http://statistics.data.gov.uk/id/local-authority/12UE,Huntingdonshire District Council,200698,ROYAL MAIL GROUP LTD ROYAL MAIL GROUP LTD,53512,09/09/2021,9063580376,POSTAGE&COURIER,07/10/2021,87.81,439.05,526.86,Electoral Registration,Postage And Courier Services,64100
http://statistics.data.gov.uk/id/local-authority/12UE,Huntingdonshire District Council,200698,ROYAL MAIL GROUP LTD ROYAL MAIL GROUP LTD,53512,09/09/2021,9063580376,POSTAGE&COURIER,07/10/2021,150.03,750.12,900.15,Post Handling,Postage And Courier Services,64100
http://statistics.data.gov.uk/id/local-authority/12UE,Huntingdonshire District Council,202548,SAFFRON VANTAGE LTD,53598,24/09/2021,PRF TO CLEAR INCORRECT CREDIT,PRF sv incorrect credit,07/10/2021,893.12,4465.6,5358.72,Covid-19,Agency Staff,60011
http://statistics.data.gov.uk/id/local-authority/12UE,Huntingdonshire District Council,202548,SAFFRON VANTAGE LTD,54073,09/09/2021,815,CLEANING 050921,07/10/2021,99.2,496,595.2,Covid-19,Agency Staff,60011
http://statistics.data.gov.uk/id/local-authority/12UE,Huntingdonshire District Council,202548,SAFFRON VANTAGE LTD,54073,09/09/2021,815,CLEANING 050921,07/10/2021,49.6,248,297.6,Covid-19,Agency Staff,60011
http://statistics.data.gov.uk/id/local-authority/12UE,Huntingdonshire District Council,202548,SAFFRON VANTAGE LTD,54074,15/09/2021,838,CLEANING 120921,07/10/2021,124,620,744,Covid-19,Agency Staff,60011
http://statistics.data.gov.uk/id/local-authority/12UE,Huntingdonshire District Council,202548,SAFFRON VANTAGE LTD,53599,30/06/2021,9042 CREDI,REDACTED,07/10/2021,-124,-620,-744,Covid-19,Agency Staff,60011
http://statistics.data.gov.uk/id/local-authority/12UE,Huntingdonshire District Council,202548,SAFFRON VANTAGE LTD,53596,22/09/2021,848,waste staff 190921,07/10/2021,1433.69,7168.43,8602.12,Green Waste Collection,Agency Staff,60011
http://statistics.data.gov.uk/id/local-authority/12UE,Huntingdonshire District Council,202548,SAFFRON VANTAGE LTD,53925,29/09/2021,864,WASTE 260921,07/10/2021,1289.12,6445.6,7734.72,Green Waste Collection,Agency Staff,60011
http://statistics.data.gov.uk/id/local-authority/12UE,Huntingdonshire District Council,202548,SAFFRON VANTAGE LTD,53357,15/09/2021,820,WASTE CREW 120921,07/10/2021,1196.32,5981.6,7177.92,Recycling Collections,Agency Staff,60011
http://statistics.data.gov.uk/id/local-authority/12UE,Huntingdonshire District Council,202507,SELLICK PARTNERSHIP LTD,54078,04/10/2021,INV377227,REDACTED,07/10/2021,385,1925,2310,Finance,Agency Staff,60011
http://statistics.data.gov.uk/id/local-authority/12UE,Huntingdonshire District Council,202507,SELLICK PARTNERSHIP LTD,54118,27/09/2021,INV375964,REDACTED,07/10/2021,385,1925,2310,Finance,Agency Staff,60011
http://statistics.data.gov.uk/id/local-authority/12UE,Huntingdonshire District Council,202507,SELLICK PARTNERSHIP LTD,54123,27/08/2021,INV372012,REDACTED,07/10/2021,385,1925,2310,Finance,Agency Staff,60011
http://statistics.data.gov.uk/id/local-authority/12UE,Huntingdonshire District Council,202507,SELLICK PARTNERSHIP LTD,54125,13/09/2021,INV374103,REDACTED,07/10/2021,385,1925,2310,Finance,Agency Staff,60011
http://statistics.data.gov.uk/id/local-authority/12UE,Huntingdonshire District Council,202507,SELLICK PARTNERSHIP LTD,54121,03/08/2021,INV368328,REDACTED,07/10/2021,308,1540,1848,Finance,Agency Staff,60011
http://statistics.data.gov.uk/id/local-authority/12UE,Huntingdonshire District Council,202507,SELLICK PARTNERSHIP LTD,54124,06/09/2021,INV373091,REDACTED,07/10/2021,308,1540,1848,Finance,Agency Staff,60011
http://statistics.data.gov.uk/id/local-authority/12UE,Huntingdonshire District Council,202507,SELLICK PARTNERSHIP LTD,54119,26/07/2021,INV367141,REDACTED,07/10/2021,231,1155,1386,Finance,Agency Staff,60011
http://statistics.data.gov.uk/id/local-authority/12UE,Huntingdonshire District Council,202507,SELLICK PARTNERSHIP LTD,54122,16/08/2021,INV370156,REDACTED,07/10/2021,231,1155,1386,Finance,Agency Staff,60011
http://statistics.data.gov.uk/id/local-authority/12UE,Huntingdonshire District Council,202507,SELLICK PARTNERSHIP LTD,54120,27/07/2021,INV367319,REDACTED,07/10/2021,77,385,462,Finance,Agency Staff,60011
http://statistics.data.gov.uk/id/local-authority/12UE,Huntingdonshire District Council,202507,SELLICK PARTNERSHIP LTD,54156,02/08/2021,SIN405934,REDACTED,07/10/2021,1377.2,6886,8263.2,Finance,Staff Recruitment Costs,60116
http://statistics.data.gov.uk/id/local-authority/12UE,Huntingdonshire District Council,200718,SHOPSAFE LTD SHOPSAFE LTD,54024,01/09/2021,INV006161,ACCESS CHARGE ANNUAL,07/10/2021,72.6,363,435.6,Pathfinder House,Hire - Equipment Furniture And Materials,61700
http://statistics.data.gov.uk/id/local-authority/12UE,Huntingdonshire District Council,200725,SMI INT GROUP LTD SMI GROUP,53223,10/09/2021,INV939879,OPS WORK WEAR,07/10/2021,221.37,1106.84,1328.21,Covid-19,"Clothes, Uniform And Laundry",62000
http://statistics.data.gov.uk/id/local-authority/12UE,Huntingdonshire District Council,200737,SPORTMAX SPORTMAX,53399,15/09/2021,116292,OLSTN EQUIPTMENT,07/10/2021,0,69.5,69.5,OLSN - Site & Centre Management,Goods For Resale,61400
http://statistics.data.gov.uk/id/local-authority/12UE,Huntingdonshire District Council,200737,SPORTMAX SPORTMAX,53399,15/09/2021,116292,OLSTN EQUIPTMENT,07/10/2021,101.58,507.9,609.48,OLSN - Site & Centre Management,Goods For Resale,61400
http://statistics.data.gov.uk/id/local-authority/12UE,Huntingdonshire District Council,202399,SPRINGBOARD RESEARCH LTD,54044,25/08/2021,2015-27408,SUB FEE 2509-241221,07/10/2021,270,1350,1620,Market Towns,Subcontractors,62401
http://statistics.data.gov.uk/id/local-authority/12UE,Huntingdonshire District Council,200743,STAFFLINE GROUP STAFFLINE GROUP,53482,15/09/2021,123343,REFUSE WC 050921,07/10/2021,519.84,2599.19,3119.03,Domestic Waste Collection,Agency Staff,60011
http://statistics.data.gov.uk/id/local-authority/12UE,Huntingdonshire District Council,200743,STAFFLINE GROUP STAFFLINE GROUP,53480,15/09/2021,123339,GARDEN WC 050921,07/10/2021,226.69,1133.44,1360.13,Green Waste Collection,Agency Staff,60011
http://statistics.data.gov.uk/id/local-authority/12UE,Huntingdonshire District Council,200743,STAFFLINE GROUP STAFFLINE GROUP,53479,15/09/2021,123340,REDACTED,07/10/2021,109.52,547.6,657.12,Green Waste Collection,Agency Staff,60011
http://statistics.data.gov.uk/id/local-authority/12UE,Huntingdonshire District Council,200743,STAFFLINE GROUP STAFFLINE GROUP,53389,15/09/2021,123341,RECYCLING 050921,07/10/2021,133.95,669.76,803.71,Recycling Collections,Agency Staff,60011
http://statistics.data.gov.uk/id/local-authority/12UE,Huntingdonshire District Council,200745,STANNAH LTD Ref(20HU025) STANNAH LTD Ref(20HU025),53815,13/09/2021,1085345525,CHIA 2569889,07/10/2021,0,3517,3517,Disables Facilities Grants,Mandatory Grants,64601
http://statistics.data.gov.uk/id/local-authority/12UE,Huntingdonshire District Council,200746,STARLITE ROADSHOW STARLITE ROADSHOW,53730,26/09/2021,8542,OLSI 22.09.21,07/10/2021,0,800,800,OLSI - Burgess Hall,Maintenance - Building,60201
http://statistics.data.gov.uk/id/local-authority/12UE,Huntingdonshire District Council,202623,TAVCOM LTD,53926,24/06/2021,TAV-5932,LICENSE TRAINNING,07/10/2021,136,680,816,Cctv Huntingdonshire,Hotel And Other Accommodation Costs (Staff And Members),64400
http://statistics.data.gov.uk/id/local-authority/12UE,Huntingdonshire District Council,202623,TAVCOM LTD,53926,24/06/2021,TAV-5932,LICENSE TRAINNING,07/10/2021,230,1150,1380,Cctv Huntingdonshire,Staff Development And Training,60115
http://statistics.data.gov.uk/id/local-authority/12UE,Huntingdonshire District Council,200774,TERBERG MATEC UK LTD TERBERG MATEC UK LTD,53660,14/09/2021,96421499,OPS Terberg parts and materials,07/10/2021,93.83,469.15,562.98,Domestic Waste Collection,Vehicle Repairs And Maintenance,60904
http://statistics.data.gov.uk/id/local-authority/12UE,Huntingdonshire District Council,200774,TERBERG MATEC UK LTD TERBERG MATEC UK LTD,53762,13/09/2021,96412447,OPS VEHICLE,07/10/2021,183.7,918.52,1102.22,Recycling Collections,Vehicle Repairs And Maintenance,60904
http://statistics.data.gov.uk/id/local-authority/12UE,Huntingdonshire District Council,200774,TERBERG MATEC UK LTD TERBERG MATEC UK LTD,53759,15/09/2021,96412565,OPS PARTS,07/10/2021,51.65,258.24,309.89,Trade Refuse,Vehicle Repairs And Maintenance,60904
http://statistics.data.gov.uk/id/local-authority/12UE,Huntingdonshire District Council,201837,THE CAMBRIDGE HOUSING SOCIETY LTD,54171,05/10/2021,206103,HPP NOSP,07/10/2021,0,1500,1500,Homelessness,Homeless Prevention Payments,64403
http://statistics.data.gov.uk/id/local-authority/12UE,Huntingdonshire District Council,202698,THE ONE GROUP,53531,15/09/2021,99630,STAFF RECRUIT COSTS,07/10/2021,285.27,1426.35,1711.62,IMD Shared Service,Staff Recruitment Costs,60116
http://statistics.data.gov.uk/id/local-authority/12UE,Huntingdonshire District Council,200785,THE OYSTER PARTNERSHIP THE OYSTER PARTNERSHIP,53365,15/09/2021,10909892,REDACTED,07/10/2021,475,2375,2850,Property Development And Mgt,Agency Staff,60011
http://statistics.data.gov.uk/id/local-authority/12UE,Huntingdonshire District Council,200785,THE OYSTER PARTNERSHIP THE OYSTER PARTNERSHIP,53366,15/09/2021,10909891,REDACTED,07/10/2021,189.38,946.88,1136.26,Env Protection,Subcontractors,62401
http://statistics.data.gov.uk/id/local-authority/12UE,Huntingdonshire District Council,202540,THOMPSON AUDIO VISUAL COMMUNICATIONS LTD,53831,10/09/2021,21081,facilites car park,07/10/2021,80.17,400.84,481.01,MSCP (HUN),Maintenance - Building,60201
http://statistics.data.gov.uk/id/local-authority/12UE,Huntingdonshire District Council,202540,THOMPSON AUDIO VISUAL COMMUNICATIONS LTD,53831,10/09/2021,21081,facilites car park,07/10/2021,-0.01,0,-0.01,Finance,Over/Under VAT Rounding,68350
http://statistics.data.gov.uk/id/local-authority/12UE,Huntingdonshire District Council,202101,TRAINING SHED FAMILY LTD,54110,01/10/2021,INV-0095,MANAGE CHARGE 011021,07/10/2021,700,3500,4200,OLSIO - Site & Centre Management,Management Charge,60411
http://statistics.data.gov.uk/id/local-authority/12UE,Huntingdonshire District Council,202550,TREECONOMICS LTD,54000,03/08/2021,TRINV438HDC,PLANNING CANOPY COVER SURVEY,07/10/2021,1800,9000,10800,Development Management,Consultancy Fees,62400
http://statistics.data.gov.uk/id/local-authority/12UE,Huntingdonshire District Council,202060,TUDOR (UK) LTD T/A TUDOR ENVIRONMENTAL,53405,13/09/2021,IN0148276,GRAFFITI REMOVAL,07/10/2021,384.9,1924.5,2309.4,Street Cleansing,Equipment,61713
http://statistics.data.gov.uk/id/local-authority/12UE,Huntingdonshire District Council,200827,VIVID RESOURCING LIMITED VIVID RESOURCING LIMITED,53521,15/09/2021,65171,REDACTED,07/10/2021,435.34,2176.71,2612.05,Development Management,Agency Staff,60011
http://statistics.data.gov.uk/id/local-authority/12UE,Huntingdonshire District Council,200827,VIVID RESOURCING LIMITED VIVID RESOURCING LIMITED,53520,15/09/2021,65170,REDACTED,07/10/2021,1280,6400,7680,Market Towns,Agency Staff,60011
http://statistics.data.gov.uk/id/local-authority/12UE,Huntingdonshire District Council,200913,WAVE  ANGLIAN WATER BUSINESS,54062,26/09/2021,9519558,BARFORD ROAD 2608-250921,07/10/2021,0,1318.58,1318.58,OLSN - Swimming,Water And Sewerage,60302
http://statistics.data.gov.uk/id/local-authority/12UE,Huntingdonshire District Council,202539,WORKCHAIN LTD,53355,11/09/2021,160035,HGV CLASS 2 DRIVER WE 110921,07/10/2021,80.35,401.76,482.11,Domestic Waste Collection,Agency Staff,60011
http://statistics.data.gov.uk/id/local-authority/12UE,Huntingdonshire District Council,202726,WPD smart Metering Ltd,54211,06/08/2021,21056856,facilites 010221-310122,07/10/2021,50,250,300,Eastfield House,Electricity,60303
http://statistics.data.gov.uk/id/local-authority/12UE,Huntingdonshire District Council,202059,AQUASERVE MANAGEMENT LTD,54239,27/07/2021,AQMAN21024,AUDIT REF AQMAN00157,14/10/2021,419.79,2098.95,2518.74,Watercourses,Site Alterations And Materials,60273
http://statistics.data.gov.uk/id/local-authority/12UE,Huntingdonshire District Council,200811,ATOS IT SERVICES UK LTD UNIFY,53469,16/09/2021,5584372423,LINE RENTAL,14/10/2021,2614.48,13072.4,15686.88,Cambridge City Business Case ,Land Line Rental,64077
http://statistics.data.gov.uk/id/local-authority/12UE,Huntingdonshire District Council,200811,ATOS IT SERVICES UK LTD UNIFY,53469,16/09/2021,5584372423,LINE RENTAL,14/10/2021,1.4,7.01,8.41,Cambridge City Business Case ,Landline Call Charges,64082
http://statistics.data.gov.uk/id/local-authority/12UE,Huntingdonshire District Council,200075,B S GRAVES ELECTRICAL LTD B S GRAVES ELECTRICAL LTD,53540,16/09/2021,30208,8 MHP ELEC WORK,14/10/2021,150,750,900,Mobile Home Park - Electrical Works,Maintenance - Mechanical And Electrical,60203
http://statistics.data.gov.uk/id/local-authority/12UE,Huntingdonshire District Council,200075,B S GRAVES ELECTRICAL LTD B S GRAVES ELECTRICAL LTD,53514,16/09/2021,30209,5 MHP ELEC WORK,14/10/2021,110,550,660,Mobile Home Park - Electrical Works,Maintenance - Mechanical And Electrical,60203
http://statistics.data.gov.uk/id/local-authority/12UE,Huntingdonshire District Council,200075,B S GRAVES ELECTRICAL LTD B S GRAVES ELECTRICAL LTD,53515,17/09/2021,30211,11 MHP ELEC WORK,14/10/2021,110,550,660,Mobile Home Park - Electrical Works,Maintenance - Mechanical And Electrical,60203
http://statistics.data.gov.uk/id/local-authority/12UE,Huntingdonshire District Council,200075,B S GRAVES ELECTRICAL LTD B S GRAVES ELECTRICAL LTD,53539,21/09/2021,30214,4 MHP ELEC WORK,14/10/2021,110,550,660,Mobile Home Park - Electrical Works,Maintenance - Mechanical And Electrical,60203
http://statistics.data.gov.uk/id/local-authority/12UE,Huntingdonshire District Council,200107,BLACK WOLF SECURITY LTD BLACK WOLF SECURITY LTD,53543,22/09/2021,BW13786,PADLOCK&KEYS,14/10/2021,67.32,336.61,403.93,Paxton Pits,Materials,61709
http://statistics.data.gov.uk/id/local-authority/12UE,Huntingdonshire District Council,202004,BLOOM PROCUREMENT SERVICES LTD,54202,04/10/2021,SIN027160,PAY SCHED SEP21,14/10/2021,1200,6000,7200,OL Ramsey Decarbonisation Scheme,Consultancy Fees,62400
http://statistics.data.gov.uk/id/local-authority/12UE,Huntingdonshire District Council,200119,BRENNTAG UK LTD BRENNTAG UK LTD,53588,21/09/2021,38SI 3944808,OLSI SUGAR,14/10/2021,107.8,539,646.8,OLSI - Swimming,Chemicals,64000
http://statistics.data.gov.uk/id/local-authority/12UE,Huntingdonshire District Council,200119,BRENNTAG UK LTD BRENNTAG UK LTD,53588,21/09/2021,38SI 3944808,OLSI SUGAR,14/10/2021,1.37,6.83,8.2,OLSI - Swimming,Chemicals,64000
http://statistics.data.gov.uk/id/local-authority/12UE,Huntingdonshire District Council,200119,BRENNTAG UK LTD BRENNTAG UK LTD,53588,21/09/2021,38SI 3944808,OLSI SUGAR,14/10/2021,0,41,41,OLSI - Swimming,Chemicals,64000
http://statistics.data.gov.uk/id/local-authority/12UE,Huntingdonshire District Council,200119,BRENNTAG UK LTD BRENNTAG UK LTD,53593,21/09/2021,38SI3944810,olstn sugar,14/10/2021,131.4,657,788.4,OLSN - Swimming,Chemicals,64000
http://statistics.data.gov.uk/id/local-authority/12UE,Huntingdonshire District Council,200126,BRITISH GAS BUSINESS BRITISH GAS BUSINESS,54165,04/10/2021,954822700,EFH 01-200921,14/10/2021,81.19,405.96,487.15,Eastfield House,Gas,60305
http://statistics.data.gov.uk/id/local-authority/12UE,Huntingdonshire District Council,200126,BRITISH GAS BUSINESS BRITISH GAS BUSINESS,54129,04/10/2021,954822695,OLH DRY 01-300921,14/10/2021,116.65,583.23,699.88,OLH - Site & Centre Management,Gas,60305
http://statistics.data.gov.uk/id/local-authority/12UE,Huntingdonshire District Council,200126,BRITISH GAS BUSINESS BRITISH GAS BUSINESS,54128,04/10/2021,954822696,,14/10/2021,473.93,2369.62,2843.55,OLH - Swimming,Gas,60305
http://statistics.data.gov.uk/id/local-authority/12UE,Huntingdonshire District Council,200126,BRITISH GAS BUSINESS BRITISH GAS BUSINESS,54127,04/10/2021,954822698,OLSN DRY 01-300921,14/10/2021,12.8,256.05,268.85,OLSN - Site & Centre Management,Gas,60305
http://statistics.data.gov.uk/id/local-authority/12UE,Huntingdonshire District Council,200126,BRITISH GAS BUSINESS BRITISH GAS BUSINESS,54164,04/10/2021,954822699,PFH 010-300921,14/10/2021,12.82,256.31,269.13,Pathfinder House,Gas,60305
http://statistics.data.gov.uk/id/local-authority/12UE,Huntingdonshire District Council,200133,BSG PROPERTY SERVICES LTD BSG PROPERTY SERVICES LTD,54396,30/05/2021,S47647,SAFETY ADAPTIONS,14/10/2021,0,9164.4,9164.4,Disables Facilities Grants,Mandatory Grants,64601
http://statistics.data.gov.uk/id/local-authority/12UE,Huntingdonshire District Council,200133,BSG PROPERTY SERVICES LTD BSG PROPERTY SERVICES LTD,53349,18/09/2021,S48742,LEVEL ACCESS SHOWER,14/10/2021,0,6030,6030,Disables Facilities Grants,Mandatory Grants,64601
http://statistics.data.gov.uk/id/local-authority/12UE,Huntingdonshire District Council,200158,CAMBRIDGESHIRE CHAMBERS OF COMMERCE CAMBRIDGESHIRE CHAMBERS OF COMMERCE,54221,03/09/2021,194225,SUBS 1YR 201022,14/10/2021,132.2,661,793.2,Business & Enterprise Support,Membership And Subscriptions,64800
http://statistics.data.gov.uk/id/local-authority/12UE,Huntingdonshire District Council,200511.01,CHORUS HOMES LTD (PRIVATE RENTS),54376,08/10/2021,649748,HPP CLEAR RENT ARREARS,14/10/2021,0,1500,1500,Homelessness,Homeless Prevention Payments,64403
http://statistics.data.gov.uk/id/local-authority/12UE,Huntingdonshire District Council,201012,COACH & HORSES,54356,10/10/2021,509,LODGING 04-101021,14/10/2021,39.38,315,354.38,Homelessness,B&B Accommodation,64401
http://statistics.data.gov.uk/id/local-authority/12UE,Huntingdonshire District Council,201012,COACH & HORSES,54356,10/10/2021,509,LODGING 04-101021,14/10/2021,18.75,150,168.75,Homelessness,B&B Accommodation,64401
http://statistics.data.gov.uk/id/local-authority/12UE,Huntingdonshire District Council,200900,CRAEMER UK LTD,54226,26/08/2021,3038127,REFUSE CONTAINERS,14/10/2021,2558.4,12792,15350.4,Wheeled Bins,Refuse Containers/Litter Bins,61200
http://statistics.data.gov.uk/id/local-authority/12UE,Huntingdonshire District Council,202680,REDACTED,54322,08/09/2021,FF038/2122,WILDLIFE WALKS,14/10/2021,0,495,495,Welcome Back Fund,Consultancy Fees,62400
http://statistics.data.gov.uk/id/local-authority/12UE,Huntingdonshire District Council,200363,Drax Energy Solutions Limited Drax Energy Solutions Limited,54325,07/10/2021,IN1105512411,ELEC SEP21,14/10/2021,499.9,2499.51,2999.41,Eastfield House,Electricity,60303
http://statistics.data.gov.uk/id/local-authority/12UE,Huntingdonshire District Council,200363,Drax Energy Solutions Limited Drax Energy Solutions Limited,53131,09/09/2021,TO CORRECT 1001282031 MISPAID,to correct mispaid credit note,14/10/2021,0,805.66,805.66,Finance,Electricity,60303
http://statistics.data.gov.uk/id/local-authority/12UE,Huntingdonshire District Council,200363,Drax Energy Solutions Limited Drax Energy Solutions Limited,54297,07/10/2021,IN1105512410,ELEC 10-300921,14/10/2021,418.81,2094.03,2512.84,OLH - Site & Centre Management,Electricity,60303
http://statistics.data.gov.uk/id/local-authority/12UE,Huntingdonshire District Council,200363,Drax Energy Solutions Limited Drax Energy Solutions Limited,53129,09/09/2021,TO CORRECT CN10012820,Correction of mispaid credit,14/10/2021,938.96,4694.8,5633.76,OLSI - Site & Centre Management,Electricity,60303
http://statistics.data.gov.uk/id/local-authority/12UE,Huntingdonshire District Council,200363,Drax Energy Solutions Limited Drax Energy Solutions Limited,54299,07/10/2021,IN1105512414,OLSI 01-300921,14/10/2021,893.33,4466.62,5359.95,OLSI - Site & Centre Management,Electricity,60303
http://statistics.data.gov.uk/id/local-authority/12UE,Huntingdonshire District Council,200363,Drax Energy Solutions Limited Drax Energy Solutions Limited,54298,07/10/2021,IN1105512413,OCOMP 01-300921,14/10/2021,449.01,2245.06,2694.07,OLSIO - Site & Centre Management,Electricity,60303
http://statistics.data.gov.uk/id/local-authority/12UE,Huntingdonshire District Council,200363,Drax Energy Solutions Limited Drax Energy Solutions Limited,54295,07/10/2021,IN1105512408,ELEC BILL 01-300821,14/10/2021,1234.12,6170.62,7404.74,OLSN - Swimming,Electricity,60303
http://statistics.data.gov.uk/id/local-authority/12UE,Huntingdonshire District Council,200363,Drax Energy Solutions Limited Drax Energy Solutions Limited,54296,07/10/2021,IN1105512409,ELEC OLSN 01-300921,14/10/2021,1177.18,5885.89,7063.07,OLSN - Swimming,Electricity,60303
http://statistics.data.gov.uk/id/local-authority/12UE,Huntingdonshire District Council,200363,Drax Energy Solutions Limited Drax Energy Solutions Limited,53133,09/09/2021,2N10012820,OLSN CREDIT,14/10/2021,-267.45,-1337.23,-1604.68,OLSN - Swimming,Electricity,60303
http://statistics.data.gov.uk/id/local-authority/12UE,Huntingdonshire District Council,200363,Drax Energy Solutions Limited Drax Energy Solutions Limited,53132,09/09/2021,CN10012822,OLSI JULY 21 CREDIT,14/10/2021,-1072.13,-5360.65,-6432.78,OLSN - Swimming,Electricity,60303
http://statistics.data.gov.uk/id/local-authority/12UE,Huntingdonshire District Council,200363,Drax Energy Solutions Limited Drax Energy Solutions Limited,54334,07/10/2021,INV1105512414,ELEC  01-300921,14/10/2021,1337.57,6687.83,8025.4,Pathfinder House,Electricity,60303
http://statistics.data.gov.uk/id/local-authority/12UE,Huntingdonshire District Council,200255,EAST OF ENGLAND LGA EAST OF ENGLAND LGA,54348,08/09/2021,1002045,LGA SUB 21/22,14/10/2021,1823.81,9119.06,10942.87,Committee Management,Membership And Subscriptions,64800
http://statistics.data.gov.uk/id/local-authority/12UE,Huntingdonshire District Council,202236,EASTFIELD GUESTHOUSE LTD,54441,11/10/2021,HUN0119,LODGING 04-101021,14/10/2021,7.5,60,67.5,Homelessness,B&B Accommodation,64401
http://statistics.data.gov.uk/id/local-authority/12UE,Huntingdonshire District Council,202236,EASTFIELD GUESTHOUSE LTD,54441,11/10/2021,HUN0119,LODGING 04-101021,14/10/2021,30,240,270,Homelessness,B&B Accommodation,64401
http://statistics.data.gov.uk/id/local-authority/12UE,Huntingdonshire District Council,202236,EASTFIELD GUESTHOUSE LTD,54441,11/10/2021,HUN0119,LODGING 04-101021,14/10/2021,22.5,180,202.5,Homelessness,B&B Accommodation,64401
http://statistics.data.gov.uk/id/local-authority/12UE,Huntingdonshire District Council,202236,EASTFIELD GUESTHOUSE LTD,54438,08/10/2021,HUN0115,LODGING 27-300921,14/10/2021,12,240,252,Homelessness,B&B Accommodation,64401
http://statistics.data.gov.uk/id/local-authority/12UE,Huntingdonshire District Council,202236,EASTFIELD GUESTHOUSE LTD,54438,08/10/2021,HUN0115,LODGING 27-300921,14/10/2021,12,240,252,Homelessness,B&B Accommodation,64401
http://statistics.data.gov.uk/id/local-authority/12UE,Huntingdonshire District Council,202236,EASTFIELD GUESTHOUSE LTD,54439,08/10/2021,HUN0117,LODGING 01-031021,14/10/2021,22.5,180,202.5,Homelessness,B&B Accommodation,64401
http://statistics.data.gov.uk/id/local-authority/12UE,Huntingdonshire District Council,202236,EASTFIELD GUESTHOUSE LTD,54441,11/10/2021,HUN0119,LODGING 04-101021,14/10/2021,52.5,420,472.5,Homelessness,B&B Accommodation,64401
http://statistics.data.gov.uk/id/local-authority/12UE,Huntingdonshire District Council,202236,EASTFIELD GUESTHOUSE LTD,54438,08/10/2021,HUN0115,LODGING 27-300921,14/10/2021,12,240,252,Homelessness,B&B Accommodation,64401
http://statistics.data.gov.uk/id/local-authority/12UE,Huntingdonshire District Council,202236,EASTFIELD GUESTHOUSE LTD,54439,08/10/2021,HUN0117,LODGING 01-031021,14/10/2021,22.5,180,202.5,Homelessness,B&B Accommodation,64401
http://statistics.data.gov.uk/id/local-authority/12UE,Huntingdonshire District Council,202236,EASTFIELD GUESTHOUSE LTD,54441,11/10/2021,HUN0119,LODGING 04-101021,14/10/2021,52.5,420,472.5,Homelessness,B&B Accommodation,64401
http://statistics.data.gov.uk/id/local-authority/12UE,Huntingdonshire District Council,202236,EASTFIELD GUESTHOUSE LTD,54438,08/10/2021,HUN0115,LODGING 27-300921,14/10/2021,12,240,252,Homelessness,B&B Accommodation,64401
http://statistics.data.gov.uk/id/local-authority/12UE,Huntingdonshire District Council,202236,EASTFIELD GUESTHOUSE LTD,54439,08/10/2021,HUN0117,LODGING 01-031021,14/10/2021,22.5,180,202.5,Homelessness,B&B Accommodation,64401
http://statistics.data.gov.uk/id/local-authority/12UE,Huntingdonshire District Council,202236,EASTFIELD GUESTHOUSE LTD,54441,11/10/2021,HUN0119,LODGING 04-101021,14/10/2021,52.5,420,472.5,Homelessness,B&B Accommodation,64401
http://statistics.data.gov.uk/id/local-authority/12UE,Huntingdonshire District Council,202236,EASTFIELD GUESTHOUSE LTD,54438,08/10/2021,HUN0115,LODGING 27-300921,14/10/2021,12,240,252,Homelessness,B&B Accommodation,64401
http://statistics.data.gov.uk/id/local-authority/12UE,Huntingdonshire District Council,202236,EASTFIELD GUESTHOUSE LTD,54439,08/10/2021,HUN0117,LODGING 01-031021,14/10/2021,22.5,180,202.5,Homelessness,B&B Accommodation,64401
http://statistics.data.gov.uk/id/local-authority/12UE,Huntingdonshire District Council,202236,EASTFIELD GUESTHOUSE LTD,54392,21/09/2021,HUN0110 2,LODGING 13-190921,14/10/2021,3.06,61.27,64.33,Homelessness,B&B Accommodation,64401
http://statistics.data.gov.uk/id/local-authority/12UE,Huntingdonshire District Council,202236,EASTFIELD GUESTHOUSE LTD,54441,11/10/2021,HUN0119,LODGING 04-101021,14/10/2021,30,240,270,Homelessness,B&B Accommodation,64401
http://statistics.data.gov.uk/id/local-authority/12UE,Huntingdonshire District Council,202236,EASTFIELD GUESTHOUSE LTD,54438,08/10/2021,HUN0115,LODGING 27-300921,14/10/2021,12,240,252,Homelessness,B&B Accommodation,64401
http://statistics.data.gov.uk/id/local-authority/12UE,Huntingdonshire District Council,202236,EASTFIELD GUESTHOUSE LTD,54439,08/10/2021,HUN0117,LODGING 01-031021,14/10/2021,22.5,180,202.5,Homelessness,B&B Accommodation,64401
http://statistics.data.gov.uk/id/local-authority/12UE,Huntingdonshire District Council,202236,EASTFIELD GUESTHOUSE LTD,54392,21/09/2021,HUN0110 2,LODGING 13-190921,14/10/2021,21.44,428.9,450.34,Homelessness,B&B Accommodation,64401
http://statistics.data.gov.uk/id/local-authority/12UE,Huntingdonshire District Council,202236,EASTFIELD GUESTHOUSE LTD,54392,21/09/2021,HUN0110 2,LODGING 13-190921,14/10/2021,3.06,61.27,64.33,Homelessness,B&B Accommodation,64401
http://statistics.data.gov.uk/id/local-authority/12UE,Huntingdonshire District Council,202236,EASTFIELD GUESTHOUSE LTD,54392,21/09/2021,HUN0110 2,LODGING 13-190921,14/10/2021,18.38,367.62,386,Homelessness,B&B Accommodation,64401
http://statistics.data.gov.uk/id/local-authority/12UE,Huntingdonshire District Council,202236,EASTFIELD GUESTHOUSE LTD,54392,21/09/2021,HUN0110 2,LODGING 13-190921,14/10/2021,6.13,122.54,128.67,Homelessness,B&B Accommodation,64401
http://statistics.data.gov.uk/id/local-authority/12UE,Huntingdonshire District Council,202236,EASTFIELD GUESTHOUSE LTD,54441,11/10/2021,HUN0119,LODGING 04-101021,14/10/2021,52.5,420,472.5,Homelessness,B&B Accommodation,64401
http://statistics.data.gov.uk/id/local-authority/12UE,Huntingdonshire District Council,202236,EASTFIELD GUESTHOUSE LTD,54392,21/09/2021,HUN0110 2,LODGING 13-190921,14/10/2021,21.44,428.89,450.33,Homelessness,B&B Accommodation,64401
http://statistics.data.gov.uk/id/local-authority/12UE,Huntingdonshire District Council,202236,EASTFIELD GUESTHOUSE LTD,54439,08/10/2021,HUN0117,LODGING 01-031021,14/10/2021,22.5,180,202.5,Homelessness,B&B Accommodation,64401
http://statistics.data.gov.uk/id/local-authority/12UE,Huntingdonshire District Council,202236,EASTFIELD GUESTHOUSE LTD,54392,21/09/2021,HUN0110 2,LODGING 13-190921,14/10/2021,21.44,428.89,450.33,Homelessness,B&B Accommodation,64401
http://statistics.data.gov.uk/id/local-authority/12UE,Huntingdonshire District Council,202236,EASTFIELD GUESTHOUSE LTD,54440,08/10/2021,HUN0116,LODGING 01-031021,14/10/2021,32.5,260,292.5,Homelessness,B&B Accommodation,64401
http://statistics.data.gov.uk/id/local-authority/12UE,Huntingdonshire District Council,202236,EASTFIELD GUESTHOUSE LTD,54441,11/10/2021,HUN0119,LODGING 04-101021,14/10/2021,52.5,420,472.5,Homelessness,B&B Accommodation,64401
http://statistics.data.gov.uk/id/local-authority/12UE,Huntingdonshire District Council,202236,EASTFIELD GUESTHOUSE LTD,54438,08/10/2021,HUN0115,LODGING 27-300921,14/10/2021,12,240,252,Homelessness,B&B Accommodation,64401
http://statistics.data.gov.uk/id/local-authority/12UE,Huntingdonshire District Council,202236,EASTFIELD GUESTHOUSE LTD,54439,08/10/2021,HUN0117,LODGING 01-031021,14/10/2021,22.5,180,202.5,Homelessness,B&B Accommodation,64401
http://statistics.data.gov.uk/id/local-authority/12UE,Huntingdonshire District Council,202236,EASTFIELD GUESTHOUSE LTD,54441,11/10/2021,HUN0119,LODGING 04-101021,14/10/2021,22.5,180,202.5,Homelessness,B&B Accommodation,64401
http://statistics.data.gov.uk/id/local-authority/12UE,Huntingdonshire District Council,202236,EASTFIELD GUESTHOUSE LTD,54438,08/10/2021,HUN0115,LODGING 27-300921,14/10/2021,12,240,252,Homelessness,B&B Accommodation,64401
http://statistics.data.gov.uk/id/local-authority/12UE,Huntingdonshire District Council,202236,EASTFIELD GUESTHOUSE LTD,54439,08/10/2021,HUN0117,LODGING 01-031021,14/10/2021,22.5,180,202.5,Homelessness,B&B Accommodation,64401
http://statistics.data.gov.uk/id/local-authority/12UE,Huntingdonshire District Council,202236,EASTFIELD GUESTHOUSE LTD,54441,11/10/2021,HUN0119,LODGING 04-101021,14/10/2021,52.5,420,472.5,Homelessness,B&B Accommodation,64401
http://statistics.data.gov.uk/id/local-authority/12UE,Huntingdonshire District Council,202236,EASTFIELD GUESTHOUSE LTD,54438,08/10/2021,HUN0115,LODGING 27-300921,14/10/2021,12,240,252,Homelessness,B&B Accommodation,64401
http://statistics.data.gov.uk/id/local-authority/12UE,Huntingdonshire District Council,202236,EASTFIELD GUESTHOUSE LTD,54439,08/10/2021,HUN0117,LODGING 01-031021,14/10/2021,22.5,180,202.5,Homelessness,B&B Accommodation,64401
http://statistics.data.gov.uk/id/local-authority/12UE,Huntingdonshire District Council,202236,EASTFIELD GUESTHOUSE LTD,54392,21/09/2021,HUN0110 2,LODGING 13-190921,14/10/2021,6.13,122.54,128.67,Homelessness,B&B Accommodation,64401
http://statistics.data.gov.uk/id/local-authority/12UE,Huntingdonshire District Council,202236,EASTFIELD GUESTHOUSE LTD,54441,11/10/2021,HUN0119,LODGING 04-101021,14/10/2021,45,360,405,Homelessness,B&B Accommodation,64401
http://statistics.data.gov.uk/id/local-authority/12UE,Huntingdonshire District Council,200262,EGBERT H TAYLOR AND CO LTD EGBERT H TAYLOR AND CO LTD,53675,22/09/2021,INV000018420,OPS LID LIGHT BLUE,14/10/2021,501.2,2506,3007.2,Wheeled Bins,Refuse Containers/Litter Bins,61200
http://statistics.data.gov.uk/id/local-authority/12UE,Huntingdonshire District Council,200262,EGBERT H TAYLOR AND CO LTD EGBERT H TAYLOR AND CO LTD,53675,22/09/2021,INV000018420,OPS LID LIGHT BLUE,14/10/2021,30.5,152.5,183,Wheeled Bins,Refuse Containers/Litter Bins,61200
http://statistics.data.gov.uk/id/local-authority/12UE,Huntingdonshire District Council,200278,E-ON ENERGY E-ON ENERGY,54410,02/10/2021,H1A52C140D,BUS SHELTER 0107-300921,14/10/2021,28.25,564.98,593.23,Bus Shelters,Electricity,60303
http://statistics.data.gov.uk/id/local-authority/12UE,Huntingdonshire District Council,200278,E-ON ENERGY E-ON ENERGY,54412,02/10/2021,H1A52C1BF5,TICKET MACHINE 0107-300921,14/10/2021,23.53,470.6,494.13,Car Park Management,Electricity,60303
http://statistics.data.gov.uk/id/local-authority/12UE,Huntingdonshire District Council,200278,E-ON ENERGY E-ON ENERGY,54411,02/10/2021,H1A52C13CD,UNMETERED CCTV,14/10/2021,327.88,1639.4,1967.28,Cctv Shared Service Hosting,Electricity,60303
http://statistics.data.gov.uk/id/local-authority/12UE,Huntingdonshire District Council,200278,E-ON ENERGY E-ON ENERGY,54175,02/10/2021,H1A5299783,PFH ELEC 0109-300921,14/10/2021,55.46,1109.18,1164.64,Mobile Home Park,Electricity,60303
http://statistics.data.gov.uk/id/local-authority/12UE,Huntingdonshire District Council,200278,E-ON ENERGY E-ON ENERGY,54210,03/10/2021,H1A53B4D04,OLH WET SEP21,14/10/2021,181.5,907.51,1089.01,OLH - Swimming,Electricity,60303
http://statistics.data.gov.uk/id/local-authority/12UE,Huntingdonshire District Council,200278,E-ON ENERGY E-ON ENERGY,54209,02/10/2021,H1A5293C76,OLR SEP21,14/10/2021,471.72,2358.59,2830.31,OLR - Site & Centre Management,Electricity,60303
http://statistics.data.gov.uk/id/local-authority/12UE,Huntingdonshire District Council,200278,E-ON ENERGY E-ON ENERGY,54408,02/10/2021,H1A52C13F7,FOOTPATH 0107-300921,14/10/2021,17.36,347.2,364.56,Parks & Open Spaces,Electricity,60303
http://statistics.data.gov.uk/id/local-authority/12UE,Huntingdonshire District Council,201657,EYNESBURY PLANT HIRE CO LTD,54346,12/06/2021,INV67606,SWEEPER HIRE JUN21,14/10/2021,275,1375,1650,Covid-19,Vehicle Hire,60909
http://statistics.data.gov.uk/id/local-authority/12UE,Huntingdonshire District Council,200287,F P SMITH MOTORS LTD F P SMITH MOTORS LTD,53842,17/09/2021,33125722,OPS PARTS,14/10/2021,58.34,291.69,350.03,Grounds Maintenance,Vehicle Repairs And Maintenance,60904
http://statistics.data.gov.uk/id/local-authority/12UE,Huntingdonshire District Council,202488,FILCRIS LTD,53544,20/09/2021,49905,MATERIALS,14/10/2021,386.31,1931.57,2317.88,Paxton Pits,Materials,61709
http://statistics.data.gov.uk/id/local-authority/12UE,Huntingdonshire District Council,200311,FREETHS  LLP FREETHS  LLP,54213,30/06/2021,252256,LEGAL FEE,14/10/2021,991.2,4956,5947.2,Corporate Director (Delivery),Legal Fees,63200
http://statistics.data.gov.uk/id/local-authority/12UE,Huntingdonshire District Council,200311,FREETHS  LLP FREETHS  LLP,54214,30/07/2021,257683,LEGAL FEES,14/10/2021,496.8,2484,2980.8,Corporate Director (Delivery),Legal Fees,63200
http://statistics.data.gov.uk/id/local-authority/12UE,Huntingdonshire District Council,200311,FREETHS  LLP FREETHS  LLP,54216,27/08/2021,261799,LEGAL FEES,14/10/2021,74.7,373.5,448.2,Corporate Director (Delivery),Legal Fees,63200
http://statistics.data.gov.uk/id/local-authority/12UE,Huntingdonshire District Council,200325,GALLAGHER BASSETT LTD GALLAGHER BASSETT  LTD,54416,07/10/2021,HDC0034,CLAIMS FUND TOP UP,14/10/2021,0,4.34,4.34,Insurance Administration,Bank Charges,62200
http://statistics.data.gov.uk/id/local-authority/12UE,Huntingdonshire District Council,200325,GALLAGHER BASSETT LTD GALLAGHER BASSETT  LTD,54416,07/10/2021,HDC0034,CLAIMS FUND TOP UP,14/10/2021,0,620.18,620.18,Parks & Open Spaces,Insurance Excess,63009
http://statistics.data.gov.uk/id/local-authority/12UE,Huntingdonshire District Council,200325,GALLAGHER BASSETT LTD GALLAGHER BASSETT  LTD,54416,07/10/2021,HDC0034,CLAIMS FUND TOP UP,14/10/2021,0,1494,1494,Parks & Open Spaces,Insurance Excess,63009
http://statistics.data.gov.uk/id/local-authority/12UE,Huntingdonshire District Council,200325,GALLAGHER BASSETT LTD GALLAGHER BASSETT  LTD,54416,07/10/2021,HDC0034,CLAIMS FUND TOP UP,14/10/2021,0,1500,1500,Parks & Open Spaces,Insurance Excess,63009
http://statistics.data.gov.uk/id/local-authority/12UE,Huntingdonshire District Council,200344,GLOBAL RADIO SERVICES LTD GLOBAL RADIO SERVICES LTD,54335,30/04/2021,C-INV000844,STREETLINER TRAIN 0305-300521,14/10/2021,224,1120,1344,One Leisure Support Team,"Advertising, Publicity And Marketing",62005
http://statistics.data.gov.uk/id/local-authority/12UE,Huntingdonshire District Council,200344,GLOBAL RADIO SERVICES LTD GLOBAL RADIO SERVICES LTD,54337,31/08/2021,C-INV036730,STREETLINER TRAIN 3008-101021,14/10/2021,176.4,882,1058.4,One Leisure Support Team,"Advertising, Publicity And Marketing",62005
http://statistics.data.gov.uk/id/local-authority/12UE,Huntingdonshire District Council,200344,GLOBAL RADIO SERVICES LTD GLOBAL RADIO SERVICES LTD,54336,31/05/2021,C-INV010875,STREETLINER TRAIN 0305-300521,14/10/2021,77.8,389,466.8,One Leisure Support Team,"Advertising, Publicity And Marketing",62005
http://statistics.data.gov.uk/id/local-authority/12UE,Huntingdonshire District Council,201229,Great Staughton Parish Council,54006,04/10/2021,CIL PAYMENT,CIL MONEY STREET LIGHT,14/10/2021,0,1072.5,1072.5,Community Infrastructure,Grants And Contributions,64600
http://statistics.data.gov.uk/id/local-authority/12UE,Huntingdonshire District Council,201229,Great Staughton Parish Council,54006,04/10/2021,CIL PAYMENT,CIL MONEY STREET LIGHT,14/10/2021,0,0,0,VAT,VAT Input Tax,11727
http://statistics.data.gov.uk/id/local-authority/12UE,Huntingdonshire District Council,200462,KING BROS KING BROS,53814,22/09/2021,183377,HCP FOOD,14/10/2021,0,159.41,159.41,Hinchingbrooke Park Cafe,Catering Supplies,61900
http://statistics.data.gov.uk/id/local-authority/12UE,Huntingdonshire District Council,200462,KING BROS KING BROS,53814,22/09/2021,183377,HCP FOOD,14/10/2021,68.07,340.36,408.43,Hinchingbrooke Park Cafe,Catering Supplies,61900
http://statistics.data.gov.uk/id/local-authority/12UE,Huntingdonshire District Council,200515,M & N VEHICLE SERVICES M & N VEHICLE SERVICES,53863,20/09/2021,45183,ops mot prep,14/10/2021,327.49,1637.45,1964.94,Recycling Collections,Vehicle Maintenance - External,60921
http://statistics.data.gov.uk/id/local-authority/12UE,Huntingdonshire District Council,200515,M & N VEHICLE SERVICES M & N VEHICLE SERVICES,53863,20/09/2021,45183,ops mot prep,14/10/2021,0,113,113,Recycling Collections,Vehicle Maintenance - External,60921
http://statistics.data.gov.uk/id/local-authority/12UE,Huntingdonshire District Council,200516,M WATSON CONSTRUCTION LTD M WATSON CONSTRUCTION LTD,54377,30/07/2021,25065,ACCESS DOOR FIT,14/10/2021,0,1944.26,1944.26,Disables Facilities Grants,Mandatory Grants,64601
http://statistics.data.gov.uk/id/local-authority/12UE,Huntingdonshire District Council,202450,MANCHETTS PB LTD,54102,17/09/2021,21.21.010619,REPAIRS,14/10/2021,158.88,794.42,953.3,Domestic Waste Collection,Vehicle Maintenance - External,60921
http://statistics.data.gov.uk/id/local-authority/12UE,Huntingdonshire District Council,202462,MARSH LTD,54417,15/09/2021,7409723,MDBI INSURE 010721-300622,14/10/2021,0,104207.41,104207.41,Insurance Buildings,Premises Insurance Premiums,60600
http://statistics.data.gov.uk/id/local-authority/12UE,Huntingdonshire District Council,202462,MARSH LTD,54417,15/09/2021,7409723,MDBI INSURE 010721-300622,14/10/2021,0,27292.81,27292.81,Insurance Buildings,Premises Insurance Terrorism,60602
http://statistics.data.gov.uk/id/local-authority/12UE,Huntingdonshire District Council,200927,MEDIA IMAGING SOLUTIONS,54344,07/10/2021,INV000884,PR PHOTOS RAMSEY OCT21,14/10/2021,50,250,300,One Leisure Support Team,"Advertising, Publicity And Marketing",62005
http://statistics.data.gov.uk/id/local-authority/12UE,Huntingdonshire District Council,200550,MORGAN HUNT PUBLIC UK LTD MORGAN HUNT PUBLIC UK LTD,54273,03/10/2021,1246067,REDACTED,14/10/2021,232.48,1162.42,1394.9,Benefits Management,Agency Staff,60011
http://statistics.data.gov.uk/id/local-authority/12UE,Huntingdonshire District Council,200550,MORGAN HUNT PUBLIC UK LTD MORGAN HUNT PUBLIC UK LTD,54276,03/10/2021,1246070,REDACTED,14/10/2021,245.18,1225.9,1471.08,Covid-19,Agency Staff,60011
http://statistics.data.gov.uk/id/local-authority/12UE,Huntingdonshire District Council,200550,MORGAN HUNT PUBLIC UK LTD MORGAN HUNT PUBLIC UK LTD,54275,03/10/2021,1246068,REDACTED,14/10/2021,220.8,1104,1324.8,Covid-19,Agency Staff,60011
http://statistics.data.gov.uk/id/local-authority/12UE,Huntingdonshire District Council,200550,MORGAN HUNT PUBLIC UK LTD MORGAN HUNT PUBLIC UK LTD,54274,03/10/2021,1246069,REDACTED,14/10/2021,195.96,979.8,1175.76,Covid-19,Agency Staff,60011
http://statistics.data.gov.uk/id/local-authority/12UE,Huntingdonshire District Council,202688,NUTRIVEND LTD,53498,20/09/2021,113831,OLSTI DRINKS,14/10/2021,62.26,311.28,373.54,OLSIO - Hospitality,Vending Materials,61907
http://statistics.data.gov.uk/id/local-authority/12UE,Huntingdonshire District Council,202077,PARK AVENUE RECRUITMENT LTD,54135,21/09/2021,11838,REDACTED,14/10/2021,340.4,1702,2042.4,Development Management,Agency Staff,60011
http://statistics.data.gov.uk/id/local-authority/12UE,Huntingdonshire District Council,201861,PEOPLE POTENTIAL POSSIBILITIES T/A P3 CHARITY,54282,01/10/2021,INV-5012368,OUTREACH GRANT 011021-010422,14/10/2021,0,51309,51309,Homelessness,Grants And Contributions,64600
http://statistics.data.gov.uk/id/local-authority/12UE,Huntingdonshire District Council,202470,PERMANENT FUTURES LTD,53529,18/09/2021,244443,REDACTED,14/10/2021,3081,15405,18486,Market Towns,Agency Staff,60011
http://statistics.data.gov.uk/id/local-authority/12UE,Huntingdonshire District Council,202401,PERMISERV LTD,54357,31/08/2021,42545,GARDEN WASTE PACKS AUG,14/10/2021,913.6,4567.98,5481.58,Green Waste Collection,Printing,62001
http://statistics.data.gov.uk/id/local-authority/12UE,Huntingdonshire District Council,200614,PHOENIX SOFTWARE LTD PHOENIX SOFTWARE LTD,53532,20/09/2021,PO/1908604,IT SOFTWARE,14/10/2021,3206.23,16031.17,19237.4,City Recoverable,Ict Software,64071
http://statistics.data.gov.uk/id/local-authority/12UE,Huntingdonshire District Council,200614,PHOENIX SOFTWARE LTD PHOENIX SOFTWARE LTD,53532,20/09/2021,PO/1908604,IT SOFTWARE,14/10/2021,2220.78,11103.91,13324.69,HDC Recoverable,Ict Software,64071
http://statistics.data.gov.uk/id/local-authority/12UE,Huntingdonshire District Council,200614,PHOENIX SOFTWARE LTD PHOENIX SOFTWARE LTD,53532,20/09/2021,PO/1908604,IT SOFTWARE,14/10/2021,1611.91,8059.57,9671.48,SCDC Recoverable,Ict Software,64071
http://statistics.data.gov.uk/id/local-authority/12UE,Huntingdonshire District Council,200614,PHOENIX SOFTWARE LTD PHOENIX SOFTWARE LTD,54267,22/07/2021,OP/1903618,TRAINING&DEVELOPMENT,14/10/2021,520.74,2603.7,3124.44,HDC Business Case ,Staff Development And Training,60115
http://statistics.data.gov.uk/id/local-authority/12UE,Huntingdonshire District Council,200614,PHOENIX SOFTWARE LTD PHOENIX SOFTWARE LTD,54268,22/07/2021,OP/1903619,TRAINING&DEVELOPMENT,14/10/2021,520.74,2603.7,3124.44,HDC Business Case ,Staff Development And Training,60115
http://statistics.data.gov.uk/id/local-authority/12UE,Huntingdonshire District Council,200694,ROGER WILSON ELECTRONICS ROGER WILSON ELECTRONICS,54271,04/10/2021,10689,OLH REPAIRS,14/10/2021,61.26,306.3,367.56,OLH - Site & Centre Management,Maintenance - Building,60201
http://statistics.data.gov.uk/id/local-authority/12UE,Huntingdonshire District Council,200698,ROYAL MAIL GROUP LTD ROYAL MAIL GROUP LTD,54265,20/09/2021,9063653502,POSTAGE&COURIER,14/10/2021,411.19,2055.95,2467.14,Benefits Management,Postage And Courier Services,64100
http://statistics.data.gov.uk/id/local-authority/12UE,Huntingdonshire District Council,200698,ROYAL MAIL GROUP LTD ROYAL MAIL GROUP LTD,54264,13/09/2021,9063616946,DOC CENTRE,14/10/2021,51.84,259.18,311.02,Benefits Management,Postage And Courier Services,64100
http://statistics.data.gov.uk/id/local-authority/12UE,Huntingdonshire District Council,200698,ROYAL MAIL GROUP LTD ROYAL MAIL GROUP LTD,54265,20/09/2021,9063653502,POSTAGE&COURIER,14/10/2021,159.39,796.95,956.34,Electoral Registration,Postage And Courier Services,64100
http://statistics.data.gov.uk/id/local-authority/12UE,Huntingdonshire District Council,200698,ROYAL MAIL GROUP LTD ROYAL MAIL GROUP LTD,54264,13/09/2021,9063616946,DOC CENTRE,14/10/2021,44.45,222.25,266.7,Electoral Registration,Postage And Courier Services,64100
http://statistics.data.gov.uk/id/local-authority/12UE,Huntingdonshire District Council,200698,ROYAL MAIL GROUP LTD ROYAL MAIL GROUP LTD,54265,20/09/2021,9063653502,POSTAGE&COURIER,14/10/2021,187.41,937.05,1124.46,Post Handling,Postage And Courier Services,64100
http://statistics.data.gov.uk/id/local-authority/12UE,Huntingdonshire District Council,200698,ROYAL MAIL GROUP LTD ROYAL MAIL GROUP LTD,54264,13/09/2021,9063616946,DOC CENTRE,14/10/2021,238,1190,1428,Post Handling,Postage And Courier Services,64100
http://statistics.data.gov.uk/id/local-authority/12UE,Huntingdonshire District Council,200698,ROYAL MAIL GROUP LTD ROYAL MAIL GROUP LTD,54264,13/09/2021,9063616946,DOC CENTRE,14/10/2021,135.93,679.66,815.59,Waste Minimisation,Postage And Courier Services,64100
http://statistics.data.gov.uk/id/local-authority/12UE,Huntingdonshire District Council,201080,SAFETY SURVEY DIV OF BIRCHMOOR ASSOCIATES,53866,17/09/2021,9673,facilites sema rack,14/10/2021,135,675,810,Eastfield House,Maintenance - Building,60201
http://statistics.data.gov.uk/id/local-authority/12UE,Huntingdonshire District Council,200725,SMI INT GROUP LTD SMI GROUP,53500,20/09/2021,INV943887,OPS WORK WARE,14/10/2021,107.28,536.4,643.68,Grounds Maintenance,"Clothes, Uniform And Laundry",62000
http://statistics.data.gov.uk/id/local-authority/12UE,Huntingdonshire District Council,200732,SOLARWINDS SOFTWARE EUROPE LTD (IRELAND) SOLARWINDS SOFTWARE EUROPE LTD (IRELAND),53427,16/09/2021,IE347853,IT SOFTWARE,14/10/2021,0,4750.08,4750.08,3CICT NON STAFF HOLDING ACCOUNT,Ict Software,64071
http://statistics.data.gov.uk/id/local-authority/12UE,Huntingdonshire District Council,200734,SOUTH LINCS FOOD SERVICE SOUTH LINCS FOOD SERVICE,53578,16/09/2021,252682,OLSI FOOD,14/10/2021,0,655.13,655.13,OLSI - Burgess Bar,Catering Supplies,61900
http://statistics.data.gov.uk/id/local-authority/12UE,Huntingdonshire District Council,200734,SOUTH LINCS FOOD SERVICE SOUTH LINCS FOOD SERVICE,53578,16/09/2021,252682,OLSI FOOD,14/10/2021,6.51,32.55,39.06,OLSI - Burgess Bar,Confectionery,61906
http://statistics.data.gov.uk/id/local-authority/12UE,Huntingdonshire District Council,200737,SPORTMAX SPORTMAX,53571,17/09/2021,116342,ol sports equipment,14/10/2021,0,18,18,OLH - Site & Centre Management,Goods For Resale,61400
http://statistics.data.gov.uk/id/local-authority/12UE,Huntingdonshire District Council,200737,SPORTMAX SPORTMAX,53571,17/09/2021,116342,ol sports equipment,14/10/2021,64.8,324,388.8,OLH - Site & Centre Management,Goods For Resale,61400
http://statistics.data.gov.uk/id/local-authority/12UE,Huntingdonshire District Council,201118,ST NEOTS FENCING COMPANY LTD,54197,18/09/2021,INV-4109A,RAIL REMOVED&CLEAN UP,14/10/2021,74.75,373.75,448.5,Grounds Maintenance,Equipment,61713
http://statistics.data.gov.uk/id/local-authority/12UE,Huntingdonshire District Council,201118,ST NEOTS FENCING COMPANY LTD,53367,16/09/2021,INV-4148A,EMERGANCY FENCE REPAIR,14/10/2021,77.17,385.83,463,Parks & Open Spaces,Site Alterations And Materials,60273
http://statistics.data.gov.uk/id/local-authority/12UE,Huntingdonshire District Council,200743,STAFFLINE GROUP STAFFLINE GROUP,53613,22/09/2021,124130,refuse wc 120921,14/10/2021,534.52,2672.6,3207.12,Domestic Waste Collection,Agency Staff,60011
http://statistics.data.gov.uk/id/local-authority/12UE,Huntingdonshire District Council,200743,STAFFLINE GROUP STAFFLINE GROUP,53602,22/09/2021,124127,garden waste 120921,14/10/2021,363.22,1816.08,2179.3,Green Waste Collection,Agency Staff,60011
http://statistics.data.gov.uk/id/local-authority/12UE,Huntingdonshire District Council,200743,STAFFLINE GROUP STAFFLINE GROUP,54394,08/09/2021,122544,GARDEN STAFF 290821,14/10/2021,323.38,1616.9,1940.28,Green Waste Collection,Agency Staff,60011
http://statistics.data.gov.uk/id/local-authority/12UE,Huntingdonshire District Council,200743,STAFFLINE GROUP STAFFLINE GROUP,54393,08/09/2021,122545,GARDEN DR 290821,14/10/2021,130.31,651.55,781.86,Green Waste Collection,Agency Staff,60011
http://statistics.data.gov.uk/id/local-authority/12UE,Huntingdonshire District Council,200743,STAFFLINE GROUP STAFFLINE GROUP,53603,22/09/2021,124128,garden waste 120921,14/10/2021,109.52,547.6,657.12,Green Waste Collection,Agency Staff,60011
http://statistics.data.gov.uk/id/local-authority/12UE,Huntingdonshire District Council,200743,STAFFLINE GROUP STAFFLINE GROUP,53604,22/09/2021,124129,recycling 120921,14/10/2021,170.02,850.08,1020.1,Recycling Collections,Agency Staff,60011
http://statistics.data.gov.uk/id/local-authority/12UE,Huntingdonshire District Council,200743,STAFFLINE GROUP STAFFLINE GROUP,53622,22/09/2021,124126,trade waste wc 120921,14/10/2021,95.31,476.56,571.87,Trade Refuse,Agency Staff,60011
http://statistics.data.gov.uk/id/local-authority/12UE,Huntingdonshire District Council,201075,STEVES TAXIS & PRIVATE HIRE,54177,30/09/2021,10209,HDC LIFTS,14/10/2021,97.75,488.75,586.5,Homelessness,Taxi Charges - Client Transport,60910
http://statistics.data.gov.uk/id/local-authority/12UE,Huntingdonshire District Council,200774,TERBERG MATEC UK LTD TERBERG MATEC UK LTD,53835,17/09/2021,96412696,OPS PARTS,14/10/2021,0.01,0,0.01,Finance,Over/Under VAT Rounding,68350
http://statistics.data.gov.uk/id/local-authority/12UE,Huntingdonshire District Council,200774,TERBERG MATEC UK LTD TERBERG MATEC UK LTD,53835,17/09/2021,96412696,OPS PARTS,14/10/2021,30.21,151.07,181.28,Domestic Waste Collection,Vehicle Repairs And Maintenance,60904
http://statistics.data.gov.uk/id/local-authority/12UE,Huntingdonshire District Council,200774,TERBERG MATEC UK LTD TERBERG MATEC UK LTD,53835,17/09/2021,96412696,OPS PARTS,14/10/2021,30.21,151.07,181.28,Recycling Collections,Vehicle Repairs And Maintenance,60904
http://statistics.data.gov.uk/id/local-authority/12UE,Huntingdonshire District Council,202603,THE DEXTROUS WEB T/A DXW,53861,20/09/2021,6278,ARCHITECTURE,14/10/2021,780,3900,4680,Transformation - People,Consultancy Fees,62400
http://statistics.data.gov.uk/id/local-authority/12UE,Huntingdonshire District Council,202698,THE ONE GROUP,54333,31/08/2021,99103,STAFF RECRUIT COSTS 300821,14/10/2021,1220.25,6101.25,7321.5,IMD Shared Service,Staff Recruitment Costs,60116
http://statistics.data.gov.uk/id/local-authority/12UE,Huntingdonshire District Council,200785,THE OYSTER PARTNERSHIP THE OYSTER PARTNERSHIP,53587,22/09/2021,10910377,REDACTED,14/10/2021,475,2375,2850,Property Development And Mgt,Agency Staff,60011
http://statistics.data.gov.uk/id/local-authority/12UE,Huntingdonshire District Council,201944,TMD SERVICES,54025,22/09/2021,AS9017-21,SERVICE&INSPECTION,14/10/2021,159,795,954,OLSN - Site & Centre Management,Maintenance - Building,60201
http://statistics.data.gov.uk/id/local-authority/12UE,Huntingdonshire District Council,201505,TOP HEIGHT TRAINING LTD,54345,03/09/2021,INV303953,SHARPS TRAINING 130921,14/10/2021,432,2160,2592,HR Services,Staff Development And Training,60115
http://statistics.data.gov.uk/id/local-authority/12UE,Huntingdonshire District Council,202101,TRAINING SHED FAMILY LTD,54112,01/10/2021,INV-0094,SOFTWARE&ADS,14/10/2021,99.4,496.99,596.39,OLSIO - Training Shed,"Advertising, Publicity And Marketing",62005
http://statistics.data.gov.uk/id/local-authority/12UE,Huntingdonshire District Council,202101,TRAINING SHED FAMILY LTD,54112,01/10/2021,INV-0094,SOFTWARE&ADS,14/10/2021,12.43,62.17,74.6,OLSIO - Training Shed,"Advertising, Publicity And Marketing",62005
http://statistics.data.gov.uk/id/local-authority/12UE,Huntingdonshire District Council,202101,TRAINING SHED FAMILY LTD,54112,01/10/2021,INV-0094,SOFTWARE&ADS,14/10/2021,114.21,571.07,685.28,OLSIO - Training Shed,Ict Software,64071
http://statistics.data.gov.uk/id/local-authority/12UE,Huntingdonshire District Council,200827,VIVID RESOURCING LIMITED VIVID RESOURCING LIMITED,53667,22/09/2021,65476,REDACTED,14/10/2021,435.34,2176.71,2612.05,Development Management,Agency Staff,60011
http://statistics.data.gov.uk/id/local-authority/12UE,Huntingdonshire District Council,200356,WATSON FUELS WATSON FUELS,53661,17/09/2021,I12796829,OPS Diesel,14/10/2021,6270.63,31353.13,37623.76,Operations Diesel Stock,General Stock Account,11601
http://statistics.data.gov.uk/id/local-authority/12UE,Huntingdonshire District Council,200913,WAVE  ANGLIAN WATER BUSINESS,54148,05/10/2021,9560549,EFH 0507-041021,14/10/2021,0,838.44,838.44,Eastfield House,Water And Sewerage,60302
http://statistics.data.gov.uk/id/local-authority/12UE,Huntingdonshire District Council,202361,WEALD COMPUTER SYSTEMS LTD,54302,05/10/2021,2014301,ZOHO LICENSE 070921-060922,14/10/2021,792,3960,4752,Business & Enterprise Support,Ict Software,64071
http://statistics.data.gov.uk/id/local-authority/12UE,Huntingdonshire District Council,201066,THE RAMSEY INTERNAL DRAINAGE BOARD,54481,12/08/2021,110821,SPECIAL LEVY AUG21,15/10/2021,0,23601.84,23601.84,Ramsey Internal,Levies Paid,69110
http://statistics.data.gov.uk/id/local-authority/12UE,Huntingdonshire District Council,202403,ACT NOW TRAINING,53595,23/09/2021,29754,3c finance 30.09.21,21/10/2021,399,1995,2394,HDC Business Case ,Staff Development And Training,60115
http://statistics.data.gov.uk/id/local-authority/12UE,Huntingdonshire District Council,200060,ARTHUR IBBETT LTD ARTHUR IBBETT LTD,53732,27/09/2021,116073,OPS 270921 HEDGE TRIMMER,21/10/2021,105.6,528,633.6,Grounds Maintenance,Equipment,61713
http://statistics.data.gov.uk/id/local-authority/12UE,Huntingdonshire District Council,200079,BANDVULC TRUCK TYRES BANDVULC TRUCK TYRES,54059,29/09/2021,161948,TYRES P:9 W:0,21/10/2021,14.55,72.72,87.27,Domestic Waste Collection,Vehicle Accident Damage,60925
http://statistics.data.gov.uk/id/local-authority/12UE,Huntingdonshire District Council,200079,BANDVULC TRUCK TYRES BANDVULC TRUCK TYRES,54059,29/09/2021,161948,TYRES P:9 W:0,21/10/2021,150.02,750.09,900.11,Domestic Waste Collection,Vehicle Accident Damage,60925
http://statistics.data.gov.uk/id/local-authority/12UE,Huntingdonshire District Council,200079,BANDVULC TRUCK TYRES BANDVULC TRUCK TYRES,54059,29/09/2021,161948,TYRES P:9 W:0,21/10/2021,14.55,72.73,87.28,Domestic Waste Collection,Vehicle Accident Damage,60925
http://statistics.data.gov.uk/id/local-authority/12UE,Huntingdonshire District Council,200079,BANDVULC TRUCK TYRES BANDVULC TRUCK TYRES,54059,29/09/2021,161948,TYRES P:9 W:0,21/10/2021,206.88,1034.42,1241.3,Recycling Collections,Vehicle Accident Damage,60925
http://statistics.data.gov.uk/id/local-authority/12UE,Huntingdonshire District Council,200079,BANDVULC TRUCK TYRES BANDVULC TRUCK TYRES,54059,29/09/2021,161948,TYRES P:9 W:0,21/10/2021,296.16,1480.8,1776.96,Recycling Collections,Vehicle Accident Damage,60925
http://statistics.data.gov.uk/id/local-authority/12UE,Huntingdonshire District Council,200079,BANDVULC TRUCK TYRES BANDVULC TRUCK TYRES,54059,29/09/2021,161948,TYRES P:9 W:0,21/10/2021,22.84,114.18,137.02,Recycling Collections,Vehicle Accident Damage,60925
http://statistics.data.gov.uk/id/local-authority/12UE,Huntingdonshire District Council,200079,BANDVULC TRUCK TYRES BANDVULC TRUCK TYRES,54059,29/09/2021,161948,TYRES P:9 W:0,21/10/2021,13.01,65.03,78.04,Street Cleansing,Vehicle Accident Damage,60925
http://statistics.data.gov.uk/id/local-authority/12UE,Huntingdonshire District Council,202729,BARCLAY SIMPSON ASSOCIATES LIMITED,54318,23/09/2021,23853/8703-41/OFS,STAFF RECRUIT COSTS 130921,21/10/2021,1348.99,6744.96,8093.95,IMD Shared Service,Staff Recruitment Costs,60116
http://statistics.data.gov.uk/id/local-authority/12UE,Huntingdonshire District Council,200126,BRITISH GAS BUSINESS BRITISH GAS BUSINESS,54514,04/10/2021,954822701,OLR 01-300921,21/10/2021,184.76,923.8,1108.56,OLR - Site & Centre Management,Gas,60305
http://statistics.data.gov.uk/id/local-authority/12UE,Huntingdonshire District Council,200126,BRITISH GAS BUSINESS BRITISH GAS BUSINESS,54513,04/10/2021,954822697,OLSI 01-300921,21/10/2021,773.73,3868.65,4642.38,OLSI - Site & Centre Management,Gas,60305
http://statistics.data.gov.uk/id/local-authority/12UE,Huntingdonshire District Council,200133,BSG PROPERTY SERVICES LTD BSG PROPERTY SERVICES LTD,53782,24/09/2021,S49076,CHIA 12331,21/10/2021,0,6088.5,6088.5,Disables Facilities Grants,Mandatory Grants,64601
http://statistics.data.gov.uk/id/local-authority/12UE,Huntingdonshire District Council,202559,BUCHER MUNICIPAL LTD,54592,23/09/2021,62030273,ops sweeper,21/10/2021,27704.8,138524,166228.8,Vehicles & Plant,"Acquisition - Vehicles, Plant And Equipment",60801
http://statistics.data.gov.uk/id/local-authority/12UE,Huntingdonshire District Council,202559,BUCHER MUNICIPAL LTD,54592,23/09/2021,62030273,ops sweeper,21/10/2021,0,220,220,Vehicles & Plant,"Acquisition - Vehicles, Plant And Equipment",60801
http://statistics.data.gov.uk/id/local-authority/12UE,Huntingdonshire District Council,202559,BUCHER MUNICIPAL LTD,54451,27/09/2021,62031489,PARTS,21/10/2021,170.16,850.8,1020.96,Street Cleansing,Vehicle Maintenance - External,60921
http://statistics.data.gov.uk/id/local-authority/12UE,Huntingdonshire District Council,202559,BUCHER MUNICIPAL LTD,54450,27/09/2021,62034366,BRUSH,21/10/2021,113.94,569.7,683.64,Street Cleansing,Vehicle Maintenance - External,60921
http://statistics.data.gov.uk/id/local-authority/12UE,Huntingdonshire District Council,202458,CARRINGTON WEST LTD,53957,29/09/2021,173773,REDACTED,21/10/2021,552,2760,3312,Development Management,Agency Staff,60011
http://statistics.data.gov.uk/id/local-authority/12UE,Huntingdonshire District Council,202458,CARRINGTON WEST LTD,53668,23/09/2021,172982,REDACTED,21/10/2021,550,2750,3300,Development Management,Agency Staff,60011
http://statistics.data.gov.uk/id/local-authority/12UE,Huntingdonshire District Council,202458,CARRINGTON WEST LTD,53963,29/09/2021,173777,REDACTED,21/10/2021,550,2750,3300,Development Management,Agency Staff,60011
http://statistics.data.gov.uk/id/local-authority/12UE,Huntingdonshire District Council,202458,CARRINGTON WEST LTD,53696,23/09/2021,172981,REDACTED,21/10/2021,375.36,1876.8,2252.16,Development Management,Agency Staff,60011
http://statistics.data.gov.uk/id/local-authority/12UE,Huntingdonshire District Council,202458,CARRINGTON WEST LTD,53960,29/09/2021,173776,REDACTED,21/10/2021,238.28,1191.4,1429.68,Development Management,Agency Staff,60011
http://statistics.data.gov.uk/id/local-authority/12UE,Huntingdonshire District Council,202458,CARRINGTON WEST LTD,53959,29/09/2021,173775,REDACTED,21/10/2021,196.35,981.75,1178.1,Development Management,Agency Staff,60011
http://statistics.data.gov.uk/id/local-authority/12UE,Huntingdonshire District Council,202458,CARRINGTON WEST LTD,53958,29/09/2021,173774,REDACTED,21/10/2021,115.5,577.5,693,Development Management,Agency Staff,60011
http://statistics.data.gov.uk/id/local-authority/12UE,Huntingdonshire District Council,200511,CHORUS HOMES GROUP LTD,54474,13/10/2021,1171873,45 MHP DRAIN CLEAR,21/10/2021,0,785.4,785.4,Mobile Home Park,Maintenance - Building,60201
http://statistics.data.gov.uk/id/local-authority/12UE,Huntingdonshire District Council,200197,CIVICA UK LTD CIVICA UK LTD,54244,29/09/2021,C/RB226721,3CICT DUMP & RELOAD,21/10/2021,1272,6360,7632,SCDC Business Case ,Professional Services - General,62402
http://statistics.data.gov.uk/id/local-authority/12UE,Huntingdonshire District Council,200220,D & H SIGN & DISPLAY SERVICE D & H SIGN & DISPLAY SERVICE,54109,24/09/2021,7051,SUPPLY AND FIT LF71ZNK,21/10/2021,76,380,456,Street Cleansing,Vehicle Maintenance - External,60921
http://statistics.data.gov.uk/id/local-authority/12UE,Huntingdonshire District Council,200226,DAL-ROD (CAMRIDGESHIRE) DAL-ROD (CAMRIDGESHIRE),53890,29/09/2021,57602,OLH 160921 CALL OUT,21/10/2021,70,350,420,OLH - Site & Centre Management,Maintenance - Building,60201
http://statistics.data.gov.uk/id/local-authority/12UE,Huntingdonshire District Council,200226,DAL-ROD (CAMRIDGESHIRE) DAL-ROD (CAMRIDGESHIRE),53709,23/09/2021,27383,Dalrod water cooler repair,21/10/2021,52,260,312,Pathfinder House,Maintenance - Building,60201
http://statistics.data.gov.uk/id/local-authority/12UE,Huntingdonshire District Council,200236,DENNIS EAGLE LTD DENNIS EAGLE LTD,54103,28/09/2021,DE11439674,VEHICLE MATERIALS,21/10/2021,198.13,990.67,1188.8,Domestic Waste Collection,Vehicle Repairs And Maintenance,60904
http://statistics.data.gov.uk/id/local-authority/12UE,Huntingdonshire District Council,202236,EASTFIELD GUESTHOUSE LTD,54527,08/10/2021,HUN0114,LODGING 2709-300921,21/10/2021,3.25,65,68.25,Homelessness,B&B Accommodation,64401
http://statistics.data.gov.uk/id/local-authority/12UE,Huntingdonshire District Council,202236,EASTFIELD GUESTHOUSE LTD,54527,08/10/2021,HUN0114,LODGING 2709-300921,21/10/2021,13,260,273,Homelessness,B&B Accommodation,64401
http://statistics.data.gov.uk/id/local-authority/12UE,Huntingdonshire District Council,202236,EASTFIELD GUESTHOUSE LTD,54527,08/10/2021,HUN0114,LODGING 2709-300921,21/10/2021,13,260,273,Homelessness,B&B Accommodation,64401
http://statistics.data.gov.uk/id/local-authority/12UE,Huntingdonshire District Council,202236,EASTFIELD GUESTHOUSE LTD,54527,08/10/2021,HUN0114,LODGING 2709-300921,21/10/2021,6.5,130,136.5,Homelessness,B&B Accommodation,64401
http://statistics.data.gov.uk/id/local-authority/12UE,Huntingdonshire District Council,202236,EASTFIELD GUESTHOUSE LTD,54527,08/10/2021,HUN0114,LODGING 2709-300921,21/10/2021,6.5,130,136.5,Homelessness,B&B Accommodation,64401
http://statistics.data.gov.uk/id/local-authority/12UE,Huntingdonshire District Council,200282,ESPO ESPO,54561,12/07/2021,IN/6114002,HCP,21/10/2021,6.09,30.45,36.54,H'Brooke Countryside Centre,Cleaning Materials,61300
http://statistics.data.gov.uk/id/local-authority/12UE,Huntingdonshire District Council,200282,ESPO ESPO,54561,12/07/2021,IN/6114002,HCP,21/10/2021,10.11,50.55,60.66,H'Brooke Countryside Centre,Cleaning Materials,61300
http://statistics.data.gov.uk/id/local-authority/12UE,Huntingdonshire District Council,200282,ESPO ESPO,54561,12/07/2021,IN/6114002,HCP,21/10/2021,13.62,68.1,81.72,H'Brooke Countryside Centre,Cleaning Materials,61300
http://statistics.data.gov.uk/id/local-authority/12UE,Huntingdonshire District Council,200282,ESPO ESPO,54561,12/07/2021,IN/6114002,HCP,21/10/2021,12.18,60.9,73.08,Hinchingbrooke Park Management,Cleaning Materials,61300
http://statistics.data.gov.uk/id/local-authority/12UE,Huntingdonshire District Council,200282,ESPO ESPO,54561,12/07/2021,IN/6114002,HCP,21/10/2021,20.22,101.1,121.32,Hinchingbrooke Park Management,Cleaning Materials,61300
http://statistics.data.gov.uk/id/local-authority/12UE,Huntingdonshire District Council,200282,ESPO ESPO,54561,12/07/2021,IN/6114002,HCP,21/10/2021,2.6,13,15.6,Hinchingbrooke Park Management,First Aid & Medical Supplies,61710
http://statistics.data.gov.uk/id/local-authority/12UE,Huntingdonshire District Council,200282,ESPO ESPO,54561,12/07/2021,IN/6114002,HCP,21/10/2021,1.6,8,9.6,Hinchingbrooke Park Management,First Aid & Medical Supplies,61710
http://statistics.data.gov.uk/id/local-authority/12UE,Huntingdonshire District Council,200282,ESPO ESPO,54561,12/07/2021,IN/6114002,HCP,21/10/2021,2.85,14.25,17.1,Hinchingbrooke Park Management,First Aid & Medical Supplies,61710
http://statistics.data.gov.uk/id/local-authority/12UE,Huntingdonshire District Council,200282,ESPO ESPO,54561,12/07/2021,IN/6114002,HCP,21/10/2021,0.73,3.65,4.38,Hinchingbrooke Park Management,First Aid & Medical Supplies,61710
http://statistics.data.gov.uk/id/local-authority/12UE,Huntingdonshire District Council,200282,ESPO ESPO,54561,12/07/2021,IN/6114002,HCP,21/10/2021,1.8,9,10.8,Hinchingbrooke Park Management,First Aid & Medical Supplies,61710
http://statistics.data.gov.uk/id/local-authority/12UE,Huntingdonshire District Council,200282,ESPO ESPO,54207,28/09/2021,5806487,STATIONERY,21/10/2021,55.35,276.75,332.1,Pathfinder House,Stationery,62002
http://statistics.data.gov.uk/id/local-authority/12UE,Huntingdonshire District Council,202487,GARNER COMMERCIALS LTD,54240,27/09/2021,5837,OPS STEAM CLEAN,21/10/2021,53,265,318,Domestic Waste Collection,Vehicle Maintenance - External,60921
http://statistics.data.gov.uk/id/local-authority/12UE,Huntingdonshire District Council,200339,GEZE  UK LTD GEZE  UK LTD,53796,27/09/2021,905228654,facilites fingerguard,21/10/2021,205.92,1029.61,1235.53,MSCP (HUN),Maintenance - Building,60201
http://statistics.data.gov.uk/id/local-authority/12UE,Huntingdonshire District Council,200351,GUEST MOTORS LTD GUEST MOTORS LTD,53877,27/09/2021,18524413,ops oil,21/10/2021,70,350,420,Bulky Refuse,Vehicle Maintenance - External,60921
http://statistics.data.gov.uk/id/local-authority/12UE,Huntingdonshire District Council,200365,HAYS HAYS,53830,28/09/2021,1011645826,REDACTED,21/10/2021,550.6,2753,3303.6,Property Development And Mgt,Agency Staff,60011
http://statistics.data.gov.uk/id/local-authority/12UE,Huntingdonshire District Council,200382,HQ FORKLIFTS LTD HQ FORKLIFTS LTD,54114,28/09/2021,INV-73523,SERVICE 160921,21/10/2021,62.07,310.32,372.39,Vehicle Maintenance,Vehicle Maintenance - External,60921
http://statistics.data.gov.uk/id/local-authority/12UE,Huntingdonshire District Council,200384,HUNTINGDON BEEKEEPERS ASSOCIATION HUNTINGDON BEEKEEPERS ASSOCIATION,53865,27/09/2021,27/09/2021,HCP HONEY,21/10/2021,0,373.5,373.5,Hinchingbrook Park Gift Shop,Goods For Resale,61400
http://statistics.data.gov.uk/id/local-authority/12UE,Huntingdonshire District Council,202307,HUNTINGDONSHIRE COMMUNITY GROUP,54496,15/10/2021,COMMUN CHEST GRANT,COMMUNITY CHEST GRANT,21/10/2021,0,1000,1000,Voluntary Sector Grants,Grants And Contributions,64600
http://statistics.data.gov.uk/id/local-authority/12UE,Huntingdonshire District Council,202307,HUNTINGDONSHIRE COMMUNITY GROUP,54496,15/10/2021,COMMUN CHEST GRANT,COMMUNITY CHEST GRANT,21/10/2021,0,0,0,VAT,VAT Input Tax,11727
http://statistics.data.gov.uk/id/local-authority/12UE,Huntingdonshire District Council,200391,HUNTINGDONSHIRE FOOTBALL ASSOCIATION HUNTINGDONSHIRE FOOTBALL ASSOCIATION,53657,27/09/2021,APJ000149,200391,21/10/2021,0,-346.81,-346.81,Council Taxpayers,Council Tax Debtor,11809
http://statistics.data.gov.uk/id/local-authority/12UE,Huntingdonshire District Council,200391,HUNTINGDONSHIRE FOOTBALL ASSOCIATION HUNTINGDONSHIRE FOOTBALL ASSOCIATION,53657,27/09/2021,APJ000149,200391,21/10/2021,-336,-1680,-2016,MSCP (HUN),Maintenance - Building,60201
http://statistics.data.gov.uk/id/local-authority/12UE,Huntingdonshire District Council,200391,HUNTINGDONSHIRE FOOTBALL ASSOCIATION HUNTINGDONSHIRE FOOTBALL ASSOCIATION,53657,27/09/2021,APJ000149,200391,21/10/2021,0,-346.81,-346.81,Paymaster Account,Paymaster Account,10082
http://statistics.data.gov.uk/id/local-authority/12UE,Huntingdonshire District Council,200391,HUNTINGDONSHIRE FOOTBALL ASSOCIATION HUNTINGDONSHIRE FOOTBALL ASSOCIATION,53657,27/09/2021,APJ000149,200391,21/10/2021,0,346.81,346.81,Paymaster Account,Paymaster Account,10082
http://statistics.data.gov.uk/id/local-authority/12UE,Huntingdonshire District Council,200391,HUNTINGDONSHIRE FOOTBALL ASSOCIATION HUNTINGDONSHIRE FOOTBALL ASSOCIATION,53657,27/09/2021,APJ000149,200391,21/10/2021,0,45,45,Paymaster Account,Paymaster Account,10082
http://statistics.data.gov.uk/id/local-authority/12UE,Huntingdonshire District Council,200391,HUNTINGDONSHIRE FOOTBALL ASSOCIATION HUNTINGDONSHIRE FOOTBALL ASSOCIATION,53657,27/09/2021,APJ000149,200391,21/10/2021,0,346.81,346.81,Paymaster Account,Paymaster Account,10082
http://statistics.data.gov.uk/id/local-authority/12UE,Huntingdonshire District Council,200391,HUNTINGDONSHIRE FOOTBALL ASSOCIATION HUNTINGDONSHIRE FOOTBALL ASSOCIATION,53657,27/09/2021,APJ000149,200391,21/10/2021,0,2016,2016,Paymaster Account,Paymaster Account,10082
http://statistics.data.gov.uk/id/local-authority/12UE,Huntingdonshire District Council,200413,INSIGHT DIRECT UK LTD INSIGHT DIRECT UK LTD,53710,24/09/2021,5464612,ICT Headsets,21/10/2021,351.36,1756.8,2108.16,City Telephony Project P0087,Ict Hardware,64070
http://statistics.data.gov.uk/id/local-authority/12UE,Huntingdonshire District Council,202504,IO ASSOCIATES TRADING DIVISION OF PRECISION RESOURCE GROUP LTD,54595,20/09/2021,6388,REDACTED,21/10/2021,350,1750,2100,Market Towns,Agency Staff,60011
http://statistics.data.gov.uk/id/local-authority/12UE,Huntingdonshire District Council,200429,J BREHENY CIVIL ENGINEERING LTD J BREHENY CIVIL ENGINEERING LTD,54594,30/07/2021,HM/5106/34366,OPS MARKET FENCING,21/10/2021,110.8,554,664.8,Car Park Management,Site Alterations And Materials,60273
http://statistics.data.gov.uk/id/local-authority/12UE,Huntingdonshire District Council,200429,J BREHENY CIVIL ENGINEERING LTD J BREHENY CIVIL ENGINEERING LTD,54594,30/07/2021,HM/5106/34366,OPS MARKET FENCING,21/10/2021,97.2,485.99,583.19,Car Park Management,Site Alterations And Materials,60273
http://statistics.data.gov.uk/id/local-authority/12UE,Huntingdonshire District Council,200429,J BREHENY CIVIL ENGINEERING LTD J BREHENY CIVIL ENGINEERING LTD,54594,30/07/2021,HM/5106/34366,OPS MARKET FENCING,21/10/2021,75.53,377.66,453.19,Car Park Management,Site Alterations And Materials,60273
http://statistics.data.gov.uk/id/local-authority/12UE,Huntingdonshire District Council,200429,J BREHENY CIVIL ENGINEERING LTD J BREHENY CIVIL ENGINEERING LTD,54594,30/07/2021,HM/5106/34366,OPS MARKET FENCING,21/10/2021,36.11,180.55,216.66,Car Park Management,Site Alterations And Materials,60273
http://statistics.data.gov.uk/id/local-authority/12UE,Huntingdonshire District Council,200429,J BREHENY CIVIL ENGINEERING LTD J BREHENY CIVIL ENGINEERING LTD,54594,30/07/2021,HM/5106/34366,OPS MARKET FENCING,21/10/2021,81.8,409,490.8,Car Park Management,Site Alterations And Materials,60273
http://statistics.data.gov.uk/id/local-authority/12UE,Huntingdonshire District Council,200429,J BREHENY CIVIL ENGINEERING LTD J BREHENY CIVIL ENGINEERING LTD,54594,30/07/2021,HM/5106/34366,OPS MARKET FENCING,21/10/2021,61.78,308.88,370.66,Markets Management,Site Alterations And Materials,60273
http://statistics.data.gov.uk/id/local-authority/12UE,Huntingdonshire District Council,200429,J BREHENY CIVIL ENGINEERING LTD J BREHENY CIVIL ENGINEERING LTD,54593,30/04/2021,HM/5106/34051,OPS WELFARE UNIT HIRE,21/10/2021,1502.8,7514,9016.8,Covid-19,Waste Disposal Costs,64050
http://statistics.data.gov.uk/id/local-authority/12UE,Huntingdonshire District Council,202315,KEYSTONE MARKETING LTD,53912,28/09/2021,SI-1415889,OPS FOCUS GROUP,21/10/2021,320,1600,1920,Godmanchester Mill Weir Improvements,Consultancy Fees,62400
http://statistics.data.gov.uk/id/local-authority/12UE,Huntingdonshire District Council,202315,KEYSTONE MARKETING LTD,53913,28/09/2021,SI-1415887,OPS FISH & EEL,21/10/2021,300,1500,1800,Godmanchester Mill Weir Improvements,Consultancy Fees,62400
http://statistics.data.gov.uk/id/local-authority/12UE,Huntingdonshire District Council,202315,KEYSTONE MARKETING LTD,53911,28/09/2021,SI-1415888,PLANNING HOSPITALITY CANPAIGN,21/10/2021,200,1000,1200,ARG Economic Development,Professional Services - General,62402
http://statistics.data.gov.uk/id/local-authority/12UE,Huntingdonshire District Council,200462,KING BROS KING BROS,53849,28/09/2021,184032,HCP FOOD,21/10/2021,0,87.55,87.55,Hinchingbrooke Park Cafe,Catering Supplies,61900
http://statistics.data.gov.uk/id/local-authority/12UE,Huntingdonshire District Council,200462,KING BROS KING BROS,53849,28/09/2021,184032,HCP FOOD,21/10/2021,80.74,403.7,484.44,Hinchingbrooke Park Cafe,Catering Supplies,61900
http://statistics.data.gov.uk/id/local-authority/12UE,Huntingdonshire District Council,200462,KING BROS KING BROS,53798,27/09/2021,184002,hcp food,21/10/2021,0,122.17,122.17,Hinchingbrooke Park Cafe,Catering Supplies,61900
http://statistics.data.gov.uk/id/local-authority/12UE,Huntingdonshire District Council,200462,KING BROS KING BROS,53798,27/09/2021,184002,hcp food,21/10/2021,73.31,366.56,439.87,Hinchingbrooke Park Cafe,Catering Supplies,61900
http://statistics.data.gov.uk/id/local-authority/12UE,Huntingdonshire District Council,201158,KITE UTILITY SERVICES LTD,54512,31/08/2021,1278 2,SOMERSHAM PUMPING STATION,21/10/2021,116.67,583.33,700,Miscellaneous Properties,Maintenance - Building,60201
http://statistics.data.gov.uk/id/local-authority/12UE,Huntingdonshire District Council,200471,LACONS LACONS,54342,29/09/2021,862371,OLSI ODR DRINKS,21/10/2021,67.24,336.2,403.44,OLSIO - Hospitality,Bar Provisions,61905
http://statistics.data.gov.uk/id/local-authority/12UE,Huntingdonshire District Council,200489,LES MILLS UK LES MILLS UK,54461,06/09/2021,LMUK-SIV-094333,OLSI LICENCE SEP21,21/10/2021,55.81,279.07,334.88,OLSI - Fitness Activities,Licences,60410
http://statistics.data.gov.uk/id/local-authority/12UE,Huntingdonshire District Council,202094,LICENCE BUREAU LTD,54532,25/08/2021,356938,DVLA ELEC/DRIVER MANGE FEE,21/10/2021,137.6,688,825.6,Vehicle Maintenance,Licences,60410
http://statistics.data.gov.uk/id/local-authority/12UE,Huntingdonshire District Council,202094,LICENCE BUREAU LTD,54532,25/08/2021,356938,DVLA ELEC/DRIVER MANGE FEE,21/10/2021,9,45,54,Vehicle Maintenance,Licences,60410
http://statistics.data.gov.uk/id/local-authority/12UE,Huntingdonshire District Council,202551,LIGHT BLUE MEDIA CAMBRIDGE LTD,54390,30/09/2021,3111,RADIO ADVERT HUNTS,21/10/2021,499.8,2499,2998.8,Welcome Back Fund,Consultancy Fees,62400
http://statistics.data.gov.uk/id/local-authority/12UE,Huntingdonshire District Council,200515,M & N VEHICLE SERVICES M & N VEHICLE SERVICES,54105,27/09/2021,45298,MOT ,21/10/2021,299.76,1498.81,1798.57,Street Cleansing,Vehicle Maintenance - External,60921
http://statistics.data.gov.uk/id/local-authority/12UE,Huntingdonshire District Council,200515,M & N VEHICLE SERVICES M & N VEHICLE SERVICES,54105,27/09/2021,45298,MOT ,21/10/2021,0,91,91,Street Cleansing,Vehicle Maintenance - External,60921
http://statistics.data.gov.uk/id/local-authority/12UE,Huntingdonshire District Council,200516,M WATSON CONSTRUCTION LTD M WATSON CONSTRUCTION LTD,54077,29/09/2021,25106,RAMP ACCESS BUILT,21/10/2021,0,1591.2,1591.2,Disables Facilities Grants,Mandatory Grants,64601
http://statistics.data.gov.uk/id/local-authority/12UE,Huntingdonshire District Council,200516,M WATSON CONSTRUCTION LTD M WATSON CONSTRUCTION LTD,54157,29/09/2021,25102,DRIVE REPAIR,21/10/2021,0,609.31,609.31,Disables Facilities Grants,Mandatory Grants,64601
http://statistics.data.gov.uk/id/local-authority/12UE,Huntingdonshire District Council,200550,MORGAN HUNT PUBLIC UK LTD MORGAN HUNT PUBLIC UK LTD,54491,10/10/2021,1246848,REDACTED,21/10/2021,257.14,1285.7,1542.84,Covid-19,Agency Staff,60011
http://statistics.data.gov.uk/id/local-authority/12UE,Huntingdonshire District Council,200550,MORGAN HUNT PUBLIC UK LTD MORGAN HUNT PUBLIC UK LTD,54490,10/10/2021,1246847,REDACTED,21/10/2021,220.8,1104,1324.8,Covid-19,Agency Staff,60011
http://statistics.data.gov.uk/id/local-authority/12UE,Huntingdonshire District Council,200550,MORGAN HUNT PUBLIC UK LTD MORGAN HUNT PUBLIC UK LTD,54492,10/10/2021,1246849,REDACTED,21/10/2021,198.72,993.6,1192.32,Covid-19,Agency Staff,60011
http://statistics.data.gov.uk/id/local-authority/12UE,Huntingdonshire District Council,202601,NEVILLE SPECIAL PROJECTS LTD,54553,15/10/2021,11685,INTERIM PAY APP NO.1,21/10/2021,10462.09,52310.43,62772.52,Oak Tree Remedial Work,Site Alterations And Materials,60273
http://statistics.data.gov.uk/id/local-authority/12UE,Huntingdonshire District Council,200970,NTA MONITOR LTD,54534,01/07/2021,1006531864,CONSULTANCY FEE,21/10/2021,80,400,480,City Recoverable,Consultancy Fees,62400
http://statistics.data.gov.uk/id/local-authority/12UE,Huntingdonshire District Council,200970,NTA MONITOR LTD,54534,01/07/2021,1006531864,CONSULTANCY FEE,21/10/2021,80,400,480,HDC Recoverable,Consultancy Fees,62400
http://statistics.data.gov.uk/id/local-authority/12UE,Huntingdonshire District Council,200970,NTA MONITOR LTD,54534,01/07/2021,1006531864,CONSULTANCY FEE,21/10/2021,80,400,480,SCDC Recoverable,Consultancy Fees,62400
http://statistics.data.gov.uk/id/local-authority/12UE,Huntingdonshire District Council,202688,NUTRIVEND LTD,53888,29/09/2021,114366,OLSI DRINKS,21/10/2021,80.46,402.28,482.74,OLSN - Hospitality,Vending Materials,61907
http://statistics.data.gov.uk/id/local-authority/12UE,Huntingdonshire District Council,202717,Parallel Project Management Ltd,53967,28/09/2021,ORD-933,TRAINING OCT 21,21/10/2021,155,775,930,Facilities,Staff Development And Training,60115
http://statistics.data.gov.uk/id/local-authority/12UE,Huntingdonshire District Council,202717,Parallel Project Management Ltd,53967,28/09/2021,ORD-933,TRAINING OCT 21,21/10/2021,250,1250,1500,Facilities,Staff Development And Training,60115
http://statistics.data.gov.uk/id/local-authority/12UE,Huntingdonshire District Council,202077,PARK AVENUE RECRUITMENT LTD,54136,28/09/2021,11993,REDACTED,21/10/2021,340.4,1702,2042.4,Development Management,Agency Staff,60011
http://statistics.data.gov.uk/id/local-authority/12UE,Huntingdonshire District Council,202470,PERMANENT FUTURES LTD,54471,14/08/2021,243688,REDACTED,21/10/2021,3002,15010,18012,Market Towns,Agency Staff,60011
http://statistics.data.gov.uk/id/local-authority/12UE,Huntingdonshire District Council,200614,PHOENIX SOFTWARE LTD PHOENIX SOFTWARE LTD,53726,24/09/2021,OP/1909004,3CICT LICENSING SUBSCRIPTION,21/10/2021,27.72,138.6,166.32,City Recoverable,Ict Software,64071
http://statistics.data.gov.uk/id/local-authority/12UE,Huntingdonshire District Council,200614,PHOENIX SOFTWARE LTD PHOENIX SOFTWARE LTD,53726,24/09/2021,OP/1909004,3CICT LICENSING SUBSCRIPTION,21/10/2021,27.72,138.6,166.32,SCDC Recoverable,Ict Software,64071
http://statistics.data.gov.uk/id/local-authority/12UE,Huntingdonshire District Council,202663,Pike & Eel Hotel and Marina,53846,27/09/2021,KS003,REDACTED,21/10/2021,0,716.39,716.39,Kickstart - External,Mandatory Grants,64601
http://statistics.data.gov.uk/id/local-authority/12UE,Huntingdonshire District Council,202663,Pike & Eel Hotel and Marina,53848,27/09/2021,KS004,REDACTED,21/10/2021,0,313.24,313.24,Kickstart - External,Mandatory Grants,64601
http://statistics.data.gov.uk/id/local-authority/12UE,Huntingdonshire District Council,202607,QUADIENT UK LTD,53786,27/09/2021,92780775,Doc Envelopes,21/10/2021,239.52,1197.6,1437.12,Printing,"Clothes, Uniform And Laundry",62000
http://statistics.data.gov.uk/id/local-authority/12UE,Huntingdonshire District Council,200694,ROGER WILSON ELECTRONICS ROGER WILSON ELECTRONICS,54515,04/10/2021,10688,REPAIRS LIGHTS/TAPS,21/10/2021,138.69,693.45,832.14,OLSI - Site & Centre Management,Maintenance - Building,60201
http://statistics.data.gov.uk/id/local-authority/12UE,Huntingdonshire District Council,200698,ROYAL MAIL GROUP LTD ROYAL MAIL GROUP LTD,54458,27/09/2021,903692648,POSTAGE&COURIER,21/10/2021,84.03,420.13,504.16,Benefits Management,Postage And Courier Services,64100
http://statistics.data.gov.uk/id/local-authority/12UE,Huntingdonshire District Council,200698,ROYAL MAIL GROUP LTD ROYAL MAIL GROUP LTD,54458,27/09/2021,903692648,POSTAGE&COURIER,21/10/2021,31.81,159.03,190.84,Electoral Registration,Postage And Courier Services,64100
http://statistics.data.gov.uk/id/local-authority/12UE,Huntingdonshire District Council,200698,ROYAL MAIL GROUP LTD ROYAL MAIL GROUP LTD,54458,27/09/2021,903692648,POSTAGE&COURIER,21/10/2021,188.36,941.81,1130.17,Post Handling,Postage And Courier Services,64100
http://statistics.data.gov.uk/id/local-authority/12UE,Huntingdonshire District Council,201118,ST NEOTS FENCING COMPANY LTD,54549,03/08/2021,INV-4075A,OPEN SPACE WORKS,21/10/2021,337.55,1687.75,2025.3,Park Fencing,Site Alterations And Materials,60273
http://statistics.data.gov.uk/id/local-authority/12UE,Huntingdonshire District Council,201118,ST NEOTS FENCING COMPANY LTD,54550,20/07/2021,INV-4064A,OPEN SPACE WORKS,21/10/2021,294.6,1473,1767.6,Park Fencing,Site Alterations And Materials,60273
http://statistics.data.gov.uk/id/local-authority/12UE,Huntingdonshire District Council,201254,St Neots Town Council,54465,30/09/2021,433,ST NEOTS MIRCOFEST 21,21/10/2021,100,500,600,Welcome Back Fund,Consultancy Fees,62400
http://statistics.data.gov.uk/id/local-authority/12UE,Huntingdonshire District Council,200743,STAFFLINE GROUP STAFFLINE GROUP,54008,29/09/2021,124897,REFUSE WC 190921,21/10/2021,457.29,2286.43,2743.72,Domestic Waste Collection,Agency Staff,60011
http://statistics.data.gov.uk/id/local-authority/12UE,Huntingdonshire District Council,200743,STAFFLINE GROUP STAFFLINE GROUP,54012,29/09/2021,124896,REFUSE WC 120921,21/10/2021,56.67,283.36,340.03,Domestic Waste Collection,Agency Staff,60011
http://statistics.data.gov.uk/id/local-authority/12UE,Huntingdonshire District Council,200743,STAFFLINE GROUP STAFFLINE GROUP,54009,29/09/2021,124893,GARDEN WC 190921,21/10/2021,429.76,2148.82,2578.58,Green Waste Collection,Agency Staff,60011
http://statistics.data.gov.uk/id/local-authority/12UE,Huntingdonshire District Council,200743,STAFFLINE GROUP STAFFLINE GROUP,54010,29/09/2021,124894,GARDEN DRIVER 190921,21/10/2021,109.52,547.6,657.12,Green Waste Collection,Agency Staff,60011
http://statistics.data.gov.uk/id/local-authority/12UE,Huntingdonshire District Council,200743,STAFFLINE GROUP STAFFLINE GROUP,54011,29/09/2021,124895,RECYCLING WC 190921,21/10/2021,209.94,1049.72,1259.66,Recycling Collections,Agency Staff,60011
http://statistics.data.gov.uk/id/local-authority/12UE,Huntingdonshire District Council,200745,STANNAH LTD Ref(20HU025) STANNAH LTD Ref(20HU025),54489,28/05/2021,1085312534,STRATUM HOMELIFT,21/10/2021,0,13149,13149,Disables Facilities Grants,Mandatory Grants,64601
http://statistics.data.gov.uk/id/local-authority/12UE,Huntingdonshire District Council,200769,TECHNOLOGY ONE LTD TECHNOLOGY ONE LTD,53889,29/09/2021,U004276,FINANCE TECHONE,21/10/2021,500,2500,3000,Finance,Consultancy Fees,62400
http://statistics.data.gov.uk/id/local-authority/12UE,Huntingdonshire District Council,200774,TERBERG MATEC UK LTD TERBERG MATEC UK LTD,53883,28/09/2021,96413070,OPS PARTS,21/10/2021,117.35,586.74,704.09,Domestic Waste Collection,Vehicle Repairs And Maintenance,60904
http://statistics.data.gov.uk/id/local-authority/12UE,Huntingdonshire District Council,200774,TERBERG MATEC UK LTD TERBERG MATEC UK LTD,53807,24/09/2021,96412977,Ops materials and parts,21/10/2021,112.48,562.4,674.88,Domestic Waste Collection,Vehicle Repairs And Maintenance,60904
http://statistics.data.gov.uk/id/local-authority/12UE,Huntingdonshire District Council,200114,THE BORDER STUDIO LTD,54537,06/09/2021,11080,BLACKCLOTH HIRE 07-170122,21/10/2021,145,725,870,OLSI - Burgess Hall,Materials,61709
http://statistics.data.gov.uk/id/local-authority/12UE,Huntingdonshire District Council,202722,THE CCTV USER GROUP LTD,54472,10/10/2021,11998,MEMBERSHIP OCT21,21/10/2021,59.8,299,358.8,Cctv Shared Service Hosting,Membership And Subscriptions,64800
http://statistics.data.gov.uk/id/local-authority/12UE,Huntingdonshire District Council,200785,THE OYSTER PARTNERSHIP THE OYSTER PARTNERSHIP,53961,29/09/2021,10910863,REDACTED,21/10/2021,475,2375,2850,Property Development And Mgt,Agency Staff,60011
http://statistics.data.gov.uk/id/local-authority/12UE,Huntingdonshire District Council,200827,VIVID RESOURCING LIMITED VIVID RESOURCING LIMITED,53956,29/09/2021,65883,REDACTED,21/10/2021,435.34,2176.71,2612.05,Development Management,Agency Staff,60011
http://statistics.data.gov.uk/id/local-authority/12UE,Huntingdonshire District Council,200827,VIVID RESOURCING LIMITED VIVID RESOURCING LIMITED,53954,29/09/2021,65882,REDACTED,21/10/2021,1280,6400,7680,Market Towns,Agency Staff,60011
http://statistics.data.gov.uk/id/local-authority/12UE,Huntingdonshire District Council,200828,VODAFONE CABLE & WIRELESS VODAFONE CABLE & WIRELESS,53687,27/09/2021,UK10/092021/1775,3CICT PHONES SEPT,21/10/2021,271.13,1355.64,1626.77,Cambridge City Business Case ,Broadband Line Rental,64080
http://statistics.data.gov.uk/id/local-authority/12UE,Huntingdonshire District Council,200828,VODAFONE CABLE & WIRELESS VODAFONE CABLE & WIRELESS,53687,27/09/2021,UK10/092021/1775,3CICT PHONES SEPT,21/10/2021,271.15,1355.74,1626.89,Cambridge City Business Case ,Broadband Line Rental,64080
http://statistics.data.gov.uk/id/local-authority/12UE,Huntingdonshire District Council,200828,VODAFONE CABLE & WIRELESS VODAFONE CABLE & WIRELESS,53687,27/09/2021,UK10/092021/1775,3CICT PHONES SEPT,21/10/2021,271.17,1355.84,1627.01,SCDC Business Case ,Broadband Line Rental,64080
http://statistics.data.gov.uk/id/local-authority/12UE,Huntingdonshire District Council,200828,VODAFONE CABLE & WIRELESS VODAFONE CABLE & WIRELESS,53687,27/09/2021,UK10/092021/1775,3CICT PHONES SEPT,21/10/2021,-0.01,0,-0.01,Finance,Over/Under VAT Rounding,68350
http://statistics.data.gov.uk/id/local-authority/12UE,Huntingdonshire District Council,200913,WAVE  ANGLIAN WATER BUSINESS,54541,13/10/2021,9596811,OLSI 1309-121021,21/10/2021,0,355.89,355.89,OLSI - Site & Centre Management,Water And Sewerage,60302
http://statistics.data.gov.uk/id/local-authority/12UE,Huntingdonshire District Council,200913,WAVE  ANGLIAN WATER BUSINESS,54510,03/10/2021,9553399,OLSIO 0309-021021,21/10/2021,0,595.02,595.02,OLSIO - Site & Centre Management,Water And Sewerage,60302
http://statistics.data.gov.uk/id/local-authority/12UE,Huntingdonshire District Council,202539,WORKCHAIN LTD,54488,17/07/2021,157113,HGV CLASS 2 DRIVER 170721,21/10/2021,44.64,223.2,267.84,Domestic Waste Collection,Agency Staff,60011
http://statistics.data.gov.uk/id/local-authority/12UE,Huntingdonshire District Council,202539,WORKCHAIN LTD,54488,17/07/2021,157113,HGV CLASS 2 DRIVER 170721,21/10/2021,44.64,223.2,267.84,Green Waste Collection,Agency Staff,60011
http://statistics.data.gov.uk/id/local-authority/12UE,Huntingdonshire District Council,202539,WORKCHAIN LTD,54488,17/07/2021,157113,HGV CLASS 2 DRIVER 170721,21/10/2021,44.64,223.2,267.84,Recycling Collections,Agency Staff,60011
http://statistics.data.gov.uk/id/local-authority/12UE,Huntingdonshire District Council,202658,Young Technicians CIC,53803,28/09/2021,109,REDACTED,21/10/2021,0,1200,1200,Kickstart - External,Mandatory Grants,64601
http://statistics.data.gov.uk/id/local-authority/12UE,Huntingdonshire District Council,201196,Abbotsley Parish Council,54600,30/09/2021,CIL APR TO SEPT 2021,CIL APR TO SEPT 2021,22/10/2021,0,2043.32,2043.32,Cil Capital Grant Element,Cil Payment To Parishes,66402
http://statistics.data.gov.uk/id/local-authority/12UE,Huntingdonshire District Council,201684,ALCONBURY WESTON PARISH COUNCIL,54602,11/10/2021,CIL APR TO SEPT 2021,CIL APR TO SEPT 2021,22/10/2021,0,3580.87,3580.87,Cil Capital Grant Element,Cil Payment To Parishes,66402
http://statistics.data.gov.uk/id/local-authority/12UE,Huntingdonshire District Council,201197,Alwalton Parish Council,54603,11/10/2021,CIL APR TO SEPT 2021,CIL APR TO SEPT 2021,22/10/2021,0,8563.28,8563.28,Cil Capital Grant Element,Cil Payment To Parishes,66402
http://statistics.data.gov.uk/id/local-authority/12UE,Huntingdonshire District Council,201199,Bluntisham Parish Council,54604,11/10/2021,CIL PARISHES  APR - SEPT 21,CIL Parishes  Apr - Sept 21,22/10/2021,0,4638.59,4638.59,Cil Capital Grant Element,Cil Payment To Parishes,66402
http://statistics.data.gov.uk/id/local-authority/12UE,Huntingdonshire District Council,201200,Brampton Parish Council,54605,11/10/2021,CIL PARISHES  APR - SEPT 21,CIL Parishes  Apr - Sept 21,22/10/2021,0,8547.16,8547.16,Cil Capital Grant Element,Cil Payment To Parishes,66402
http://statistics.data.gov.uk/id/local-authority/12UE,Huntingdonshire District Council,201202,Brington & Molesworth Parish Council,54606,11/10/2021,CIL PARISHES  APR - SEPT 21,CIL Parishes  Apr - Sept 21,22/10/2021,0,15107.03,15107.03,Cil Capital Grant Element,Cil Payment To Parishes,66402
http://statistics.data.gov.uk/id/local-authority/12UE,Huntingdonshire District Council,201204,Buckden Parish Council,54607,11/10/2021,CIL PARISHES  APR - SEPT 21,CIL Parishes  Apr - Sept 21,22/10/2021,0,49779.63,49779.63,Cil Capital Grant Element,Cil Payment To Parishes,66402
http://statistics.data.gov.uk/id/local-authority/12UE,Huntingdonshire District Council,201207,Bury Parish Council,54608,11/10/2021,CIL PARISHES  APR - SEPT 21,CIL Parishes  Apr - Sept 21,22/10/2021,0,28998.77,28998.77,Cil Capital Grant Element,Cil Payment To Parishes,66402
http://statistics.data.gov.uk/id/local-authority/12UE,Huntingdonshire District Council,201211,Colne Parish Council,54609,11/10/2021,CIL PARISHES  APR - SEPT 21,CIL Parishes  Apr - Sept 21,22/10/2021,0,4878.11,4878.11,Cil Capital Grant Element,Cil Payment To Parishes,66402
http://statistics.data.gov.uk/id/local-authority/12UE,Huntingdonshire District Council,201224,Godmanchester Town Council,54610,11/10/2021,CIL PARISHES  APR - SEPT 21,CIL Parishes  Apr - Sept 21,22/10/2021,2461.45,30768.08,33229.53,Cil Capital Grant Element,Cil Payment To Parishes,66402
http://statistics.data.gov.uk/id/local-authority/12UE,Huntingdonshire District Council,201227,Great Gransden Parish Council,54611,11/10/2021,CIL PARISHES  APR - SEPT 21,cil,22/10/2021,0,43554.06,43554.06,Cil Capital Grant Element,Cil Payment To Parishes,66402
http://statistics.data.gov.uk/id/local-authority/12UE,Huntingdonshire District Council,201228,Great Paxton Parish Council,54612,11/10/2021,CIL PARISHES  APR - SEPT 21,CIL Parishes  Apr - Sept 21,22/10/2021,0,1031.21,1031.21,Cil Capital Grant Element,Cil Payment To Parishes,66402
http://statistics.data.gov.uk/id/local-authority/12UE,Huntingdonshire District Council,201237,Holywell-Cum-Needingworth Parish Council,54613,11/10/2021,CIL PARISHES  APR - SEPT 21,CIL Parishes  Apr - Sept 21,22/10/2021,0,8894.18,8894.18,Cil Capital Grant Element,Cil Payment To Parishes,66402
http://statistics.data.gov.uk/id/local-authority/12UE,Huntingdonshire District Council,201238,Houghton & Wyton Parish Council,54614,11/10/2021,CIL PARISHES  APR - SEPT 21,CIL Parishes  Apr - Sept 21,22/10/2021,0,2203.63,2203.63,Cil Capital Grant Element,Cil Payment To Parishes,66402
http://statistics.data.gov.uk/id/local-authority/12UE,Huntingdonshire District Council,201131,HUNTINGDON TOWN COUNCIL,54615,11/10/2021,CIL PARISHES  APR - SEPT 21,CIL Parishes  Apr - Sept 21,22/10/2021,0,21768.19,21768.19,Cil Capital Grant Element,Cil Payment To Parishes,66402
http://statistics.data.gov.uk/id/local-authority/12UE,Huntingdonshire District Council,201131,HUNTINGDON TOWN COUNCIL,54616,11/10/2021,CIL PARISHES  APR-SEPT 21 25%,CIL Parishes  Apr - Sept 21,22/10/2021,0,1157.09,1157.09,Cil Capital Grant Element,Cil Payment To Parishes,66402
http://statistics.data.gov.uk/id/local-authority/12UE,Huntingdonshire District Council,201239,Kimbolton & Stonely Parish Council,54617,11/10/2021,CIL PARISHES  APR - SEPT 21,CIL Parishes  Apr - Sept 21,22/10/2021,0,16286.38,16286.38,Cil Capital Grant Element,Cil Payment To Parishes,66402
http://statistics.data.gov.uk/id/local-authority/12UE,Huntingdonshire District Council,201240,Kings Ripton Parish Council,54626,11/10/2021,CIL PARISHES  APR - SEPT 21,CIL Parishes  Apr - Sept 21,22/10/2021,0,11892.8,11892.8,Cil Capital Grant Element,Cil Payment To Parishes,66402
http://statistics.data.gov.uk/id/local-authority/12UE,Huntingdonshire District Council,201244,Offord Cluny  & D'Arcy Parish Council,54618,11/10/2021,CIL PARISHES  APR - SEPT 21,,22/10/2021,0,3054.51,3054.51,Cil Capital Grant Element,Cil Payment To Parishes,66402
http://statistics.data.gov.uk/id/local-authority/12UE,Huntingdonshire District Council,201247,Pidley-Cum-Fenton Parish Council,54619,11/10/2021,CIL PARISHES  APR - SEPT 21,CIL Parishes  Apr - Sept 21,22/10/2021,0,1768.16,1768.16,Cil Capital Grant Element,Cil Payment To Parishes,66402
http://statistics.data.gov.uk/id/local-authority/12UE,Huntingdonshire District Council,201248,Ramsey Town Council,54620,11/10/2021,CIL PARISHES  APR - SEPT 21,CIL Parishes  Apr - Sept 21,22/10/2021,0,39755.2,39755.2,Cil Capital Grant Element,Cil Payment To Parishes,66402
http://statistics.data.gov.uk/id/local-authority/12UE,Huntingdonshire District Council,201249,Sawtry Parish Council,54623,11/10/2021,CIL PARISHES  APR - SEPT 21,CIL Parishes  Apr - Sept 21,22/10/2021,0,79705.16,79705.16,Cil Capital Grant Element,Cil Payment To Parishes,66402
http://statistics.data.gov.uk/id/local-authority/12UE,Huntingdonshire District Council,200923,ST IVES TOWN COUNCIL,54621,11/10/2021,CIL PARISHES  APR - SEPT 21,CIL Parishes  Apr - Sept 21,22/10/2021,0,18206.2,18206.2,Cil Capital Grant Element,Cil Payment To Parishes,66402
http://statistics.data.gov.uk/id/local-authority/12UE,Huntingdonshire District Council,201254,St Neots Town Council,54622,11/10/2021,CIL PARISHES  APR-SEPT 21 25%,CIL Parishes  Apr - Sept 21,22/10/2021,0,361791.61,361791.61,Cil Capital Grant Element,Cil Payment To Parishes,66402
http://statistics.data.gov.uk/id/local-authority/12UE,Huntingdonshire District Council,201257,Stukeley Parish Council,54624,11/10/2021,CIL PARISHES  APR - SEPT 21,CIL Parishes  Apr - Sept 21,22/10/2021,0,124977.3,124977.3,Cil Capital Grant Element,Cil Payment To Parishes,66402
http://statistics.data.gov.uk/id/local-authority/12UE,Huntingdonshire District Council,201268,Yaxley Parish Council,54625,11/10/2021,CIL PARISHES  APR - SEPT 21,CIL Parishes  Apr - Sept 21,22/10/2021,0,4927.78,4927.78,Cil Capital Grant Element,Cil Payment To Parishes,66402
http://statistics.data.gov.uk/id/local-authority/12UE,Huntingdonshire District Council,200017,ACCESS & AUTOMATION LTD ACCESS & AUTOMATION LTD,54350,30/09/2021,6773,FIREDOOR SUPPLY,28/10/2021,0,4410,4410,Disables Facilities Grants,Mandatory Grants,64601
http://statistics.data.gov.uk/id/local-authority/12UE,Huntingdonshire District Council,200028,AEBI SCHMIDT AEBI SCHMIDT,54494,04/10/2021,60274071,POLY BELT,28/10/2021,60.95,304.77,365.72,Street Cleansing,Vehicle Repairs And Maintenance,60904
http://statistics.data.gov.uk/id/local-authority/12UE,Huntingdonshire District Council,200028,AEBI SCHMIDT AEBI SCHMIDT,54493,04/10/2021,60274066,STRUT/ROD,28/10/2021,32.81,164.06,196.87,Street Cleansing,Vehicle Repairs And Maintenance,60904
http://statistics.data.gov.uk/id/local-authority/12UE,Huntingdonshire District Council,200028,AEBI SCHMIDT AEBI SCHMIDT,54494,04/10/2021,60274071,POLY BELT,28/10/2021,60.95,304.77,365.72,Street Cleansing,Vehicle Repairs And Maintenance,60904
http://statistics.data.gov.uk/id/local-authority/12UE,Huntingdonshire District Council,200028,AEBI SCHMIDT AEBI SCHMIDT,54493,04/10/2021,60274066,STRUT/ROD,28/10/2021,32.81,164.06,196.87,Street Cleansing,Vehicle Repairs And Maintenance,60904
http://statistics.data.gov.uk/id/local-authority/12UE,Huntingdonshire District Council,200028,AEBI SCHMIDT AEBI SCHMIDT,54495,06/10/2021,60274153,DISC BRUSH,28/10/2021,84.76,423.82,508.58,Street Cleansing,Vehicle Repairs And Maintenance,60904
http://statistics.data.gov.uk/id/local-authority/12UE,Huntingdonshire District Council,202251,REDACTED,54778,05/09/2021,1074,VEHICLE DISINFECT,28/10/2021,0,620,620,Covid-19,Vehicle Cleaning,60923
http://statistics.data.gov.uk/id/local-authority/12UE,Huntingdonshire District Council,202251,REDACTED,54778,05/09/2021,1074,VEHICLE DISINFECT,28/10/2021,0,75,75,Covid-19,Vehicle Cleaning,60923
http://statistics.data.gov.uk/id/local-authority/12UE,Huntingdonshire District Council,202251,REDACTED,54778,05/09/2021,1074,VEHICLE DISINFECT,28/10/2021,0,165,165,Covid-19,Vehicle Cleaning,60923
http://statistics.data.gov.uk/id/local-authority/12UE,Huntingdonshire District Council,202251,REDACTED,54778,05/09/2021,1074,VEHICLE DISINFECT,28/10/2021,0,150,150,Covid-19,Vehicle Cleaning,60923
http://statistics.data.gov.uk/id/local-authority/12UE,Huntingdonshire District Council,202251,REDACTED,54778,05/09/2021,1074,VEHICLE DISINFECT,28/10/2021,0,15,15,Covid-19,Vehicle Cleaning,60923
http://statistics.data.gov.uk/id/local-authority/12UE,Huntingdonshire District Council,202251,REDACTED,54779,29/08/2021,1073,VEHICLE DISINFECT,28/10/2021,0,620,620,Covid-19,Vehicle Cleaning,60923
http://statistics.data.gov.uk/id/local-authority/12UE,Huntingdonshire District Council,202251,REDACTED,54779,29/08/2021,1073,VEHICLE DISINFECT,28/10/2021,0,75,75,Covid-19,Vehicle Cleaning,60923
http://statistics.data.gov.uk/id/local-authority/12UE,Huntingdonshire District Council,202251,REDACTED,54779,29/08/2021,1073,VEHICLE DISINFECT,28/10/2021,0,165,165,Covid-19,Vehicle Cleaning,60923
http://statistics.data.gov.uk/id/local-authority/12UE,Huntingdonshire District Council,202251,REDACTED,54779,29/08/2021,1073,VEHICLE DISINFECT,28/10/2021,0,150,150,Covid-19,Vehicle Cleaning,60923
http://statistics.data.gov.uk/id/local-authority/12UE,Huntingdonshire District Council,202251,REDACTED,54779,29/08/2021,1073,VEHICLE DISINFECT,28/10/2021,0,15,15,Covid-19,Vehicle Cleaning,60923
http://statistics.data.gov.uk/id/local-authority/12UE,Huntingdonshire District Council,200050,ANTALIS LTD ANTALIS LTD,53910,30/09/2021,2042551,doc centre paper,28/10/2021,121.6,608,729.6,Printing,Paper,62803
http://statistics.data.gov.uk/id/local-authority/12UE,Huntingdonshire District Council,202059.01,AQUASERVE MAINTENANCE LTD,54812,21/09/2021,AQMAIN21057,COLNE TESTING,28/10/2021,76.5,382.5,459,Watercourses,Subcontractors,62401
http://statistics.data.gov.uk/id/local-authority/12UE,Huntingdonshire District Council,200072,B & H DIGITAL LTD B & H DIGITAL LTD,53979,30/09/2021,36111,WASTE LEAFLETS,28/10/2021,345.41,1727.03,2072.44,Trade Refuse,"Advertising, Publicity And Marketing",62005
http://statistics.data.gov.uk/id/local-authority/12UE,Huntingdonshire District Council,200075,B S GRAVES ELECTRICAL LTD B S GRAVES ELECTRICAL LTD,54198,05/10/2021,30237,24 MHP ELEC,28/10/2021,110,550,660,Mobile Home Park - Electrical Works,Maintenance - Mechanical And Electrical,60203
http://statistics.data.gov.uk/id/local-authority/12UE,Huntingdonshire District Council,200110,BOC BOC,54464,30/09/2021,3064992022,MAINT EQUIPM,28/10/2021,63.38,316.87,380.25,Vehicle Maintenance,"Maintenance - Equipment, Furniture And Materials",61702
http://statistics.data.gov.uk/id/local-authority/12UE,Huntingdonshire District Council,201138,BORNEY UK LTD,54791,05/10/2021,54053,WELC BACK SIGNS,28/10/2021,198,990,1188,Welcome Back Fund,Printing,62001
http://statistics.data.gov.uk/id/local-authority/12UE,Huntingdonshire District Council,200148,CALLCREDIT LTD CALLCREDIT LTD,54733,01/10/2021,903202,TRANSUNION 01-300921,28/10/2021,84.29,421.46,505.75,Benefits Management,Enquiries,63400
http://statistics.data.gov.uk/id/local-authority/12UE,Huntingdonshire District Council,200148,CALLCREDIT LTD CALLCREDIT LTD,54733,01/10/2021,903202,TRANSUNION 01-300921,28/10/2021,0.64,3.2,3.84,Car Park Management,Enquiries,63400
http://statistics.data.gov.uk/id/local-authority/12UE,Huntingdonshire District Council,200148,CALLCREDIT LTD CALLCREDIT LTD,54733,01/10/2021,903202,TRANSUNION 01-300921,28/10/2021,1.71,8.54,10.25,Housing Needs & Resources,Enquiries,63400
http://statistics.data.gov.uk/id/local-authority/12UE,Huntingdonshire District Council,201033,CAMBRIDGESHIRE COUNTY COUNCIL,54370,06/10/2021,4.23E+11,WASTE COLLECT JUL21,28/10/2021,0,10583.72,10583.72,Trade Refuse,Waste Disposal Costs,64050
http://statistics.data.gov.uk/id/local-authority/12UE,Huntingdonshire District Council,201033,CAMBRIDGESHIRE COUNTY COUNCIL,54370,06/10/2021,4.23E+11,WASTE COLLECT JUL21,28/10/2021,0,25.5,25.5,Trade Refuse,Waste Disposal Costs,64050
http://statistics.data.gov.uk/id/local-authority/12UE,Huntingdonshire District Council,201033,CAMBRIDGESHIRE COUNTY COUNCIL,54369,06/10/2021,4230024B7709,WASTE COLLECT AUG21,28/10/2021,0,10524.16,10524.16,Trade Refuse,Waste Disposal Costs,64050
http://statistics.data.gov.uk/id/local-authority/12UE,Huntingdonshire District Council,201033,CAMBRIDGESHIRE COUNTY COUNCIL,54369,06/10/2021,4230024B7709,WASTE COLLECT AUG21,28/10/2021,0,19.96,19.96,Trade Refuse,Waste Disposal Costs,64050
http://statistics.data.gov.uk/id/local-authority/12UE,Huntingdonshire District Council,200169,CARE CHECK LTD CARE CHECK LTD,54200,30/09/2021,302749,DISBURSEMENT FEE,28/10/2021,21,105,126,HR Services,Enquiries,63400
http://statistics.data.gov.uk/id/local-authority/12UE,Huntingdonshire District Council,200169,CARE CHECK LTD CARE CHECK LTD,54200,30/09/2021,302749,DISBURSEMENT FEE,28/10/2021,0,789,789,HR Services,Enquiries,63400
http://statistics.data.gov.uk/id/local-authority/12UE,Huntingdonshire District Council,201011,CENTENNIAL PROPERTY LTD,54716,18/10/2021,CP-HDC117,TA HOUSING 01-161021,28/10/2021,90,720,810,Homelessness,B&B Accommodation,64401
http://statistics.data.gov.uk/id/local-authority/12UE,Huntingdonshire District Council,201011,CENTENNIAL PROPERTY LTD,54716,18/10/2021,CP-HDC117,TA HOUSING 01-161021,28/10/2021,90,720,810,Homelessness,B&B Accommodation,64401
http://statistics.data.gov.uk/id/local-authority/12UE,Huntingdonshire District Council,201011,CENTENNIAL PROPERTY LTD,54716,18/10/2021,CP-HDC117,TA HOUSING 01-161021,28/10/2021,90,720,810,Homelessness,B&B Accommodation,64401
http://statistics.data.gov.uk/id/local-authority/12UE,Huntingdonshire District Council,201011,CENTENNIAL PROPERTY LTD,54716,18/10/2021,CP-HDC117,TA HOUSING 01-161021,28/10/2021,76,608,684,Homelessness,B&B Accommodation,64401
http://statistics.data.gov.uk/id/local-authority/12UE,Huntingdonshire District Council,201011,CENTENNIAL PROPERTY LTD,54716,18/10/2021,CP-HDC117,TA HOUSING 01-161021,28/10/2021,90,720,810,Homelessness,B&B Accommodation,64401
http://statistics.data.gov.uk/id/local-authority/12UE,Huntingdonshire District Council,201011,CENTENNIAL PROPERTY LTD,54716,18/10/2021,CP-HDC117,TA HOUSING 01-161021,28/10/2021,76,608,684,Homelessness,B&B Accommodation,64401
http://statistics.data.gov.uk/id/local-authority/12UE,Huntingdonshire District Council,201011,CENTENNIAL PROPERTY LTD,54716,18/10/2021,CP-HDC117,TA HOUSING 01-161021,28/10/2021,110,880,990,Homelessness,B&B Accommodation,64401
http://statistics.data.gov.uk/id/local-authority/12UE,Huntingdonshire District Council,201011,CENTENNIAL PROPERTY LTD,54716,18/10/2021,CP-HDC117,TA HOUSING 01-161021,28/10/2021,76,608,684,Homelessness,B&B Accommodation,64401
http://statistics.data.gov.uk/id/local-authority/12UE,Huntingdonshire District Council,201011,CENTENNIAL PROPERTY LTD,54716,18/10/2021,CP-HDC117,TA HOUSING 01-161021,28/10/2021,76,608,684,Homelessness,B&B Accommodation,64401
http://statistics.data.gov.uk/id/local-authority/12UE,Huntingdonshire District Council,201011,CENTENNIAL PROPERTY LTD,54716,18/10/2021,CP-HDC117,TA HOUSING 01-161021,28/10/2021,61.88,495,556.88,Homelessness,B&B Accommodation,64401
http://statistics.data.gov.uk/id/local-authority/12UE,Huntingdonshire District Council,200190,CHIPSIDE CHIPSIDE,54368,30/09/2021,S220388,MIPERMIT SEP21,28/10/2021,327.37,1636.83,1964.2,Car Park Management,Contract Charges ,61800
http://statistics.data.gov.uk/id/local-authority/12UE,Huntingdonshire District Council,200190,CHIPSIDE CHIPSIDE,54368,30/09/2021,S220388,MIPERMIT SEP21,28/10/2021,1,5,6,Car Park Management,Contract Charges ,61800
http://statistics.data.gov.uk/id/local-authority/12UE,Huntingdonshire District Council,200511.01,CHORUS HOMES LTD (PRIVATE RENTS),54717,19/10/2021,648750,REDUCE RENT ARREARS,28/10/2021,0,1100,1100,Homelessness,Homeless Prevention Payments,64403
http://statistics.data.gov.uk/id/local-authority/12UE,Huntingdonshire District Council,201012,COACH & HORSES,54762,18/10/2021,510,LODGING 11-171021,28/10/2021,39.38,315,354.38,Homelessness,B&B Accommodation,64401
http://statistics.data.gov.uk/id/local-authority/12UE,Huntingdonshire District Council,201012,COACH & HORSES,54762,18/10/2021,510,LODGING 11-171021,28/10/2021,43.75,350,393.75,Homelessness,B&B Accommodation,64401
http://statistics.data.gov.uk/id/local-authority/12UE,Huntingdonshire District Council,200210,COMPUTERSHARE VOUCHERS LTD COMPUTERSHARE VOUCHERS LTD,54810,25/10/2021,C-0003256684,CHILDCARE VOUCHER,28/10/2021,0,1494,1494,Child Care Vouchers - Payroll,Childcare Admin Vouchers,60106
http://statistics.data.gov.uk/id/local-authority/12UE,Huntingdonshire District Council,200210,COMPUTERSHARE VOUCHERS LTD COMPUTERSHARE VOUCHERS LTD,54810,25/10/2021,C-0003256684,CHILDCARE VOUCHER,28/10/2021,7.47,37.35,44.82,Payroll Services,Childcare Admin Vouchers,60106
http://statistics.data.gov.uk/id/local-authority/12UE,Huntingdonshire District Council,202513,CV-LIBRARY LTD,54809,26/10/2021,375201,BRAND CREDIT 3MON 20JOBS,28/10/2021,200,1000,1200,HR Services,Staff Recruitment Costs,60116
http://statistics.data.gov.uk/id/local-authority/12UE,Huntingdonshire District Council,201715,DATASHREDDERS LTD,54355,30/09/2021,99036,WASTE DISPOSAL,28/10/2021,54,270,324,Pathfinder House,Waste Disposal Costs,64050
http://statistics.data.gov.uk/id/local-authority/12UE,Huntingdonshire District Council,202489,DIRECT HEALTHCARE GROUP LTD,54072,30/09/2021,124802,MAINTENANCE,28/10/2021,0,4554,4554,Disables Facilities Grants,Mandatory Grants,64601
http://statistics.data.gov.uk/id/local-authority/12UE,Huntingdonshire District Council,200250,DTS SOLUTIONS (UK) LTD DTS SOLUTIONS (UK) LTD,54263,06/10/2021,S007986,12M WIRELES SUB,28/10/2021,124.8,624,748.8,Paxton Pits,Telephone Equipment,64078
http://statistics.data.gov.uk/id/local-authority/12UE,Huntingdonshire District Council,202256,EASY CLEAN CONTRACTORS LTD,54319,30/09/2021,18823,CLEANING FEE SEP21,28/10/2021,21.33,106.66,127.99,Hinchingbrooke Country Park,Cleaning Contract,60502
http://statistics.data.gov.uk/id/local-authority/12UE,Huntingdonshire District Council,202256,EASY CLEAN CONTRACTORS LTD,54319,30/09/2021,18823,CLEANING FEE SEP21,28/10/2021,3.58,17.9,21.48,Hinchingbrooke Country Park,Cleaning Contract,60502
http://statistics.data.gov.uk/id/local-authority/12UE,Huntingdonshire District Council,202256,EASY CLEAN CONTRACTORS LTD,54319,30/09/2021,18823,CLEANING FEE SEP21,28/10/2021,160,800,960,Huntingdon Bus Station,Cleaning Contract,60502
http://statistics.data.gov.uk/id/local-authority/12UE,Huntingdonshire District Council,202256,EASY CLEAN CONTRACTORS LTD,54319,30/09/2021,18823,CLEANING FEE SEP21,28/10/2021,125.43,627.13,752.56,Pathfinder House,Cleaning Contract,60502
http://statistics.data.gov.uk/id/local-authority/12UE,Huntingdonshire District Council,202256,EASY CLEAN CONTRACTORS LTD,54319,30/09/2021,18823,CLEANING FEE SEP21,28/10/2021,727.55,3637.75,4365.3,Pathfinder House,Cleaning Contract,60502
http://statistics.data.gov.uk/id/local-authority/12UE,Huntingdonshire District Council,202256,EASY CLEAN CONTRACTORS LTD,54319,30/09/2021,18823,CLEANING FEE SEP21,28/10/2021,100,500,600,St Ives Enterprise Centre,Cleaning Contract,60502
http://statistics.data.gov.uk/id/local-authority/12UE,Huntingdonshire District Council,202256,EASY CLEAN CONTRACTORS LTD,54319,30/09/2021,18823,CLEANING FEE SEP21,28/10/2021,24,120,144,St Ives Enterprise Centre,Cleaning Contract,60502
http://statistics.data.gov.uk/id/local-authority/12UE,Huntingdonshire District Council,202256,EASY CLEAN CONTRACTORS LTD,54319,30/09/2021,18823,CLEANING FEE SEP21,28/10/2021,109.23,546.13,655.36,H'Brooke Countryside Centre,Cleaning Services,60501
http://statistics.data.gov.uk/id/local-authority/12UE,Huntingdonshire District Council,202256,EASY CLEAN CONTRACTORS LTD,54319,30/09/2021,18823,CLEANING FEE SEP21,28/10/2021,18.33,91.63,109.96,H'Brooke Countryside Centre,Cleaning Services,60501
http://statistics.data.gov.uk/id/local-authority/12UE,Huntingdonshire District Council,201922,EDDISONS COMMERCIAL LTD,54372,05/10/2021,602042575,LETTING FEE,28/10/2021,319,1595,1914,Industrial Properties,Consultancy Fees,62400
http://statistics.data.gov.uk/id/local-authority/12UE,Huntingdonshire District Council,201657,EYNESBURY PLANT HIRE CO LTD,54179,05/10/2021,10125,"UNIT 37,38 011021-310322",28/10/2021,260,1300,1560,Grounds Maintenance,Hire - Equipment Furniture And Materials,61700
http://statistics.data.gov.uk/id/local-authority/12UE,Huntingdonshire District Council,202448,FIBREGRID LTD,53973,30/09/2021,100/10012769,MATERIALS,28/10/2021,253.5,1267.5,1521,Paxton Pits,Materials,61709
http://statistics.data.gov.uk/id/local-authority/12UE,Huntingdonshire District Council,200308,FRANK RATCLIFFE & SON FRANK RATCLIFFE & SON,54364,01/10/2021,102354, RECOVERY,28/10/2021,50.4,252,302.4,Street Cleansing,Vehicle Maintenance - External,60921
http://statistics.data.gov.uk/id/local-authority/12UE,Huntingdonshire District Council,200312,FREIGHT TRANSPORT ASSOCIATION FREIGHT TRANSPORT ASSOCIATION,54777,23/09/2021,8400922,AUDIT FEES,28/10/2021,252,1260,1512,Vehicle Maintenance,Audit Fees,62100
http://statistics.data.gov.uk/id/local-authority/12UE,Huntingdonshire District Council,200331,GAWN ASSOCIATES GAWN ASSOCIATES,54715,13/09/2021,INV3662,REDACTED,28/10/2021,0,600,600,Disables Facilities Grants,Mandatory Grants,64601
http://statistics.data.gov.uk/id/local-authority/12UE,Huntingdonshire District Council,200354,HACT HACT,54195,30/09/2021,INV-CT1388,CONCESSIONARY FARES 0921,28/10/2021,0,1559.43,1559.43,Concessionary Fares,Grants And Contributions,64600
http://statistics.data.gov.uk/id/local-authority/12UE,Huntingdonshire District Council,200354,HACT HACT,54195,30/09/2021,INV-CT1388,CONCESSIONARY FARES 0921,28/10/2021,0,373.7,373.7,Planning Policy,Grants And Contributions,64600
http://statistics.data.gov.uk/id/local-authority/12UE,Huntingdonshire District Council,200365,HAYS HAYS,52582,24/08/2021,1011564051,REDACTED,28/10/2021,330.36,1651.8,1982.16,Property Development And Mgt,Agency Staff,60011
http://statistics.data.gov.uk/id/local-authority/12UE,Huntingdonshire District Council,202545,HITCHIN INDUSTRIAL & BUSINESS ESTATES LTD C/O BIDWELLS,54639,29/09/2021,307,REDACTED,28/10/2021,343.61,1718.06,2061.67,Commercial Investment Strategy,Service Charges,60401
http://statistics.data.gov.uk/id/local-authority/12UE,Huntingdonshire District Council,200381,HOWSAFE LTD HOWSAFE LTD,54160,20/09/2021,SIN0730723,WORK WEAR,28/10/2021,36.7,183.48,220.18,Domestic Waste Collection,"Clothes, Uniform And Laundry",62000
http://statistics.data.gov.uk/id/local-authority/12UE,Huntingdonshire District Council,200381,HOWSAFE LTD HOWSAFE LTD,54160,20/09/2021,SIN0730723,WORK WEAR,28/10/2021,191,955,1146,Recycling Collections,"Clothes, Uniform And Laundry",62000
http://statistics.data.gov.uk/id/local-authority/12UE,Huntingdonshire District Council,200395,HYGIENE SOLUTIONS & SYSTEMS LTD HYGIENE SOLUTIONS,54292,01/10/2021,47199,PFH CLEANING PROD,28/10/2021,204.32,1021.6,1225.92,Pathfinder House,Waste Disposal Costs,64050
http://statistics.data.gov.uk/id/local-authority/12UE,Huntingdonshire District Council,200427,J A K  SYSTEMS LTD J A K SYSTEMS LTD,54320,30/09/2021,13846,GRANUDO ISSUES,28/10/2021,77.51,387.55,465.06,OLR - Swimming,Maintenance - Fixed Plant,60202
http://statistics.data.gov.uk/id/local-authority/12UE,Huntingdonshire District Council,200429,J BREHENY CIVIL ENGINEERING LTD J BREHENY CIVIL ENGINEERING LTD,54063,01/10/2021,HM/5106/34533,HUNTS BUS STAT REPAIR,28/10/2021,334.75,1673.75,2008.5,St Ives Bus Station,Maintenance - Building,60201
http://statistics.data.gov.uk/id/local-authority/12UE,Huntingdonshire District Council,202735,JGP RESOURCING LTD,54760,13/08/2021,INV-14567,SINGLE LISTING,28/10/2021,192,960,1152,HR Services,Staff Recruitment Costs,60116
http://statistics.data.gov.uk/id/local-authority/12UE,Huntingdonshire District Council,201158,KITE UTILITY SERVICES LTD,54719,10/09/2021,1286,PUMP SERVICE PAXTON PITS,28/10/2021,79.2,396,475.2,Paxton Pits,Maintenance - Building,60201
http://statistics.data.gov.uk/id/local-authority/12UE,Huntingdonshire District Council,200480,LAVAT CONSULTING LTD T/A PSTAX LAVAT CONSULTING LTD T/A PSTAX,54379,30/09/2021,108790,VAT PART EXEMPT 20-21,28/10/2021,504,2520,3024,Corporate Finance,Consultancy Fees,62400
http://statistics.data.gov.uk/id/local-authority/12UE,Huntingdonshire District Council,201736,LOCUS SERVICES LTD,54373,06/10/2021,152,ROWLEY ARTS CENTRE CLEAN,28/10/2021,148.17,740.83,889,Commercial Properties,Maintenance - Building,60201
http://statistics.data.gov.uk/id/local-authority/12UE,Huntingdonshire District Council,200516,M WATSON CONSTRUCTION LTD M WATSON CONSTRUCTION LTD,54087,30/09/2021,25107,GRP RAMP ACCESS,28/10/2021,0,1120.45,1120.45,Disables Facilities Grants,Mandatory Grants,64601
http://statistics.data.gov.uk/id/local-authority/12UE,Huntingdonshire District Council,202700,REDACTED,54816,09/09/2021,HUNTMH001,ARTWORK,28/10/2021,83.33,416.67,500,Parks & Open Spaces,Site Alterations And Materials,60273
http://statistics.data.gov.uk/id/local-authority/12UE,Huntingdonshire District Council,200542,MIRAMAR ENGINEERING LTD MIRAMAR ENGINEERING LTD,54071,30/09/2021,006196-006193,HDC REPAIRS,28/10/2021,59,295,354,Eastfield House,Maintenance - Building,60201
http://statistics.data.gov.uk/id/local-authority/12UE,Huntingdonshire District Council,200542,MIRAMAR ENGINEERING LTD MIRAMAR ENGINEERING LTD,54071,30/09/2021,006196-006193,HDC REPAIRS,28/10/2021,15,75,90,Eastfield House,Maintenance - Building,60201
http://statistics.data.gov.uk/id/local-authority/12UE,Huntingdonshire District Council,200542,MIRAMAR ENGINEERING LTD MIRAMAR ENGINEERING LTD,54071,30/09/2021,006196-006193,HDC REPAIRS,28/10/2021,86,430.01,516.01,Eastfield House,Maintenance - Building,60201
http://statistics.data.gov.uk/id/local-authority/12UE,Huntingdonshire District Council,200542,MIRAMAR ENGINEERING LTD MIRAMAR ENGINEERING LTD,54277,01/10/2021,6209,OLSI BURG REPAIRS,28/10/2021,0,0,0,OLSI - Site & Centre Management,Maintenance - Building,60201
http://statistics.data.gov.uk/id/local-authority/12UE,Huntingdonshire District Council,200542,MIRAMAR ENGINEERING LTD MIRAMAR ENGINEERING LTD,54277,01/10/2021,6209,OLSI BURG REPAIRS,28/10/2021,114.27,571.36,685.63,OLSI - Site & Centre Management,Maintenance - Building,60201
http://statistics.data.gov.uk/id/local-authority/12UE,Huntingdonshire District Council,200542,MIRAMAR ENGINEERING LTD MIRAMAR ENGINEERING LTD,54066,01/10/2021,6213,OLSI PIPE BOILER ROOM,28/10/2021,117.65,588.25,705.9,OLSIO - Site & Centre Management,Maintenance - Building,60201
http://statistics.data.gov.uk/id/local-authority/12UE,Huntingdonshire District Council,200542,MIRAMAR ENGINEERING LTD MIRAMAR ENGINEERING LTD,54051,30/09/2021,6202,AHU PART REPLACE,28/10/2021,998.3,4991.5,5989.8,OLSN - Site & Centre Management,Maintenance - Building,60201
http://statistics.data.gov.uk/id/local-authority/12UE,Huntingdonshire District Council,200542,MIRAMAR ENGINEERING LTD MIRAMAR ENGINEERING LTD,54071,30/09/2021,006196-006193,HDC REPAIRS,28/10/2021,18,90,108,Pathfinder House,Maintenance - Building,60201
http://statistics.data.gov.uk/id/local-authority/12UE,Huntingdonshire District Council,200542,MIRAMAR ENGINEERING LTD MIRAMAR ENGINEERING LTD,54071,30/09/2021,006196-006193,HDC REPAIRS,28/10/2021,27.98,139.9,167.88,Pathfinder House,Maintenance - Building,60201
http://statistics.data.gov.uk/id/local-authority/12UE,Huntingdonshire District Council,200542,MIRAMAR ENGINEERING LTD MIRAMAR ENGINEERING LTD,54071,30/09/2021,006196-006193,HDC REPAIRS,28/10/2021,120,600,720,Pathfinder House,Maintenance - Building,60201
http://statistics.data.gov.uk/id/local-authority/12UE,Huntingdonshire District Council,201980,MLL TELECOM LTD,54238,01/10/2021,SI18263,BROADBAND LINE RENT,28/10/2021,512.45,2562.25,3074.7,3CICT NON STAFF HOLDING ACCOUNT,Broadband Line Rental,64080
http://statistics.data.gov.uk/id/local-authority/12UE,Huntingdonshire District Council,201980,MLL TELECOM LTD,54830,01/10/2021,SI8259,CCTV RENTAL,28/10/2021,4091.78,20458.88,24550.66,Cambridge City Business Case ,Broadband Line Rental,64080
http://statistics.data.gov.uk/id/local-authority/12UE,Huntingdonshire District Council,201980,MLL TELECOM LTD,54831,01/10/2021,SI18261,,28/10/2021,1438.15,7190.75,8628.9,HDC Business Case ,Broadband Line Rental,64080
http://statistics.data.gov.uk/id/local-authority/12UE,Huntingdonshire District Council,201980,MLL TELECOM LTD,54827,01/10/2021,SI18260,BROADBAND LINE RENT,28/10/2021,875.75,4378.75,5254.5,SCDC Business Case ,Broadband Line Rental,64080
http://statistics.data.gov.uk/id/local-authority/12UE,Huntingdonshire District Council,201980,MLL TELECOM LTD,54654,23/09/2021,SI18246,3CICT CAM WIRED PRESENTATION,28/10/2021,52.47,262.34,314.81,City Recoverable,Engineer Fees,62403
http://statistics.data.gov.uk/id/local-authority/12UE,Huntingdonshire District Council,202732,REDACTED,54371,06/10/2021,510,DPO SERVICE 0980-170921,28/10/2021,300,1500,1800,IMD Shared Service,Agency Staff,60011
http://statistics.data.gov.uk/id/local-authority/12UE,Huntingdonshire District Council,200968,NEC SOFTWARE SOLUTIONS LTD,53516,20/09/2021,91452244,IT SOFTWARE,28/10/2021,411.65,2058.23,2469.88,Cambridge City Business Case ,Ict Software,64071
http://statistics.data.gov.uk/id/local-authority/12UE,Huntingdonshire District Council,202704,NEOTISTS CIC,54314,05/10/2021,9,ST NEOTS MIRCO FEST 21,28/10/2021,0,2499,2499,Welcome Back Fund,Consultancy Fees,62400
http://statistics.data.gov.uk/id/local-authority/12UE,Huntingdonshire District Council,202077,PARK AVENUE RECRUITMENT LTD,54182,30/09/2021,12136,REDACTED,28/10/2021,340.4,1702,2042.4,Development Management,Agency Staff,60011
http://statistics.data.gov.uk/id/local-authority/12UE,Huntingdonshire District Council,200609,PENGELLY AND MIZEN PENGELLY AND MIZEN,54722,30/09/2021,799006151,VETS,28/10/2021,75,375,450,Animal Licensing - Inspections,Vets,62407
http://statistics.data.gov.uk/id/local-authority/12UE,Huntingdonshire District Council,200609,PENGELLY AND MIZEN PENGELLY AND MIZEN,54721,06/10/2021,MERLIN3-799061475,VETS,28/10/2021,66.67,333.33,400,Animal Licensing - Inspections,Vets,62407
http://statistics.data.gov.uk/id/local-authority/12UE,Huntingdonshire District Council,200625,PORTAKABIN LTD PORTAKABIN LTD,54672,01/08/2021,900930620,community august,28/10/2021,-0.01,0,-0.01,Finance,Over/Under VAT Rounding,68350
http://statistics.data.gov.uk/id/local-authority/12UE,Huntingdonshire District Council,200625,PORTAKABIN LTD PORTAKABIN LTD,54672,01/08/2021,900930620,community august,28/10/2021,134.51,672.54,807.05,Voluntary Sector Grants,Premises Hire - Facilities,60402
http://statistics.data.gov.uk/id/local-authority/12UE,Huntingdonshire District Council,202309,RAMSEY NEIGHBOURHOODS TRUST,54367,04/10/2021,RNT003,HALLOW&XMAS ACTIVE,28/10/2021,0,300,300,Welcome Back Fund,Consultancy Fees,62400
http://statistics.data.gov.uk/id/local-authority/12UE,Huntingdonshire District Council,200673,RENT CONNECT RENT CONNECT,54758,17/10/2021,RC-HDC117,LODGING 01-161021,28/10/2021,0,90,90,Homelessness,B&B Accommodation,64401
http://statistics.data.gov.uk/id/local-authority/12UE,Huntingdonshire District Council,200673,RENT CONNECT RENT CONNECT,54758,17/10/2021,RC-HDC117,LODGING 01-161021,28/10/2021,0,608,608,Homelessness,B&B Accommodation,64401
http://statistics.data.gov.uk/id/local-authority/12UE,Huntingdonshire District Council,200673,RENT CONNECT RENT CONNECT,54758,17/10/2021,RC-HDC117,LODGING 01-161021,28/10/2021,0,720,720,Homelessness,B&B Accommodation,64401
http://statistics.data.gov.uk/id/local-authority/12UE,Huntingdonshire District Council,200673,RENT CONNECT RENT CONNECT,54758,17/10/2021,RC-HDC117,LODGING 01-161021,28/10/2021,0,405,405,Homelessness,B&B Accommodation,64401
http://statistics.data.gov.uk/id/local-authority/12UE,Huntingdonshire District Council,200673,RENT CONNECT RENT CONNECT,54758,17/10/2021,RC-HDC117,LODGING 01-161021,28/10/2021,0,640,640,Homelessness,B&B Accommodation,64401
http://statistics.data.gov.uk/id/local-authority/12UE,Huntingdonshire District Council,200673,RENT CONNECT RENT CONNECT,54758,17/10/2021,RC-HDC117,LODGING 01-161021,28/10/2021,0,110,110,Homelessness,B&B Accommodation,64401
http://statistics.data.gov.uk/id/local-authority/12UE,Huntingdonshire District Council,200673,RENT CONNECT RENT CONNECT,54758,17/10/2021,RC-HDC117,LODGING 01-161021,28/10/2021,0,500,500,Homelessness,B&B Accommodation,64401
http://statistics.data.gov.uk/id/local-authority/12UE,Huntingdonshire District Council,200673,RENT CONNECT RENT CONNECT,54758,17/10/2021,RC-HDC117,LODGING 01-161021,28/10/2021,0,608,608,Homelessness,B&B Accommodation,64401
http://statistics.data.gov.uk/id/local-authority/12UE,Huntingdonshire District Council,200673,RENT CONNECT RENT CONNECT,54758,17/10/2021,RC-HDC117,LODGING 01-161021,28/10/2021,0,495,495,Homelessness,B&B Accommodation,64401
http://statistics.data.gov.uk/id/local-authority/12UE,Huntingdonshire District Council,200673,RENT CONNECT RENT CONNECT,54758,17/10/2021,RC-HDC117,LODGING 01-161021,28/10/2021,0,608,608,Homelessness,Hotel And Other Accommodation Costs (Staff And Members),64400
http://statistics.data.gov.uk/id/local-authority/12UE,Huntingdonshire District Council,200682,RIDGE AND PARTNERS LLP RIDGE AND PARTNERS LLP,54196,30/09/2021,201931,WORK FEES,28/10/2021,200,1000,1200,Oak Tree Remedial Work,Consultancy Fees,62400
http://statistics.data.gov.uk/id/local-authority/12UE,Huntingdonshire District Council,200694,ROGER WILSON ELECTRONICS ROGER WILSON ELECTRONICS,54795,17/10/2021,10963,OLR REPAIRS,28/10/2021,83.6,418,501.6,OLR - Site & Centre Management,Equipment,61713
http://statistics.data.gov.uk/id/local-authority/12UE,Huntingdonshire District Council,200694,ROGER WILSON ELECTRONICS ROGER WILSON ELECTRONICS,54795,17/10/2021,10963,OLR REPAIRS,28/10/2021,35.2,176,211.2,OLR - Site & Centre Management,"Maintenance - Equipment, Furniture And Materials",61702
http://statistics.data.gov.uk/id/local-authority/12UE,Huntingdonshire District Council,200694,ROGER WILSON ELECTRONICS ROGER WILSON ELECTRONICS,54794,17/10/2021,10691,OLSIO REPAIRS,28/10/2021,112.84,564.2,677.04,OLSIO - Site & Centre Management,"Maintenance - Equipment, Furniture And Materials",61702
http://statistics.data.gov.uk/id/local-authority/12UE,Huntingdonshire District Council,201610,ROSPA,54727,27/05/2021,1080528,HEALTH&SAFETY SU,28/10/2021,270,1350,1620,Domestic Waste Collection,Health And Safety Supplies And Services,60207
http://statistics.data.gov.uk/id/local-authority/12UE,Huntingdonshire District Council,201610,ROSPA,54727,27/05/2021,1080528,HEALTH&SAFETY SU,28/10/2021,44,220,264,Domestic Waste Collection,Health And Safety Supplies And Services,60207
http://statistics.data.gov.uk/id/local-authority/12UE,Huntingdonshire District Council,200698,ROYAL MAIL GROUP LTD ROYAL MAIL GROUP LTD,54457,04/10/2021,9063717957,POSTAGE&COURIER,28/10/2021,38.52,192.6,231.12,Benefits Management,Postage And Courier Services,64100
http://statistics.data.gov.uk/id/local-authority/12UE,Huntingdonshire District Council,200698,ROYAL MAIL GROUP LTD ROYAL MAIL GROUP LTD,54457,04/10/2021,9063717957,POSTAGE&COURIER,28/10/2021,69.62,348.11,417.73,Electoral Registration,Postage And Courier Services,64100
http://statistics.data.gov.uk/id/local-authority/12UE,Huntingdonshire District Council,200698,ROYAL MAIL GROUP LTD ROYAL MAIL GROUP LTD,54459,04/10/2021,9063717867,POSTAGE&COURIER,28/10/2021,61.09,305.44,366.53,Electoral Registration,Postage And Courier Services,64100
http://statistics.data.gov.uk/id/local-authority/12UE,Huntingdonshire District Council,200698,ROYAL MAIL GROUP LTD ROYAL MAIL GROUP LTD,54457,04/10/2021,9063717957,POSTAGE&COURIER,28/10/2021,146.99,734.94,881.93,Post Handling,Postage And Courier Services,64100
http://statistics.data.gov.uk/id/local-authority/12UE,Huntingdonshire District Council,200709,SCI PRINT LIMITED SCI PRINT LIMITED,54054,30/09/2021,4469,PRINTS,28/10/2021,488.43,2442.16,2930.59,Electoral Registration,Postage And Courier Services,64100
http://statistics.data.gov.uk/id/local-authority/12UE,Huntingdonshire District Council,200709,SCI PRINT LIMITED SCI PRINT LIMITED,54055,30/09/2021,4485,POLL CARDS,28/10/2021,159.11,795.53,954.64,District Elections,Printing,62001
http://statistics.data.gov.uk/id/local-authority/12UE,Huntingdonshire District Council,200709,SCI PRINT LIMITED SCI PRINT LIMITED,54054,30/09/2021,4469,PRINTS,28/10/2021,364.95,1824.75,2189.7,Electoral Registration,Printing,62001
http://statistics.data.gov.uk/id/local-authority/12UE,Huntingdonshire District Council,200737,SPORTMAX SPORTMAX,54270,06/10/2021,116633,OLSI WORK WEAR,28/10/2021,50.6,253,303.6,OLH - Site & Centre Management,"Clothes, Uniform And Laundry",62000
http://statistics.data.gov.uk/id/local-authority/12UE,Huntingdonshire District Council,200737,SPORTMAX SPORTMAX,54270,06/10/2021,116633,OLSI WORK WEAR,28/10/2021,50.6,253,303.6,OLR - Site & Centre Management,"Clothes, Uniform And Laundry",62000
http://statistics.data.gov.uk/id/local-authority/12UE,Huntingdonshire District Council,200737,SPORTMAX SPORTMAX,54270,06/10/2021,116633,OLSI WORK WEAR,28/10/2021,50.6,253,303.6,OLSI - Site & Centre Management,"Clothes, Uniform And Laundry",62000
http://statistics.data.gov.uk/id/local-authority/12UE,Huntingdonshire District Council,200737,SPORTMAX SPORTMAX,54270,06/10/2021,116633,OLSI WORK WEAR,28/10/2021,50.6,253,303.6,OLSN - Site & Centre Management,"Clothes, Uniform And Laundry",62000
http://statistics.data.gov.uk/id/local-authority/12UE,Huntingdonshire District Council,200743,STAFFLINE GROUP STAFFLINE GROUP,54378,06/10/2021,125695 125692 125694,STAFF 260921,28/10/2021,193.2,966,1159.2,Domestic Waste Collection,Agency Staff,60011
http://statistics.data.gov.uk/id/local-authority/12UE,Huntingdonshire District Council,200743,STAFFLINE GROUP STAFFLINE GROUP,54378,06/10/2021,125695 125692 125694,STAFF 260921,28/10/2021,417.31,2086.56,2503.87,Green Waste Collection,Agency Staff,60011
http://statistics.data.gov.uk/id/local-authority/12UE,Huntingdonshire District Council,200743,STAFFLINE GROUP STAFFLINE GROUP,54378,06/10/2021,125695 125692 125694,STAFF 260921,28/10/2021,397.99,1989.96,2387.95,Recycling Collections,Agency Staff,60011
http://statistics.data.gov.uk/id/local-authority/12UE,Huntingdonshire District Council,202587,STEPHENS PROPERTY MAINTENANCE,54821,27/10/2021,409,CHANGING ROOM REMOVAL,28/10/2021,420,2100,2520,Hinchingbrooke Country Park,Site Alterations And Materials,60273
http://statistics.data.gov.uk/id/local-authority/12UE,Huntingdonshire District Council,202623,TAVCOM LTD,54536,13/10/2021,TAV-6839,STAFF TRAIN/DEVELOP,28/10/2021,149,745,894,HR Services,Staff Development And Training,60115
http://statistics.data.gov.uk/id/local-authority/12UE,Huntingdonshire District Council,200770,TELEFONICA UK LTD TELEFONICA UK LTD,54807,20/03/2021,86240644,TELE EQUPIM,28/10/2021,332.41,1662.04,1994.45,Cambridge City Business Case ,Ict Rental And Leases,64076
http://statistics.data.gov.uk/id/local-authority/12UE,Huntingdonshire District Council,200770,TELEFONICA UK LTD TELEFONICA UK LTD,54822,20/09/2021,45113,TELE EQUPIM,28/10/2021,260.92,1304.59,1565.51,Cambridge City Business Case ,Ict Rental And Leases,64076
http://statistics.data.gov.uk/id/local-authority/12UE,Huntingdonshire District Council,200770,TELEFONICA UK LTD TELEFONICA UK LTD,54800,20/06/2021,93011279,PHONE EQUPIM,28/10/2021,262.28,1311.39,1573.67,Cambridge City Business Case ,Ict Rental And Leases,64076
http://statistics.data.gov.uk/id/local-authority/12UE,Huntingdonshire District Council,200770,TELEFONICA UK LTD TELEFONICA UK LTD,54807,20/03/2021,86240644,TELE EQUPIM,28/10/2021,172.53,862.66,1035.19,HDC Business Case ,Ict Rental And Leases,64076
http://statistics.data.gov.uk/id/local-authority/12UE,Huntingdonshire District Council,200770,TELEFONICA UK LTD TELEFONICA UK LTD,54822,20/09/2021,45113,TELE EQUPIM,28/10/2021,171.02,855.09,1026.11,HDC Business Case ,Ict Rental And Leases,64076
http://statistics.data.gov.uk/id/local-authority/12UE,Huntingdonshire District Council,200770,TELEFONICA UK LTD TELEFONICA UK LTD,54800,20/06/2021,93011279,PHONE EQUPIM,28/10/2021,167.88,839.42,1007.3,HDC Business Case ,Ict Rental And Leases,64076
http://statistics.data.gov.uk/id/local-authority/12UE,Huntingdonshire District Council,200770,TELEFONICA UK LTD TELEFONICA UK LTD,54807,20/03/2021,86240644,TELE EQUPIM,28/10/2021,161.21,806.04,967.25,SCDC Recoverable,Ict Rental And Leases,64076
http://statistics.data.gov.uk/id/local-authority/12UE,Huntingdonshire District Council,200770,TELEFONICA UK LTD TELEFONICA UK LTD,54822,20/09/2021,45113,TELE EQUPIM,28/10/2021,234.21,1171.03,1405.24,SCDC Recoverable,Ict Rental And Leases,64076
http://statistics.data.gov.uk/id/local-authority/12UE,Huntingdonshire District Council,200770,TELEFONICA UK LTD TELEFONICA UK LTD,54800,20/06/2021,93011279,PHONE EQUPIM,28/10/2021,235.99,1179.94,1415.93,SCDC Recoverable,Ict Rental And Leases,64076
http://statistics.data.gov.uk/id/local-authority/12UE,Huntingdonshire District Council,200770,TELEFONICA UK LTD TELEFONICA UK LTD,54825,20/09/2021,38046,TELE EQUPIM,28/10/2021,7.7,38.51,46.21,3CICT NON STAFF HOLDING ACCOUNT,Line Rental,64075
http://statistics.data.gov.uk/id/local-authority/12UE,Huntingdonshire District Council,200770,TELEFONICA UK LTD TELEFONICA UK LTD,54798,20/03/2021,86191998,PHONE EQUPIM,28/10/2021,6.45,32.25,38.7,3CICT NON STAFF HOLDING ACCOUNT,Line Rental,64075
http://statistics.data.gov.uk/id/local-authority/12UE,Huntingdonshire District Council,200770,TELEFONICA UK LTD TELEFONICA UK LTD,54797,20/06/2021,92983058,PHONE EQUPIM,28/10/2021,7.02,35.1,42.12,3CICT NON STAFF HOLDING ACCOUNT,Line Rental,64075
http://statistics.data.gov.uk/id/local-authority/12UE,Huntingdonshire District Council,200770,TELEFONICA UK LTD TELEFONICA UK LTD,54799,20/11/2020,76754611,PHONE EQUPIM,28/10/2021,5.5,27.5,33,3CICT NON STAFF HOLDING ACCOUNT,Line Rental,64075
http://statistics.data.gov.uk/id/local-authority/12UE,Huntingdonshire District Council,200770,TELEFONICA UK LTD TELEFONICA UK LTD,54823,20/09/2021,45091,TELE EQUPIM,28/10/2021,32.91,164.57,197.48,3CICT NON STAFF HOLDING ACCOUNT,Line Rental,64075
http://statistics.data.gov.uk/id/local-authority/12UE,Huntingdonshire District Council,200770,TELEFONICA UK LTD TELEFONICA UK LTD,54817,20/06/2021,93011251,TELEPHONE EQUPIMENT,28/10/2021,34.75,173.75,208.5,3CICT NON STAFF HOLDING ACCOUNT,Line Rental,64075
http://statistics.data.gov.uk/id/local-authority/12UE,Huntingdonshire District Council,200770,TELEFONICA UK LTD TELEFONICA UK LTD,54818,20/03/2021,86240620,TELE EQUPIM,28/10/2021,36.49,182.46,218.95,3CICT NON STAFF HOLDING ACCOUNT,Line Rental,64075
http://statistics.data.gov.uk/id/local-authority/12UE,Huntingdonshire District Council,200770,TELEFONICA UK LTD TELEFONICA UK LTD,54822,20/09/2021,45113,TELE EQUPIM,28/10/2021,2.58,12.89,15.47,Cambridge City Business Case ,Line Rental,64075
http://statistics.data.gov.uk/id/local-authority/12UE,Huntingdonshire District Council,200770,TELEFONICA UK LTD TELEFONICA UK LTD,54800,20/06/2021,93011279,PHONE EQUPIM,28/10/2021,1.69,8.43,10.12,Cambridge City Business Case ,Line Rental,64075
http://statistics.data.gov.uk/id/local-authority/12UE,Huntingdonshire District Council,200770,TELEFONICA UK LTD TELEFONICA UK LTD,54825,20/09/2021,38046,TELE EQUPIM,28/10/2021,554.16,2770.81,3324.97,Cambridge City Business Case ,Line Rental,64075
http://statistics.data.gov.uk/id/local-authority/12UE,Huntingdonshire District Council,200770,TELEFONICA UK LTD TELEFONICA UK LTD,54798,20/03/2021,86191998,PHONE EQUPIM,28/10/2021,500.33,2501.63,3001.96,Cambridge City Business Case ,Line Rental,64075
http://statistics.data.gov.uk/id/local-authority/12UE,Huntingdonshire District Council,200770,TELEFONICA UK LTD TELEFONICA UK LTD,54797,20/06/2021,92983058,PHONE EQUPIM,28/10/2021,468.61,2343.03,2811.64,Cambridge City Business Case ,Line Rental,64075
http://statistics.data.gov.uk/id/local-authority/12UE,Huntingdonshire District Council,200770,TELEFONICA UK LTD TELEFONICA UK LTD,54799,20/11/2020,76754611,PHONE EQUPIM,28/10/2021,372.03,1860.14,2232.17,Cambridge City Business Case ,Line Rental,64075
http://statistics.data.gov.uk/id/local-authority/12UE,Huntingdonshire District Council,200770,TELEFONICA UK LTD TELEFONICA UK LTD,54823,20/09/2021,45091,TELE EQUPIM,28/10/2021,28.3,141.49,169.79,Cambridge City Business Case ,Line Rental,64075
http://statistics.data.gov.uk/id/local-authority/12UE,Huntingdonshire District Council,200770,TELEFONICA UK LTD TELEFONICA UK LTD,54817,20/06/2021,93011251,TELEPHONE EQUPIMENT,28/10/2021,25.28,126.41,151.69,Cambridge City Business Case ,Line Rental,64075
http://statistics.data.gov.uk/id/local-authority/12UE,Huntingdonshire District Council,200770,TELEFONICA UK LTD TELEFONICA UK LTD,54818,20/03/2021,86240620,TELE EQUPIM,28/10/2021,20.31,101.54,121.85,Cambridge City Business Case ,Line Rental,64075
http://statistics.data.gov.uk/id/local-authority/12UE,Huntingdonshire District Council,200770,TELEFONICA UK LTD TELEFONICA UK LTD,54823,20/09/2021,45091,TELE EQUPIM,28/10/2021,3.47,17.33,20.8,CPCA Recharge,Line Rental,64075
http://statistics.data.gov.uk/id/local-authority/12UE,Huntingdonshire District Council,200770,TELEFONICA UK LTD TELEFONICA UK LTD,54817,20/06/2021,93011251,TELEPHONE EQUPIMENT,28/10/2021,4.27,21.33,25.6,CPCA Recharge,Line Rental,64075
http://statistics.data.gov.uk/id/local-authority/12UE,Huntingdonshire District Council,200770,TELEFONICA UK LTD TELEFONICA UK LTD,54818,20/03/2021,86240620,TELE EQUPIM,28/10/2021,5.46,27.3,32.76,CPCA Recharge,Line Rental,64075
http://statistics.data.gov.uk/id/local-authority/12UE,Huntingdonshire District Council,200770,TELEFONICA UK LTD TELEFONICA UK LTD,54823,20/09/2021,45091,TELE EQUPIM,28/10/2021,240.63,1203.17,1443.8,HDC Business Case ,Line Rental,64075
http://statistics.data.gov.uk/id/local-authority/12UE,Huntingdonshire District Council,200770,TELEFONICA UK LTD TELEFONICA UK LTD,54817,20/06/2021,93011251,TELEPHONE EQUPIMENT,28/10/2021,219.47,1097.35,1316.82,HDC Business Case ,Line Rental,64075
http://statistics.data.gov.uk/id/local-authority/12UE,Huntingdonshire District Council,200770,TELEFONICA UK LTD TELEFONICA UK LTD,54818,20/03/2021,86240620,TELE EQUPIM,28/10/2021,209.35,1046.75,1256.1,HDC Business Case ,Line Rental,64075
http://statistics.data.gov.uk/id/local-authority/12UE,Huntingdonshire District Council,200770,TELEFONICA UK LTD TELEFONICA UK LTD,54823,20/09/2021,45091,TELE EQUPIM,28/10/2021,4.42,22.09,26.51,HDC Recoverable,Line Rental,64075
http://statistics.data.gov.uk/id/local-authority/12UE,Huntingdonshire District Council,200770,TELEFONICA UK LTD TELEFONICA UK LTD,54817,20/06/2021,93011251,TELEPHONE EQUPIMENT,28/10/2021,4.44,22.18,26.62,HDC Recoverable,Line Rental,64075
http://statistics.data.gov.uk/id/local-authority/12UE,Huntingdonshire District Council,200770,TELEFONICA UK LTD TELEFONICA UK LTD,54818,20/03/2021,86240620,TELE EQUPIM,28/10/2021,5.11,25.57,30.68,HDC Recoverable,Line Rental,64075
http://statistics.data.gov.uk/id/local-authority/12UE,Huntingdonshire District Council,200770,TELEFONICA UK LTD TELEFONICA UK LTD,54807,20/03/2021,86240644,TELE EQUPIM,28/10/2021,455.58,2277.88,2733.46,SCDC Recoverable,Line Rental,64075
http://statistics.data.gov.uk/id/local-authority/12UE,Huntingdonshire District Council,200770,TELEFONICA UK LTD TELEFONICA UK LTD,54822,20/09/2021,45113,TELE EQUPIM,28/10/2021,446.28,2231.42,2677.7,SCDC Recoverable,Line Rental,64075
http://statistics.data.gov.uk/id/local-authority/12UE,Huntingdonshire District Council,200770,TELEFONICA UK LTD TELEFONICA UK LTD,54800,20/06/2021,93011279,PHONE EQUPIM,28/10/2021,412.42,2062.11,2474.53,SCDC Recoverable,Line Rental,64075
http://statistics.data.gov.uk/id/local-authority/12UE,Huntingdonshire District Council,200770,TELEFONICA UK LTD TELEFONICA UK LTD,54823,20/09/2021,45091,TELE EQUPIM,28/10/2021,4.87,24.37,29.24,SCDC Recoverable,Line Rental,64075
http://statistics.data.gov.uk/id/local-authority/12UE,Huntingdonshire District Council,200770,TELEFONICA UK LTD TELEFONICA UK LTD,54817,20/06/2021,93011251,TELEPHONE EQUPIMENT,28/10/2021,4.06,20.29,24.35,SCDC Recoverable,Line Rental,64075
http://statistics.data.gov.uk/id/local-authority/12UE,Huntingdonshire District Council,200770,TELEFONICA UK LTD TELEFONICA UK LTD,54818,20/03/2021,86240620,TELE EQUPIM,28/10/2021,4.38,21.92,26.3,SCDC Recoverable,Line Rental,64075
http://statistics.data.gov.uk/id/local-authority/12UE,Huntingdonshire District Council,200770,TELEFONICA UK LTD TELEFONICA UK LTD,52867,09/09/2021,13839880,PHONE EQUPIT,28/10/2021,197.4,987,1184.4,City Recoverable,Telephone Equipment,64078
http://statistics.data.gov.uk/id/local-authority/12UE,Huntingdonshire District Council,200772,TEMPLE LIFTS LIMITED TEMPLE LIFTS LIMITED,54347,30/09/2021,555710,REPLACE LIFT MIRROR,28/10/2021,190,950,1140,Pathfinder House,Maintenance - Building,60201
http://statistics.data.gov.uk/id/local-authority/12UE,Huntingdonshire District Council,200785,THE OYSTER PARTNERSHIP THE OYSTER PARTNERSHIP,54734,06/10/2021,10911458,REDACTED,28/10/2021,475,2375,2850,Property Development And Mgt,Agency Staff,60011
http://statistics.data.gov.uk/id/local-authority/12UE,Huntingdonshire District Council,201984,Thompsons Solicitors LLP,54696,24/09/2021,1404770,LEGAL FEES,28/10/2021,50,250,300,Cctv Huntingdonshire,Legal Fees,63200
http://statistics.data.gov.uk/id/local-authority/12UE,Huntingdonshire District Council,201022,TRINITY ENGINEERING & COMPONENT SUPPLIES LTD,54375,30/09/2021,40952,"HAND CLEAN, DISP, GLOVES",28/10/2021,104.88,524.4,629.28,Covid-19,Materials,61709
http://statistics.data.gov.uk/id/local-authority/12UE,Huntingdonshire District Council,200983,TRUST ID LTD,54269,06/10/2021,4523,CONTRACT RENEWAL,28/10/2021,300,1500,1800,Benefits Management,Enquiries,63400
http://statistics.data.gov.uk/id/local-authority/12UE,Huntingdonshire District Council,200809,UKACTIVE UKACTIVE,54324,04/10/2021,INV-201968,CONFERENCE 21,28/10/2021,66,330,396,One Leisure Management Team,Staff Development And Training,60115
http://statistics.data.gov.uk/id/local-authority/12UE,Huntingdonshire District Council,200827,VIVID RESOURCING LIMITED VIVID RESOURCING LIMITED,54304,06/10/2021,66248,REDACTED,28/10/2021,435.34,2176.71,2612.05,Development Management,Agency Staff,60011
http://statistics.data.gov.uk/id/local-authority/12UE,Huntingdonshire District Council,200913,WAVE  ANGLIAN WATER BUSINESS,54697,08/10/2021,9575397,MHP 1307-051021,28/10/2021,0,2119.42,2119.42,Mobile Home Park,Water And Sewerage,60302
http://statistics.data.gov.uk/id/local-authority/12UE,Huntingdonshire District Council,202658,Young Technicians CIC,54170,05/10/2021,110,KICKSTART 1 MON,28/10/2021,0,716.39,716.39,Kickstart - External,Mandatory Grants,64601
http://statistics.data.gov.uk/id/local-authority/12UE,Huntingdonshire District Council,202658,Young Technicians CIC,54170,05/10/2021,110,KICKSTART 1 MON,28/10/2021,0,941.16,941.16,Kickstart - External,Mandatory Grants,64601
http://statistics.data.gov.uk/id/local-authority/12UE,Huntingdonshire District Council,202430,FOOD FOR NOUGHT,54509,15/10/2021,CEV GRANT 1,CEV GRANT,02/11/2021,0,30000,30000,Community Development,Grants And Contributions,64600
http://statistics.data.gov.uk/id/local-authority/12UE,Huntingdonshire District Council,202430,FOOD FOR NOUGHT,54509,15/10/2021,CEV GRANT 1,CEV GRANT,02/11/2021,0,0,0,VAT,VAT Input Tax,11727
http://statistics.data.gov.uk/id/local-authority/12UE,Huntingdonshire District Council,202690,ABSOLUTE AUDIO VISUAL SOLUTIONS LIMITED,55001,11/09/2021,82521,AUDIO EQUIPM EVENT 3/60921,05/11/2021,55.06,275.3,330.36,Welcome Back Fund,Consultancy Fees,62400
http://statistics.data.gov.uk/id/local-authority/12UE,Huntingdonshire District Council,200017,ACCESS & AUTOMATION LTD ACCESS & AUTOMATION LTD,55016,16/08/2021,6665,REDACTED,05/11/2021,0,2610,2610,Disables Facilities Grants,Mandatory Grants,64601
http://statistics.data.gov.uk/id/local-authority/12UE,Huntingdonshire District Council,202251,REDACTED,55084,12/09/2021,1075,WEEKLY VEHICLE DISINFECT OPS,05/11/2021,0,620,620,Covid-19,Vehicle Cleaning,60923
http://statistics.data.gov.uk/id/local-authority/12UE,Huntingdonshire District Council,202251,REDACTED,55084,12/09/2021,1075,WEEKLY VEHICLE DISINFECT OPS,05/11/2021,0,75,75,Covid-19,Vehicle Cleaning,60923
http://statistics.data.gov.uk/id/local-authority/12UE,Huntingdonshire District Council,202251,REDACTED,55084,12/09/2021,1075,WEEKLY VEHICLE DISINFECT OPS,05/11/2021,0,165,165,Covid-19,Vehicle Cleaning,60923
http://statistics.data.gov.uk/id/local-authority/12UE,Huntingdonshire District Council,202251,REDACTED,55084,12/09/2021,1075,WEEKLY VEHICLE DISINFECT OPS,05/11/2021,0,165,165,Covid-19,Vehicle Cleaning,60923
http://statistics.data.gov.uk/id/local-authority/12UE,Huntingdonshire District Council,202251,REDACTED,55084,12/09/2021,1075,WEEKLY VEHICLE DISINFECT OPS,05/11/2021,0,15,15,Covid-19,Vehicle Cleaning,60923
http://statistics.data.gov.uk/id/local-authority/12UE,Huntingdonshire District Council,202251,REDACTED,55083,19/09/2021,1076,WEEKLY VEHICLE DISINFECT OPS,05/11/2021,0,620,620,Covid-19,Vehicle Cleaning,60923
http://statistics.data.gov.uk/id/local-authority/12UE,Huntingdonshire District Council,202251,REDACTED,55083,19/09/2021,1076,WEEKLY VEHICLE DISINFECT OPS,05/11/2021,0,75,75,Covid-19,Vehicle Cleaning,60923
http://statistics.data.gov.uk/id/local-authority/12UE,Huntingdonshire District Council,202251,REDACTED,55083,19/09/2021,1076,WEEKLY VEHICLE DISINFECT OPS,05/11/2021,0,150,150,Covid-19,Vehicle Cleaning,60923
http://statistics.data.gov.uk/id/local-authority/12UE,Huntingdonshire District Council,202251,REDACTED,55083,19/09/2021,1076,WEEKLY VEHICLE DISINFECT OPS,05/11/2021,0,150,150,Covid-19,Vehicle Cleaning,60923
http://statistics.data.gov.uk/id/local-authority/12UE,Huntingdonshire District Council,202251,REDACTED,55083,19/09/2021,1076,WEEKLY VEHICLE DISINFECT OPS,05/11/2021,0,15,15,Covid-19,Vehicle Cleaning,60923
http://statistics.data.gov.uk/id/local-authority/12UE,Huntingdonshire District Council,200075,B S GRAVES ELECTRICAL LTD B S GRAVES ELECTRICAL LTD,54548,13/10/2021,30255,HCC REMEDIAL WORK,05/11/2021,148,740,888,Hinchingbrooke Park Management,Maintenance - Building,60201
http://statistics.data.gov.uk/id/local-authority/12UE,Huntingdonshire District Council,200075,B S GRAVES ELECTRICAL LTD B S GRAVES ELECTRICAL LTD,54548,13/10/2021,30255,HCC REMEDIAL WORK,05/11/2021,60,300,360,Hinchingbrooke Park Management,Maintenance - Building,60201
http://statistics.data.gov.uk/id/local-authority/12UE,Huntingdonshire District Council,200075,B S GRAVES ELECTRICAL LTD B S GRAVES ELECTRICAL LTD,55114,11/10/2021,30248,ELEC MEWS CLOSE,05/11/2021,78,390,468,Cctv Huntingdonshire,"Maintenance - Equipment, Furniture And Materials",61702
http://statistics.data.gov.uk/id/local-authority/12UE,Huntingdonshire District Council,200075,B S GRAVES ELECTRICAL LTD B S GRAVES ELECTRICAL LTD,54415,12/10/2021,30249,45 MHP REMEDIAL ELEC,05/11/2021,150,750,900,Mobile Home Park - Electrical Works,Maintenance - Mechanical And Electrical,60203
http://statistics.data.gov.uk/id/local-authority/12UE,Huntingdonshire District Council,200075,B S GRAVES ELECTRICAL LTD B S GRAVES ELECTRICAL LTD,54443,13/10/2021,30253,43 MHP REMEDIAL ELEC,05/11/2021,150,750,900,Mobile Home Park - Electrical Works,Maintenance - Mechanical And Electrical,60203
http://statistics.data.gov.uk/id/local-authority/12UE,Huntingdonshire District Council,200075,B S GRAVES ELECTRICAL LTD B S GRAVES ELECTRICAL LTD,54399,07/10/2021,30241,25 MHP HOWITTS LANE,05/11/2021,110,550,660,Mobile Home Park - Electrical Works,Maintenance - Mechanical And Electrical,60203
http://statistics.data.gov.uk/id/local-authority/12UE,Huntingdonshire District Council,200075,B S GRAVES ELECTRICAL LTD B S GRAVES ELECTRICAL LTD,54400,08/10/2021,30245,MHP HOWITTS LANE,05/11/2021,110,550,660,Mobile Home Park - Electrical Works,Maintenance - Mechanical And Electrical,60203
http://statistics.data.gov.uk/id/local-authority/12UE,Huntingdonshire District Council,200075,B S GRAVES ELECTRICAL LTD B S GRAVES ELECTRICAL LTD,54401,08/10/2021,30243,MHP HOWITTS LANE,05/11/2021,110,550,660,Mobile Home Park - Electrical Works,Maintenance - Mechanical And Electrical,60203
http://statistics.data.gov.uk/id/local-authority/12UE,Huntingdonshire District Council,202004,BLOOM PROCUREMENT SERVICES LTD,54959,19/10/2021,SIN027630,CONSULTANCY FEE,05/11/2021,706.6,3533,4239.6,Bridge Place Car Park Const,Consultancy Fees,62400
http://statistics.data.gov.uk/id/local-authority/12UE,Huntingdonshire District Council,202004,BLOOM PROCUREMENT SERVICES LTD,54959,19/10/2021,SIN027630,CONSULTANCY FEE,05/11/2021,706.8,3534,4240.8,Hinchingbrooke Country Park,Consultancy Fees,62400
http://statistics.data.gov.uk/id/local-authority/12UE,Huntingdonshire District Council,202004,BLOOM PROCUREMENT SERVICES LTD,54959,19/10/2021,SIN027630,CONSULTANCY FEE,05/11/2021,706.6,3533,4239.6,St Neots Riverside Park Path/Cycle Imps,Consultancy Fees,62400
http://statistics.data.gov.uk/id/local-authority/12UE,Huntingdonshire District Council,200133,BSG PROPERTY SERVICES LTD BSG PROPERTY SERVICES LTD,55014,12/03/2021,S47485,REDACTED,05/11/2021,0,6206,6206,Disables Facilities Grants,Mandatory Grants,64601
http://statistics.data.gov.uk/id/local-authority/12UE,Huntingdonshire District Council,200133,BSG PROPERTY SERVICES LTD BSG PROPERTY SERVICES LTD,55013,07/06/2021,S48225,REDACTED,05/11/2021,0,5016.5,5016.5,Disables Facilities Grants,Mandatory Grants,64601
http://statistics.data.gov.uk/id/local-authority/12UE,Huntingdonshire District Council,200133,BSG PROPERTY SERVICES LTD BSG PROPERTY SERVICES LTD,54730,14/10/2021,S49368,ELEC BATH HOIST,05/11/2021,0,535,535,Disables Facilities Grants,Mandatory Grants,64601
http://statistics.data.gov.uk/id/local-authority/12UE,Huntingdonshire District Council,201031,BUCKDEN REC GROUND & VILLAGE HALL TRUST,54786,26/10/2021,INV-6109,3849 SITE CLEARANCE,05/11/2021,0,89505,89505,Community Infrastructure,Grants And Contributions,64600
http://statistics.data.gov.uk/id/local-authority/12UE,Huntingdonshire District Council,201031,BUCKDEN REC GROUND & VILLAGE HALL TRUST,54788,26/10/2021,3849,PERMIS/APPROV SLUDGE TESTING,05/11/2021,0,43066,43066,Community Infrastructure,Grants And Contributions,64600
http://statistics.data.gov.uk/id/local-authority/12UE,Huntingdonshire District Council,201031,BUCKDEN REC GROUND & VILLAGE HALL TRUST,54786,26/10/2021,INV-6109,3849 SITE CLEARANCE,05/11/2021,0,0,0,VAT,VAT Input Tax,11727
http://statistics.data.gov.uk/id/local-authority/12UE,Huntingdonshire District Council,201031,BUCKDEN REC GROUND & VILLAGE HALL TRUST,54788,26/10/2021,3849,PERMIS/APPROV SLUDGE TESTING,05/11/2021,0,0,0,VAT,VAT Input Tax,11727
http://statistics.data.gov.uk/id/local-authority/12UE,Huntingdonshire District Council,201311,CABINET OFFICE,55136,03/06/2021,3807343,NFI 21/22 EXPERIAN TOOLS,05/11/2021,0,3313.6,3313.6,Covid-19,Audit Fees,62100
http://statistics.data.gov.uk/id/local-authority/12UE,Huntingdonshire District Council,200149,CAMBRIDGE CITY COUNCIL CAMBRIDGE CITY COUNCIL,55109,05/09/2021,12062434,SUB REG HOUSING CONTRI,05/11/2021,2646.8,13234,15880.8,Housing Policy R&D,Grants And Contributions,64600
http://statistics.data.gov.uk/id/local-authority/12UE,Huntingdonshire District Council,200159,CAMBRIDGESHIRE COUNTY COUNCIL CAMBRIDGESHIRE COUNTY COUNCIL,54718,14/10/2021,4.23E+11,HIGHWAY SEARCH Q2 21/22,05/11/2021,5494.4,27472,32966.4,Land Enquiry Con 29 Full,General Office Expenses,62004
http://statistics.data.gov.uk/id/local-authority/12UE,Huntingdonshire District Council,201485,CAMBRIDGESHIRE HOTEL LTD T/AS THE DOLPHIN,55167,04/10/2021,DH019930,LODGING 2709-031021,05/11/2021,18.75,150,168.75,Homelessness,B&B Accommodation,64401
http://statistics.data.gov.uk/id/local-authority/12UE,Huntingdonshire District Council,201485,CAMBRIDGESHIRE HOTEL LTD T/AS THE DOLPHIN,55167,04/10/2021,DH019930,LODGING 2709-031021,05/11/2021,10,200,210,Homelessness,B&B Accommodation,64401
http://statistics.data.gov.uk/id/local-authority/12UE,Huntingdonshire District Council,201485,CAMBRIDGESHIRE HOTEL LTD T/AS THE DOLPHIN,55167,04/10/2021,DH019930,LODGING 2709-031021,05/11/2021,18.75,150,168.75,Homelessness,B&B Accommodation,64401
http://statistics.data.gov.uk/id/local-authority/12UE,Huntingdonshire District Council,201485,CAMBRIDGESHIRE HOTEL LTD T/AS THE DOLPHIN,55167,04/10/2021,DH019930,LODGING 2709-031021,05/11/2021,18.75,150,168.75,Homelessness,B&B Accommodation,64401
http://statistics.data.gov.uk/id/local-authority/12UE,Huntingdonshire District Council,201485,CAMBRIDGESHIRE HOTEL LTD T/AS THE DOLPHIN,55167,04/10/2021,DH019930,LODGING 2709-031021,05/11/2021,10,200,210,Homelessness,B&B Accommodation,64401
http://statistics.data.gov.uk/id/local-authority/12UE,Huntingdonshire District Council,201485,CAMBRIDGESHIRE HOTEL LTD T/AS THE DOLPHIN,55167,04/10/2021,DH019930,LODGING 2709-031021,05/11/2021,10,200,210,Homelessness,Hotel And Other Accommodation Costs (Staff And Members),64400
http://statistics.data.gov.uk/id/local-authority/12UE,Huntingdonshire District Council,202458,CARRINGTON WEST LTD,54308,07/10/2021,174624,REDACTED,05/11/2021,552,2760,3312,Development Management,Agency Staff,60011
http://statistics.data.gov.uk/id/local-authority/12UE,Huntingdonshire District Council,202458,CARRINGTON WEST LTD,54530,13/10/2021,175347,REDACTED,05/11/2021,550,2750,3300,Development Management,Agency Staff,60011
http://statistics.data.gov.uk/id/local-authority/12UE,Huntingdonshire District Council,202458,CARRINGTON WEST LTD,54307,07/10/2021,174623,REDACTED,05/11/2021,495,2475,2970,Development Management,Agency Staff,60011
http://statistics.data.gov.uk/id/local-authority/12UE,Huntingdonshire District Council,202458,CARRINGTON WEST LTD,54531,13/10/2021,175346,REDACTED,05/11/2021,272.32,1361.6,1633.92,Development Management,Agency Staff,60011
http://statistics.data.gov.uk/id/local-authority/12UE,Huntingdonshire District Council,202458,CARRINGTON WEST LTD,54306,07/10/2021,174622,REDACTED,05/11/2021,238.28,1191.4,1429.68,Development Management,Agency Staff,60011
http://statistics.data.gov.uk/id/local-authority/12UE,Huntingdonshire District Council,202458,CARRINGTON WEST LTD,54305,07/10/2021,174621,REDACTED,05/11/2021,150.15,750.75,900.9,Development Management,Agency Staff,60011
http://statistics.data.gov.uk/id/local-authority/12UE,Huntingdonshire District Council,201012,COACH & HORSES,54961,01/11/2021,512,LODGING 2510-311021,05/11/2021,28.13,225,253.13,Homelessness,B&B Accommodation,64401
http://statistics.data.gov.uk/id/local-authority/12UE,Huntingdonshire District Council,201012,COACH & HORSES,55057,25/10/2021,511,LODGING 18-241021,05/11/2021,22.5,180,202.5,Homelessness,B&B Accommodation,64401
http://statistics.data.gov.uk/id/local-authority/12UE,Huntingdonshire District Council,201012,COACH & HORSES,54961,01/11/2021,512,LODGING 2510-311021,05/11/2021,43.75,350,393.75,Homelessness,B&B Accommodation,64401
http://statistics.data.gov.uk/id/local-authority/12UE,Huntingdonshire District Council,201012,COACH & HORSES,55057,25/10/2021,511,LODGING 18-241021,05/11/2021,43.75,350,393.75,Homelessness,B&B Accommodation,64401
http://statistics.data.gov.uk/id/local-authority/12UE,Huntingdonshire District Council,202588,CONCEPT ACCOMMODATION LTD,55093,24/05/2021,22053,ANTIVANDAL CHANGE ROOMS,05/11/2021,1068.6,5343,6411.6,Hinchingbrooke Country Park,Site Alterations And Materials,60273
http://statistics.data.gov.uk/id/local-authority/12UE,Huntingdonshire District Council,202588,CONCEPT ACCOMMODATION LTD,55092,24/05/2021,22059,WEEKDAY DELIV 20'x10' UNIT,05/11/2021,130,650,780,Hinchingbrooke Park Management,Site Alterations And Materials,60273
http://statistics.data.gov.uk/id/local-authority/12UE,Huntingdonshire District Council,202245,CTA CONSULTANCY LTD,54473,13/10/2021,230,MAINT EQUIPM,05/11/2021,110,550,660,Benefits Management,"Maintenance - Equipment, Furniture And Materials",61702
http://statistics.data.gov.uk/id/local-authority/12UE,Huntingdonshire District Council,200236,DENNIS EAGLE LTD DENNIS EAGLE LTD,55153,11/10/2021,DE11442819,VEHICLE MOT PARTS,05/11/2021,374.23,1871.14,2245.37,Green Waste Collection,Vehicle Repairs And Maintenance,60904
http://statistics.data.gov.uk/id/local-authority/12UE,Huntingdonshire District Council,201313,DENNIS EASTON FUNERAL SERVICE,55112,13/10/2021,60292856/522642 0,FUNERAL COSTS,05/11/2021,0,810,810,Burials Under Health Act,Cremation And Burial Costs,62600
http://statistics.data.gov.uk/id/local-authority/12UE,Huntingdonshire District Council,201313,DENNIS EASTON FUNERAL SERVICE,55112,13/10/2021,60292856/522642 0,FUNERAL COSTS,05/11/2021,15.83,79.17,95,Burials Under Health Act,Cremation And Burial Costs,62600
http://statistics.data.gov.uk/id/local-authority/12UE,Huntingdonshire District Council,202489,DIRECT HEALTHCARE GROUP LTD,55019,29/09/2021,124696,CHIA SOUTHCA,05/11/2021,0,879,879,Disables Facilities Grants,Mandatory Grants,64601
http://statistics.data.gov.uk/id/local-authority/12UE,Huntingdonshire District Council,202489,DIRECT HEALTHCARE GROUP LTD,55019,29/09/2021,124696,CHIA SOUTHCA,05/11/2021,0,2589,2589,Disables Facilities Grants,Mandatory Grants,64601
http://statistics.data.gov.uk/id/local-authority/12UE,Huntingdonshire District Council,202489,DIRECT HEALTHCARE GROUP LTD,55018,29/09/2021,124694,CHIA LIVING ROOM,05/11/2021,0,2589,2589,Disables Facilities Grants,Mandatory Grants,64601
http://statistics.data.gov.uk/id/local-authority/12UE,Huntingdonshire District Council,202489,DIRECT HEALTHCARE GROUP LTD,55017,29/09/2021,124695,CHIA HIAHUNTC,05/11/2021,0,1779,1779,Disables Facilities Grants,Mandatory Grants,64601
http://statistics.data.gov.uk/id/local-authority/12UE,Huntingdonshire District Council,200242,DOBSON UK LLP DOBSON UK LLP,55183,27/08/2021,7850,WEED SPRAY 3,05/11/2021,730,3650,4380,Street Cleansing,Grounds Maintenance,60503
http://statistics.data.gov.uk/id/local-authority/12UE,Huntingdonshire District Council,202236,EASTFIELD GUESTHOUSE LTD,55085,11/10/2021,HUN0118,LODGING 05-101021,05/11/2021,8.13,65,73.13,Homelessness,B&B Accommodation,64401
http://statistics.data.gov.uk/id/local-authority/12UE,Huntingdonshire District Council,202236,EASTFIELD GUESTHOUSE LTD,55085,11/10/2021,HUN0118,LODGING 05-101021,05/11/2021,48.75,390,438.75,Homelessness,B&B Accommodation,64401
http://statistics.data.gov.uk/id/local-authority/12UE,Huntingdonshire District Council,202236,EASTFIELD GUESTHOUSE LTD,55086,21/10/2021,HUN0120,LODGING 14-171021,05/11/2021,56.88,455,511.88,Homelessness,B&B Accommodation,64401
